﻿Department Family,Entity,Date,Expense Type,Expense Area,Supplier,Transaction Number,Amount,Item Description
BEIS,UKRI - AHRC,02/09/2020,Financial Services,Corporate Services,CCI Credit Management Ltd,98631801,1.32,Financial Services
BEIS,UKRI - AHRC,02/09/2020,Financial Services,Corporate Services,CCI Credit Management Ltd,98662258,1.32,Financial Services
BEIS,UKRI - AHRC,02/09/2020,Financial Services,Corporate Services,CCI Credit Management Ltd,98672751,1.32,Financial Services
BEIS,UKRI - AHRC,02/09/2020,Financial Services,Corporate Services,CCI Credit Management Ltd,98729486,1.32,Financial Services
BEIS,UKRI - AHRC,02/09/2020,Financial Services,Corporate Services,CCI Credit Management Ltd,98798887,1.32,Financial Services
BEIS,UKRI - AHRC,02/09/2020,Recruitment Costs,Operations,Agenda Resource Management Ltd,98802956,153.91,Recruitment Costs
BEIS,UKRI - AHRC,03/09/2020,Health & Safety (inc. Medicals & Opticians),HR,Swindon Occupational Medical Services Ltd,98805261,1050.00,Health & Safety (inc. Medicals & Opticians)
BEIS,UKRI - AHRC,07/09/2020,Recruitment Costs,Operations,Agenda Resource Management Ltd,98807536,153.91,Recruitment Costs
BEIS,UKRI - AHRC,08/09/2020,Computer Software,Operations,Alteryx UK Ltd,98811073,2539.07,Computer Software
BEIS,UKRI - AHRC,08/09/2020,Computer Software,Operations,Alteryx UK Ltd,98811073,-0.01,Computer Software
BEIS,UKRI - AHRC,09/09/2020,UK - Professional Memberships & Subscriptions,SMT,CREATIVE INDUSTRIES FEDERATION,98813687,7200.00,UK - Professional Memberships & Subscriptions
BEIS,UKRI - AHRC,09/09/2020,T&S UK - Other Charges,SMT,Unspecified,98814485,88.30,T&S UK - Other Charges
BEIS,UKRI - AHRC,10/09/2020,Unspecified,Public Engagement,Unspecified,98814283,2500.00,Legal & Professional Services
BEIS,UKRI - AHRC,11/09/2020,T&S UK - Other Charges,SMT,Unspecified,98814923,3.20,T&S UK - Other Charges
BEIS,UKRI - AHRC,11/09/2020,T&S UK - Parking Tolls Congestion Charges,SMT,Unspecified,98814923,14.60,T&S UK - Parking Tolls Congestion Charges
BEIS,UKRI - AHRC,11/09/2020,T&S UK - Public Transport,SMT,Unspecified,98814923,89.00,T&S UK - Public Transport
BEIS,UKRI - AHRC,11/09/2020,T&S UK - Subsistence,SMT,Unspecified,98814923,9.20,T&S UK - Subsistence
BEIS,UKRI - AHRC,11/09/2020,T&S UK - Subsistence,SMT,Unspecified,98814923,13.22,T&S UK - Subsistence
BEIS,UKRI - AHRC,11/09/2020,T&S UK - Subsistence,SMT,Unspecified,98814923,18.75,T&S UK - Subsistence
BEIS,UKRI - AHRC,14/09/2020,Unspecified,Balance Sheet,HM Revenue & Customs,98802561,60045.38,NI Payable Salaries
BEIS,UKRI - AHRC,14/09/2020,Unspecified,Balance Sheet,HM Revenue & Customs,98802562,44589.07,PAYE Payable Salaries
BEIS,UKRI - AHRC,14/09/2020,Unspecified,Balance Sheet,HM Revenue & Customs,98802563,5407.00,Student Loans
BEIS,UKRI - AHRC,14/09/2020,Unspecified,Corporate Services,HM Revenue & Customs,98802564,1589.00,Apprenticeship Levy
BEIS,UKRI - AHRC,14/09/2020,Fees (Including College Members),New Programme Development,Unspecified,98815994,230.00,Fees (Including College Members)
BEIS,UKRI - AHRC,14/09/2020,Non-staff travel and subsistance,SMT,Unspecified,98815995,100.00,Non-staff travel and subsistance
BEIS,UKRI - AHRC,15/09/2020,Voluntary Deductions,Balance Sheet,Chargive,98802565,570.83,Voluntary Deductions
BEIS,UKRI - AHRC,15/09/2020,Union Deductions,Balance Sheet,PCS Union,98802567,67.43,Union Deductions
BEIS,UKRI - AHRC,15/09/2020,Unspecified,Balance Sheet,Unspecified,98802568,10386.21,Ees Pension Deductions - JSS
BEIS,UKRI - AHRC,15/09/2020,Unspecified,Balance Sheet,Unspecified,98802569,46277.26,Ers Pension Deductions - JSS
BEIS,UKRI - AHRC,15/09/2020,Unspecified,Balance Sheet,Scottish Widows,98802570,376.28,Partnership Pension Deductions
BEIS,UKRI - AHRC,15/09/2020,Unspecified,Balance Sheet,Cabinet Office RM Shared Services,98802571,13.06,Ers Pension Deductions - JSS
BEIS,UKRI - AHRC,15/09/2020,Unspecified,Balance Sheet,Cabinet Office RM Shared Services,98802572,6758.89,Ees Pension Deductions - MyCSP
BEIS,UKRI - AHRC,15/09/2020,Unspecified,Balance Sheet,Cabinet Office RM Shared Services,98802573,33915.64,Ers Pension Deductions - MyCSP
BEIS,UKRI - AHRC,15/09/2020,Ees Pension Deductions - MRC,Balance Sheet,UKRI - Medical Research Council,98802574,136.75,Ees Pension Deductions - MRC
BEIS,UKRI - AHRC,15/09/2020,Ers Pension Deductions - MRC,Balance Sheet,UKRI - Medical Research Council,98802575,315.59,Ers Pension Deductions - MRC
BEIS,UKRI - AHRC,15/09/2020,Nursery Deductions,Balance Sheet,UKRI - Engineering & Physical Sciences Research Council,98802576,620.00,Nursery Deductions
BEIS,UKRI - AHRC,15/09/2020,Research Grant Expenditure,RCUK Global Challenges Research Fund (RCUK GCRF),UKRI - Natural Environment Research Council,98811372,17474.25,Research Grant Expenditure
BEIS,UKRI - AHRC,15/09/2020,Research Grant Expenditure,RCUK Global Challenges Research Fund (RCUK GCRF),UKRI - Natural Environment Research Council,98811375,227515.25,Research Grant Expenditure
BEIS,UKRI - AHRC,15/09/2020,Research Grant Expenditure,RCUK Global Challenges Research Fund (RCUK GCRF),UKRI - Natural Environment Research Council,98813820,180363.17,Research Grant Expenditure
BEIS,UKRI - AHRC,15/09/2020,Research Grant Expenditure,RCUK Global Challenges Research Fund (RCUK GCRF),UKRI - Natural Environment Research Council,98813863,87617.44,Research Grant Expenditure
BEIS,UKRI - AHRC,15/09/2020,Recruitment Costs,Corporate Services,Agenda Resource Management Ltd,98815028,137.25,Recruitment Costs
BEIS,UKRI - AHRC,15/09/2020,Recruitment Costs,Corporate Services,Agenda Resource Management Ltd,98815028,156.06,Recruitment Costs
BEIS,UKRI - AHRC,15/09/2020,Recruitment Costs,Corporate Services,Agenda Resource Management Ltd,98815031,164.76,Recruitment Costs
BEIS,UKRI - AHRC,15/09/2020,Recruitment Costs,Corporate Services,Agenda Resource Management Ltd,98815031,156.27,Recruitment Costs
BEIS,UKRI - AHRC,15/09/2020,Research Grant Expenditure,NPIF Research Talent (RCUK Innovation Fellowships),UKRI - Engineering & Physical Sciences Research Council,98815877,12545.86,Research Grant Expenditure
BEIS,UKRI - AHRC,15/09/2020,Research Grant Expenditure,NPIF Research Talent (RCUK Innovation Fellowships),UKRI - Engineering & Physical Sciences Research Council,98815884,14050.85,Research Grant Expenditure
BEIS,UKRI - AHRC,15/09/2020,Research Grant Expenditure,NPIF Research Talent (RCUK Innovation Fellowships),UKRI - Engineering & Physical Sciences Research Council,98815886,21866.34,Research Grant Expenditure
BEIS,UKRI - AHRC,15/09/2020,Research Grant Expenditure,NPIF Research Talent (RCUK Innovation Fellowships),UKRI - Engineering & Physical Sciences Research Council,98815888,7120.57,Research Grant Expenditure
BEIS,UKRI - AHRC,15/09/2020,Other Programme Costs,RCUK Other,UKRI - Engineering & Physical Sciences Research Council,98815890,241784.39,Other Programme Costs
BEIS,UKRI - AHRC,15/09/2020,Other Programme Costs,Commissioned Research,UKRI - Engineering & Physical Sciences Research Council,98815897,3750.00,Other Programme Costs
BEIS,UKRI - AHRC,15/09/2020,Fees (Including College Members),New Programme Development,Unspecified,98816308,170.00,Fees (Including College Members)
BEIS,UKRI - AHRC,15/09/2020,Research Grant Expenditure,Digital Economy,UKRI - Engineering & Physical Sciences Research Council,98818100,31316.03,Research Grant Expenditure
BEIS,UKRI - AHRC,16/09/2020,Financial Services,Corporate Services,CCI Credit Management Ltd,98816536,1.32,Financial Services
BEIS,UKRI - AHRC,17/09/2020,Conferences & Seminars,SMT,Westminster Forum Projects Ltd,98816802,129.60,Conferences & Seminars
BEIS,UKRI - AHRC,17/09/2020,Conferences & Seminars,SMT,Westminster Forum Projects Ltd,98816802,-3.60,Conferences & Seminars
BEIS,UKRI - AHRC,17/09/2020,Conferences & Seminars,SMT,Westminster Forum Projects Ltd,98816802,-18.00,Conferences & Seminars
BEIS,UKRI - AHRC,17/09/2020,T&S UK - Other Charges,Operations,Unspecified,98816990,23.98,T&S UK - Other Charges
BEIS,UKRI - AHRC,18/09/2020,Research Grant Expenditure,Research Grants,University of Oxford,98813901,46025.33,Research Grant Expenditure
BEIS,UKRI - AHRC,18/09/2020,Research Grant Expenditure,Research Grants,Historic Environment Scotland (GRANT),98813902,36152.45,Research Grant Expenditure
BEIS,UKRI - AHRC,18/09/2020,Research Grant Expenditure,Research Grants,University of Southampton GRANT,98813903,44484.45,Research Grant Expenditure
BEIS,UKRI - AHRC,18/09/2020,Research Grant Expenditure,Global Uncertainties Programme,University of Oxford,98813904,34873.46,Research Grant Expenditure
BEIS,UKRI - AHRC,18/09/2020,Research Grant Expenditure,Global Uncertainties Programme,Queen's University Belfast GRANT,98813905,41279.26,Research Grant Expenditure
BEIS,UKRI - AHRC,18/09/2020,Research Grant Expenditure,Research Grants,University of East Anglia,98813906,47164.44,Research Grant Expenditure
BEIS,UKRI - AHRC,18/09/2020,Research Grant Expenditure,Research Grants,University of Liverpool,98813907,40449.77,Research Grant Expenditure
BEIS,UKRI - AHRC,18/09/2020,Research Grant Expenditure,Research Grants,University of Glasgow,98813908,41074.17,Research Grant Expenditure
BEIS,UKRI - AHRC,18/09/2020,Research Grant Expenditure,Research Grants,University of Kent,98813909,22309.00,Research Grant Expenditure
BEIS,UKRI - AHRC,18/09/2020,Research Grant Expenditure,Research Grants,University of Leicester,98813910,51598.22,Research Grant Expenditure
BEIS,UKRI - AHRC,18/09/2020,Research Grant Expenditure,Research Grants,University of Sussex,98813911,43858.85,Research Grant Expenditure
BEIS,UKRI - AHRC,18/09/2020,Research Grant Expenditure,Design: Strategic Initiatives,Lancaster University,98813912,334307.11,Research Grant Expenditure
BEIS,UKRI - AHRC,18/09/2020,Research Grant Expenditure,Research Grants,Royal College of Music,98813913,82870.32,Research Grant Expenditure
BEIS,UKRI - AHRC,18/09/2020,Research Grant Expenditure,Research Grants,Manchester Metropolitan University,98813914,89840.08,Research Grant Expenditure
BEIS,UKRI - AHRC,18/09/2020,Research Grant Expenditure,Research Grants,Aberystwyth University,98813915,49215.76,Research Grant Expenditure
BEIS,UKRI - AHRC,18/09/2020,Research Grant Expenditure,Research Grants,University of Nottingham,98813916,72289.51,Research Grant Expenditure
BEIS,UKRI - AHRC,18/09/2020,Research Grant Expenditure,Research Grants,"SOAS, University of London",98813917,66524.04,Research Grant Expenditure
BEIS,UKRI - AHRC,18/09/2020,Research Grant Expenditure,Research Grants,University of the West of England,98813918,16573.27,Research Grant Expenditure
BEIS,UKRI - AHRC,18/09/2020,Research Grant Expenditure,Research Grants,University of York,98813919,58672.38,Research Grant Expenditure
BEIS,UKRI - AHRC,18/09/2020,Research Grant Expenditure,Research Grants,Birmingham City University,98813920,42903.00,Research Grant Expenditure
BEIS,UKRI - AHRC,18/09/2020,Research Grant Expenditure,Research Grants,University of Liverpool,98813921,47974.13,Research Grant Expenditure
BEIS,UKRI - AHRC,18/09/2020,Research Grant Expenditure,Research Grants,University of Nottingham,98813922,54009.44,Research Grant Expenditure
BEIS,UKRI - AHRC,18/09/2020,Research Grant Expenditure,Research Grants,Keele University,98813923,62180.95,Research Grant Expenditure
BEIS,UKRI - AHRC,18/09/2020,Research Grant Expenditure,Research Grants,Cardiff University,98813924,24260.66,Research Grant Expenditure
BEIS,UKRI - AHRC,18/09/2020,Research Grant Expenditure,Research Grants,University of Glasgow,98813925,48050.85,Research Grant Expenditure
BEIS,UKRI - AHRC,18/09/2020,Research Grant Expenditure,Global Challenges Research Fund (GCRF),University of Leeds,98813926,37450.00,Research Grant Expenditure
BEIS,UKRI - AHRC,18/09/2020,Research Grant Expenditure,Global Challenges Research Fund (GCRF),University of Leeds,98813926,228659.92,Research Grant Expenditure
BEIS,UKRI - AHRC,18/09/2020,Research Grant Expenditure,Global Challenges Research Fund (GCRF),University of Nottingham,98813927,142581.82,Research Grant Expenditure
BEIS,UKRI - AHRC,18/09/2020,Research Grant Expenditure,Global Challenges Research Fund (GCRF),University College London,98813928,116270.84,Research Grant Expenditure
BEIS,UKRI - AHRC,18/09/2020,Research Grant Expenditure,Global Challenges Research Fund (GCRF),University of Liverpool,98813929,115289.03,Research Grant Expenditure
BEIS,UKRI - AHRC,18/09/2020,Research Grant Expenditure,Global Challenges Research Fund (GCRF),"SOAS, University of London",98813930,154824.40,Research Grant Expenditure
BEIS,UKRI - AHRC,18/09/2020,Research Grant Expenditure,RCUK Global Challenges Research Fund (RCUK GCRF),Goldsmiths College University of London,98813931,205502.00,Research Grant Expenditure
BEIS,UKRI - AHRC,18/09/2020,Research Grant Expenditure,RCUK Global Challenges Research Fund (RCUK GCRF),University of Huddersfield,98813932,267789.00,Research Grant Expenditure
BEIS,UKRI - AHRC,18/09/2020,Research Grant Expenditure,Research Grants,University of Durham,98813933,35083.91,Research Grant Expenditure
BEIS,UKRI - AHRC,18/09/2020,Research Grant Expenditure,Research Grants,University of Leicester,98813934,68939.02,Research Grant Expenditure
BEIS,UKRI - AHRC,18/09/2020,Research Grant Expenditure,Research Grants,University College London,98813935,63207.69,Research Grant Expenditure
BEIS,UKRI - AHRC,18/09/2020,Research Grant Expenditure,Research Grants,Goldsmiths College University of London,98813936,63128.10,Research Grant Expenditure
BEIS,UKRI - AHRC,18/09/2020,Research Grant Expenditure,Research Grants,University College London,98813937,34375.74,Research Grant Expenditure
BEIS,UKRI - AHRC,18/09/2020,Research Grant Expenditure,Research Grants,University of Durham,98813938,63399.22,Research Grant Expenditure
BEIS,UKRI - AHRC,18/09/2020,Research Grant Expenditure,Research Grants,University of East Anglia,98813939,33109.83,Research Grant Expenditure
BEIS,UKRI - AHRC,18/09/2020,Research Grant Expenditure,Research Grants,London School of Economics and Political Science,98813940,51876.59,Research Grant Expenditure
BEIS,UKRI - AHRC,18/09/2020,Research Grant Expenditure,Research Grants,Oxford Brookes University,98813941,53665.17,Research Grant Expenditure
BEIS,UKRI - AHRC,18/09/2020,Research Grant Expenditure,Research Grants,University of Surrey,98813942,34888.44,Research Grant Expenditure
BEIS,UKRI - AHRC,18/09/2020,Research Grant Expenditure,Research Grants,University of Glasgow,98813943,56977.45,Research Grant Expenditure
BEIS,UKRI - AHRC,18/09/2020,Research Grant Expenditure,Research Grants,University of Newcastle Upon Tyne,98813944,54430.39,Research Grant Expenditure
BEIS,UKRI - AHRC,18/09/2020,Research Grant Expenditure,Research Grants,Manchester Metropolitan University,98813945,22020.37,Research Grant Expenditure
BEIS,UKRI - AHRC,18/09/2020,Research Grant Expenditure,Care for the Future,University of Exeter,98813946,23676.32,Research Grant Expenditure
BEIS,UKRI - AHRC,18/09/2020,Research Grant Expenditure,JPI Cultural Heritage,University College London,98813947,8195.70,Research Grant Expenditure
BEIS,UKRI - AHRC,18/09/2020,Research Grant Expenditure,JPI Cultural Heritage,University of Oxford,98813948,11182.82,Research Grant Expenditure
BEIS,UKRI - AHRC,18/09/2020,Research Grant Expenditure,JPI Cultural Heritage,De Montfort University,98813949,13437.11,Research Grant Expenditure
BEIS,UKRI - AHRC,18/09/2020,Research Grant Expenditure,Research Grants,University of Strathclyde,98813950,54983.50,Research Grant Expenditure
BEIS,UKRI - AHRC,18/09/2020,Research Grant Expenditure,Research Grants,"Royal Holloway, University of London",98813951,33316.02,Research Grant Expenditure
BEIS,UKRI - AHRC,18/09/2020,Research Grant Expenditure,Research Grants,University of Westminster,98813952,40335.40,Research Grant Expenditure
BEIS,UKRI - AHRC,18/09/2020,Research Grant Expenditure,Research Grants,University of the Arts London,98813953,45240.68,Research Grant Expenditure
BEIS,UKRI - AHRC,18/09/2020,Research Grant Expenditure,Research Grants,The University of Manchester,98813954,58862.46,Research Grant Expenditure
BEIS,UKRI - AHRC,18/09/2020,Research Grant Expenditure,JPI Cultural Heritage,The Open University,98813955,13364.58,Research Grant Expenditure
BEIS,UKRI - AHRC,18/09/2020,Research Grant Expenditure,Research Grants,University of Reading,98813956,67688.88,Research Grant Expenditure
BEIS,UKRI - AHRC,18/09/2020,Research Grant Expenditure,JPI Cultural Heritage,University of Warwick,98813957,20556.64,Research Grant Expenditure
BEIS,UKRI - AHRC,18/09/2020,Research Grant Expenditure,Networks & Workshops,Arts University Bournemouth,98813958,3029.80,Research Grant Expenditure
BEIS,UKRI - AHRC,18/09/2020,Research Grant Expenditure,Networks & Workshops,Queen's University Belfast GRANT,98813959,6037.69,Research Grant Expenditure
BEIS,UKRI - AHRC,18/09/2020,Research Grant Expenditure,Research Grants,University of Exeter,98813960,23102.00,Research Grant Expenditure
BEIS,UKRI - AHRC,18/09/2020,Research Grant Expenditure,Networks & Workshops,Birmingham City University,98813961,4123.86,Research Grant Expenditure
BEIS,UKRI - AHRC,18/09/2020,Research Grant Expenditure,Research Grants,The University of Manchester,98813962,67401.19,Research Grant Expenditure
BEIS,UKRI - AHRC,18/09/2020,Research Grant Expenditure,Research Grants,University of Warwick,98813963,57524.58,Research Grant Expenditure
BEIS,UKRI - AHRC,18/09/2020,Research Grant Expenditure,Research Grants,The Royal Central School of Speech and Drama,98813964,48348.28,Research Grant Expenditure
BEIS,UKRI - AHRC,18/09/2020,Research Grant Expenditure,Research Grants,Queen's University Belfast GRANT,98813965,12109.25,Research Grant Expenditure
BEIS,UKRI - AHRC,18/09/2020,Research Grant Expenditure,Networks & Workshops,University of Leeds,98813966,4332.66,Research Grant Expenditure
BEIS,UKRI - AHRC,18/09/2020,Research Grant Expenditure,Research Grants,University of Liverpool,98813967,48561.55,Research Grant Expenditure
BEIS,UKRI - AHRC,18/09/2020,Research Grant Expenditure,Research Grants,University of Newcastle Upon Tyne,98813968,71783.30,Research Grant Expenditure
BEIS,UKRI - AHRC,18/09/2020,Research Grant Expenditure,Research Grants,Queen Mary University of London,98813969,33542.11,Research Grant Expenditure
BEIS,UKRI - AHRC,18/09/2020,Research Grant Expenditure,Research Grants,University of Liverpool,98813970,22013.65,Research Grant Expenditure
BEIS,UKRI - AHRC,18/09/2020,Research Grant Expenditure,Research Grants,King's College London,98813971,65802.91,Research Grant Expenditure
BEIS,UKRI - AHRC,18/09/2020,Research Grant Expenditure,Research Grants,University of Sussex,98813972,49996.12,Research Grant Expenditure
BEIS,UKRI - AHRC,18/09/2020,Research Grant Expenditure,Research Grants,University of Southampton GRANT,98813973,66811.50,Research Grant Expenditure
BEIS,UKRI - AHRC,18/09/2020,Research Grant Expenditure,Research Grants,University of Reading,98813974,56174.01,Research Grant Expenditure
BEIS,UKRI - AHRC,18/09/2020,Research Grant Expenditure,Networks & Workshops,Kingston University,98813975,4543.40,Research Grant Expenditure
BEIS,UKRI - AHRC,18/09/2020,Research Grant Expenditure,RCUK Newton Programme,University of Nottingham,98813976,39434.40,Research Grant Expenditure
BEIS,UKRI - AHRC,18/09/2020,Research Grant Expenditure,Research Grants,The University of Manchester,98813977,18932.89,Research Grant Expenditure
BEIS,UKRI - AHRC,18/09/2020,Research Grant Expenditure,Research Grants,Birkbeck College,98813978,66891.95,Research Grant Expenditure
BEIS,UKRI - AHRC,18/09/2020,Research Grant Expenditure,Research Grants,University of East Anglia,98813979,34726.75,Research Grant Expenditure
BEIS,UKRI - AHRC,18/09/2020,Research Grant Expenditure,Research Grants,University of Chester,98813980,37921.09,Research Grant Expenditure
BEIS,UKRI - AHRC,18/09/2020,Research Grant Expenditure,Newton Programme,Loughborough University,98813981,18472.60,Research Grant Expenditure
BEIS,UKRI - AHRC,18/09/2020,Research Grant Expenditure,Newton Programme,Lancaster University,98813982,16577.38,Research Grant Expenditure
BEIS,UKRI - AHRC,18/09/2020,Research Grant Expenditure,Newton Programme,Brunel University London,98813983,18215.21,Research Grant Expenditure
BEIS,UKRI - AHRC,18/09/2020,Research Grant Expenditure,Newton Programme,University College London,98813984,25394.55,Research Grant Expenditure
BEIS,UKRI - AHRC,18/09/2020,Research Grant Expenditure,Newton Programme,Liverpool John Moores University,98813985,16618.94,Research Grant Expenditure
BEIS,UKRI - AHRC,18/09/2020,Research Grant Expenditure,Research Grants,The University of Manchester,98813986,45614.39,Research Grant Expenditure
BEIS,UKRI - AHRC,18/09/2020,Research Grant Expenditure,Research Grants,University of Kent,98813987,76658.05,Research Grant Expenditure
BEIS,UKRI - AHRC,18/09/2020,Research Grant Expenditure,Research Grants,University of Wales Trinity St David,98813988,63328.35,Research Grant Expenditure
BEIS,UKRI - AHRC,18/09/2020,Research Grant Expenditure,Research Grants,University of Bristol GRANT,98813989,43291.28,Research Grant Expenditure
BEIS,UKRI - AHRC,18/09/2020,Research Grant Expenditure,Research Grants,UNIVERSITY OF ULSTER,98813990,26584.25,Research Grant Expenditure
BEIS,UKRI - AHRC,18/09/2020,Research Grant Expenditure,Research Grants,University of Oxford,98813991,80794.04,Research Grant Expenditure
BEIS,UKRI - AHRC,18/09/2020,Research Grant Expenditure,Industrial Strategy Challenge Fund (ISCF) - Creative Clusters,NESTA,98813992,346346.80,Research Grant Expenditure
BEIS,UKRI - AHRC,18/09/2020,Research Grant Expenditure,Research Grants,The University of Manchester,98813993,67869.47,Research Grant Expenditure
BEIS,UKRI - AHRC,18/09/2020,Research Grant Expenditure,Research Grants,University of Oxford,98813994,40747.86,Research Grant Expenditure
BEIS,UKRI - AHRC,18/09/2020,Research Grant Expenditure,Research Grants,University of the Arts London,98813995,32186.54,Research Grant Expenditure
BEIS,UKRI - AHRC,18/09/2020,Research Grant Expenditure,Research Grants,University of Sussex,98813996,55093.00,Research Grant Expenditure
BEIS,UKRI - AHRC,18/09/2020,Research Grant Expenditure,Research Grants,Birkbeck College,98813997,20394.13,Research Grant Expenditure
BEIS,UKRI - AHRC,18/09/2020,Research Grant Expenditure,Networks & Workshops,Birmingham City University,98813998,3405.08,Research Grant Expenditure
BEIS,UKRI - AHRC,18/09/2020,Research Grant Expenditure,Research Grants,University of Oxford,98813999,57288.97,Research Grant Expenditure
BEIS,UKRI - AHRC,18/09/2020,Research Grant Expenditure,Research Grants,University of Newcastle Upon Tyne,98814000,65097.00,Research Grant Expenditure
BEIS,UKRI - AHRC,18/09/2020,Research Grant Expenditure,Research Grants,University of Exeter,98814001,52868.86,Research Grant Expenditure
BEIS,UKRI - AHRC,18/09/2020,Research Grant Expenditure,Newton Programme,University of Leeds,98814002,16680.08,Research Grant Expenditure
BEIS,UKRI - AHRC,18/09/2020,Research Grant Expenditure,JPI Cultural Heritage,University of Hull,98814003,11282.57,Research Grant Expenditure
BEIS,UKRI - AHRC,18/09/2020,Research Grant Expenditure,JPI Cultural Heritage,University of Lincoln,98814004,9822.08,Research Grant Expenditure
BEIS,UKRI - AHRC,18/09/2020,Research Grant Expenditure,Newton Programme,University of Salford,98814005,15628.71,Research Grant Expenditure
BEIS,UKRI - AHRC,18/09/2020,Research Grant Expenditure,JPI Cultural Heritage,University of Bradford,98814006,20367.91,Research Grant Expenditure
BEIS,UKRI - AHRC,18/09/2020,Research Grant Expenditure,Audience of the Future (ISCF 2),The National Film & Television School,98814007,482614.98,Research Grant Expenditure
BEIS,UKRI - AHRC,18/09/2020,Research Grant Expenditure,Industrial Strategy Challenge Fund (ISCF) - Creative Clusters,University of Edinburgh,98814008,433571.35,Research Grant Expenditure
BEIS,UKRI - AHRC,18/09/2020,Research Grant Expenditure,Industrial Strategy Challenge Fund (ISCF) - Creative Clusters,University of Leeds,98814009,410045.28,Research Grant Expenditure
BEIS,UKRI - AHRC,18/09/2020,Research Grant Expenditure,Industrial Strategy Challenge Fund (ISCF) - Creative Clusters,University of the Arts London,98814010,414307.55,Research Grant Expenditure
BEIS,UKRI - AHRC,18/09/2020,Research Grant Expenditure,Industrial Strategy Challenge Fund (ISCF) - Creative Clusters,UNIVERSITY OF ULSTER,98814011,417409.39,Research Grant Expenditure
BEIS,UKRI - AHRC,18/09/2020,Research Grant Expenditure,Industrial Strategy Challenge Fund (ISCF) - Creative Clusters,Abertay University,98814012,389722.54,Research Grant Expenditure
BEIS,UKRI - AHRC,18/09/2020,Research Grant Expenditure,Industrial Strategy Challenge Fund (ISCF) - Creative Clusters,University of the West of England,98814013,418733.20,Research Grant Expenditure
BEIS,UKRI - AHRC,18/09/2020,Research Grant Expenditure,Industrial Strategy Challenge Fund (ISCF) - Creative Clusters,University of York,98814014,411455.33,Research Grant Expenditure
BEIS,UKRI - AHRC,18/09/2020,Research Grant Expenditure,Industrial Strategy Challenge Fund (ISCF) - Creative Clusters,Cardiff University,98814015,400272.58,Research Grant Expenditure
BEIS,UKRI - AHRC,18/09/2020,Research Grant Expenditure,Industrial Strategy Challenge Fund (ISCF) - Creative Clusters,"Royal Holloway, University of London",98814016,247764.32,Research Grant Expenditure
BEIS,UKRI - AHRC,18/09/2020,Research Grant Expenditure,Industrial Strategy Challenge Fund (ISCF) - Creative Clusters,"Royal Holloway, University of London",98814016,417435.83,Research Grant Expenditure
BEIS,UKRI - AHRC,18/09/2020,Research Grant Expenditure,Newton Programme,Nottingham Trent University,98814017,21282.74,Research Grant Expenditure
BEIS,UKRI - AHRC,18/09/2020,Research Grant Expenditure,Global Challenges Research Fund (GCRF),King's College London,98814018,14930.44,Research Grant Expenditure
BEIS,UKRI - AHRC,18/09/2020,Research Grant Expenditure,Global Challenges Research Fund (GCRF),Goldsmiths College University of London,98814019,107.71,Research Grant Expenditure
BEIS,UKRI - AHRC,18/09/2020,Research Grant Expenditure,Networks & Workshops,University of Stirling,98814020,7820.25,Research Grant Expenditure
BEIS,UKRI - AHRC,18/09/2020,Research Grant Expenditure,Networks & Workshops,University of Birmingham GRANT,98814021,3134.25,Research Grant Expenditure
BEIS,UKRI - AHRC,18/09/2020,Research Grant Expenditure,Networks & Workshops,Coventry University,98814022,3882.09,Research Grant Expenditure
BEIS,UKRI - AHRC,18/09/2020,Research Grant Expenditure,Newton Programme,University of Durham,98814023,27129.03,Research Grant Expenditure
BEIS,UKRI - AHRC,18/09/2020,Research Grant Expenditure,Newton Programme,University of Durham,98814024,24214.19,Research Grant Expenditure
BEIS,UKRI - AHRC,18/09/2020,Research Grant Expenditure,Research Grants,University of Stirling,98814025,35232.77,Research Grant Expenditure
BEIS,UKRI - AHRC,18/09/2020,Research Grant Expenditure,Research Grants,University of Oxford,98814026,25198.89,Research Grant Expenditure
BEIS,UKRI - AHRC,18/09/2020,Research Grant Expenditure,Research Grants,University of the Arts London,98814027,63810.77,Research Grant Expenditure
BEIS,UKRI - AHRC,18/09/2020,Research Grant Expenditure,Research Grants,University of Exeter,98814028,39876.73,Research Grant Expenditure
BEIS,UKRI - AHRC,18/09/2020,Research Grant Expenditure,Newton Programme,Oxford Brookes University,98814029,16864.38,Research Grant Expenditure
BEIS,UKRI - AHRC,18/09/2020,Research Grant Expenditure,Research Grants,University of Newcastle Upon Tyne,98814030,50562.45,Research Grant Expenditure
BEIS,UKRI - AHRC,18/09/2020,Research Grant Expenditure,Research Grants,University of Kent,98814031,60496.60,Research Grant Expenditure
BEIS,UKRI - AHRC,18/09/2020,Research Grant Expenditure,Research Grants,University of York,98814032,74889.88,Research Grant Expenditure
BEIS,UKRI - AHRC,18/09/2020,Research Grant Expenditure,Research Grants,Northumbria University,98814033,25406.14,Research Grant Expenditure
BEIS,UKRI - AHRC,18/09/2020,Research Grant Expenditure,Newton Programme,University of Liverpool,98814034,21649.26,Research Grant Expenditure
BEIS,UKRI - AHRC,18/09/2020,Research Grant Expenditure,Research Grants,Bournemouth University GRANT,98814035,19130.73,Research Grant Expenditure
BEIS,UKRI - AHRC,18/09/2020,Research Grant Expenditure,Living with Machines (SPF),The Alan Turing Institute,98814036,503754.62,Research Grant Expenditure
BEIS,UKRI - AHRC,18/09/2020,Research Grant Expenditure,Newton Programme,Imperial College London,98814037,16882.13,Research Grant Expenditure
BEIS,UKRI - AHRC,18/09/2020,Research Grant Expenditure,Networks & Workshops,Loughborough University,98814038,4768.84,Research Grant Expenditure
BEIS,UKRI - AHRC,18/09/2020,Research Grant Expenditure,Networks & Workshops,University of Southampton GRANT,98814039,4489.45,Research Grant Expenditure
BEIS,UKRI - AHRC,18/09/2020,Research Grant Expenditure,Networks & Workshops,University of Kent,98814040,4569.88,Research Grant Expenditure
BEIS,UKRI - AHRC,18/09/2020,Research Grant Expenditure,RCUK Global Challenges Research Fund (RCUK GCRF),London School of Economics and Political Science,98814041,755339.10,Research Grant Expenditure
BEIS,UKRI - AHRC,18/09/2020,Research Grant Expenditure,Research Grants,Lancaster University,98814042,54723.42,Research Grant Expenditure
BEIS,UKRI - AHRC,18/09/2020,Research Grant Expenditure,Networks & Workshops,University of East Anglia,98814043,4957.19,Research Grant Expenditure
BEIS,UKRI - AHRC,18/09/2020,Research Grant Expenditure,Newton Programme,King's College London,98814044,27896.44,Research Grant Expenditure
BEIS,UKRI - AHRC,18/09/2020,Research Grant Expenditure,Newton Programme,University of Leeds,98814045,26739.58,Research Grant Expenditure
BEIS,UKRI - AHRC,18/09/2020,Research Grant Expenditure,Newton Programme,University of Reading,98814046,24007.87,Research Grant Expenditure
BEIS,UKRI - AHRC,18/09/2020,Research Grant Expenditure,JPI Cultural Heritage,University of Leeds,98814047,13833.53,Research Grant Expenditure
BEIS,UKRI - AHRC,18/09/2020,Research Grant Expenditure,Audience of the Future (ISCF 2),Digital Catapult Services Ltd,98814048,108778.37,Research Grant Expenditure
BEIS,UKRI - AHRC,18/09/2020,Research Grant Expenditure,Research Grants,Lancaster University,98814049,51246.91,Research Grant Expenditure
BEIS,UKRI - AHRC,18/09/2020,Research Grant Expenditure,Research Grants,University College London,98814050,60900.28,Research Grant Expenditure
BEIS,UKRI - AHRC,18/09/2020,Research Grant Expenditure,Research Grants,Museum of London Archaeology,98814051,43041.24,Research Grant Expenditure
BEIS,UKRI - AHRC,18/09/2020,Research Grant Expenditure,RCUK Global Challenges Research Fund (RCUK GCRF),University of Sussex,98814052,63492.10,Research Grant Expenditure
BEIS,UKRI - AHRC,18/09/2020,Research Grant Expenditure,Research Grants,Queen's University Belfast GRANT,98814053,29220.15,Research Grant Expenditure
BEIS,UKRI - AHRC,18/09/2020,Research Grant Expenditure,Research Grants,Queen's University Belfast GRANT,98814053,29220.15,Research Grant Expenditure
BEIS,UKRI - AHRC,18/09/2020,Research Grant Expenditure,Research Grants,Queen's University Belfast GRANT,98814053,34923.52,Research Grant Expenditure
BEIS,UKRI - AHRC,18/09/2020,Research Grant Expenditure,Research Grants,Queen's University Belfast GRANT,98814053,39927.99,Research Grant Expenditure
BEIS,UKRI - AHRC,18/09/2020,Research Grant Expenditure,Research Grants,Queen's University Belfast GRANT,98814053,29220.15,Research Grant Expenditure
BEIS,UKRI - AHRC,18/09/2020,Research Grant Expenditure,Research Grants,Manchester Metropolitan University,98814054,51982.25,Research Grant Expenditure
BEIS,UKRI - AHRC,18/09/2020,Research Grant Expenditure,Research Grants,University of Oxford,98814055,71720.36,Research Grant Expenditure
BEIS,UKRI - AHRC,18/09/2020,Research Grant Expenditure,Research Grants,University of Leeds,98814056,68684.16,Research Grant Expenditure
BEIS,UKRI - AHRC,18/09/2020,Research Grant Expenditure,Research Grants,Birmingham City University,98814057,15888.77,Research Grant Expenditure
BEIS,UKRI - AHRC,18/09/2020,Research Grant Expenditure,Research Grants,Cardiff University,98814058,56605.19,Research Grant Expenditure
BEIS,UKRI - AHRC,18/09/2020,Research Grant Expenditure,Research Grants,University of Exeter,98814059,30928.90,Research Grant Expenditure
BEIS,UKRI - AHRC,18/09/2020,Research Grant Expenditure,Research Grants,King's College London,98814060,66532.72,Research Grant Expenditure
BEIS,UKRI - AHRC,18/09/2020,Research Grant Expenditure,Research Grants,University of Oxford,98814061,45778.75,Research Grant Expenditure
BEIS,UKRI - AHRC,18/09/2020,Research Grant Expenditure,Networks & Workshops,University of Northampton,98814062,4018.33,Research Grant Expenditure
BEIS,UKRI - AHRC,18/09/2020,Research Grant Expenditure,Research Grants,University of Sheffield,98814063,22421.29,Research Grant Expenditure
BEIS,UKRI - AHRC,18/09/2020,Research Grant Expenditure,Research Grants,University of Oxford,98814064,71990.78,Research Grant Expenditure
BEIS,UKRI - AHRC,18/09/2020,Research Grant Expenditure,Research Grants,University of Bristol GRANT,98814065,64544.86,Research Grant Expenditure
BEIS,UKRI - AHRC,18/09/2020,Research Grant Expenditure,Research Grants,University of Reading,98814066,66583.86,Research Grant Expenditure
BEIS,UKRI - AHRC,18/09/2020,Research Grant Expenditure,Networks & Workshops,University of Exeter,98814067,3806.37,Research Grant Expenditure
BEIS,UKRI - AHRC,18/09/2020,Research Grant Expenditure,Newton Programme,"City, University of London",98814068,27347.82,Research Grant Expenditure
BEIS,UKRI - AHRC,18/09/2020,Research Grant Expenditure,Networks & Workshops,University of Edinburgh,98814069,4501.94,Research Grant Expenditure
BEIS,UKRI - AHRC,18/09/2020,Research Grant Expenditure,Networks & Workshops,University of Warwick,98814070,4558.56,Research Grant Expenditure
BEIS,UKRI - AHRC,18/09/2020,Research Grant Expenditure,Networks & Workshops,The University of Manchester,98814071,3316.76,Research Grant Expenditure
BEIS,UKRI - AHRC,18/09/2020,Research Grant Expenditure,Networks & Workshops,University of Reading,98814072,6086.83,Research Grant Expenditure
BEIS,UKRI - AHRC,18/09/2020,Research Grant Expenditure,Networks & Workshops,University of Hull,98814073,5840.27,Research Grant Expenditure
BEIS,UKRI - AHRC,18/09/2020,Research Grant Expenditure,Networks & Workshops,Nottingham Trent University,98814074,4570.60,Research Grant Expenditure
BEIS,UKRI - AHRC,18/09/2020,Research Grant Expenditure,Networks & Workshops,University of Liverpool,98814075,5847.01,Research Grant Expenditure
BEIS,UKRI - AHRC,18/09/2020,Research Grant Expenditure,Networks & Workshops,University College London,98814076,4898.50,Research Grant Expenditure
BEIS,UKRI - AHRC,18/09/2020,Research Grant Expenditure,Networks & Workshops,University of Warwick,98814077,4895.55,Research Grant Expenditure
BEIS,UKRI - AHRC,18/09/2020,Research Grant Expenditure,Networks & Workshops,Courtauld Institute of Art,98814078,6661.10,Research Grant Expenditure
BEIS,UKRI - AHRC,18/09/2020,Research Grant Expenditure,Networks & Workshops,University of Warwick,98814079,4571.96,Research Grant Expenditure
BEIS,UKRI - AHRC,18/09/2020,Research Grant Expenditure,Networks & Workshops,University of Hull,98814080,4958.02,Research Grant Expenditure
BEIS,UKRI - AHRC,18/09/2020,Research Grant Expenditure,Research Grants,Anglia Ruskin University,98814081,29020.59,Research Grant Expenditure
BEIS,UKRI - AHRC,18/09/2020,Research Grant Expenditure,Research Grants,Guildhall School of Music & Drama,98814082,69428.54,Research Grant Expenditure
BEIS,UKRI - AHRC,18/09/2020,Research Grant Expenditure,Research Grants,The University of Manchester,98814083,75616.77,Research Grant Expenditure
BEIS,UKRI - AHRC,18/09/2020,Research Grant Expenditure,Cultural Values Project,University of Leeds,98814084,100809.87,Research Grant Expenditure
BEIS,UKRI - AHRC,18/09/2020,Research Grant Expenditure,Research Grants,University of York,98814085,72454.92,Research Grant Expenditure
BEIS,UKRI - AHRC,18/09/2020,Research Grant Expenditure,Research Grants,University of Oxford,98814086,31574.90,Research Grant Expenditure
BEIS,UKRI - AHRC,18/09/2020,Research Grant Expenditure,Research Grants,The University of Manchester,98814087,17086.75,Research Grant Expenditure
BEIS,UKRI - AHRC,18/09/2020,Research Grant Expenditure,Research Grants,University of Liverpool,98814088,43857.01,Research Grant Expenditure
BEIS,UKRI - AHRC,18/09/2020,Research Grant Expenditure,Research Grants,The University of Manchester,98814089,77522.72,Research Grant Expenditure
BEIS,UKRI - AHRC,18/09/2020,Research Grant Expenditure,Research Grants,University of Southampton GRANT,98814090,55136.32,Research Grant Expenditure
BEIS,UKRI - AHRC,18/09/2020,Research Grant Expenditure,Research Grants,University of Liverpool,98814091,69659.94,Research Grant Expenditure
BEIS,UKRI - AHRC,18/09/2020,Research Grant Expenditure,Newton Programme,University of Bedfordshire,98814092,17318.53,Research Grant Expenditure
BEIS,UKRI - AHRC,18/09/2020,Research Grant Expenditure,Newton Programme,University of Exeter,98814093,9212.54,Research Grant Expenditure
BEIS,UKRI - AHRC,18/09/2020,Research Grant Expenditure,Newton Programme,University of Nottingham,98814094,12096.92,Research Grant Expenditure
BEIS,UKRI - AHRC,18/09/2020,Research Grant Expenditure,Research Grants,University of Durham,98814095,28214.80,Research Grant Expenditure
BEIS,UKRI - AHRC,18/09/2020,Research Grant Expenditure,Newton Programme,University of Sussex,98814096,11947.12,Research Grant Expenditure
BEIS,UKRI - AHRC,18/09/2020,Research Grant Expenditure,Networks & Workshops,University of Leeds,98814097,8089.98,Research Grant Expenditure
BEIS,UKRI - AHRC,18/09/2020,Research Grant Expenditure,Research Grants,The Open University,98814098,33736.59,Research Grant Expenditure
BEIS,UKRI - AHRC,18/09/2020,Research Grant Expenditure,Research Grants,The Open University,98814098,33736.59,Research Grant Expenditure
BEIS,UKRI - AHRC,18/09/2020,Research Grant Expenditure,Research Grants,University of Reading,98814099,64239.04,Research Grant Expenditure
BEIS,UKRI - AHRC,18/09/2020,Research Grant Expenditure,Research Grants,The University of Manchester,98814100,30311.54,Research Grant Expenditure
BEIS,UKRI - AHRC,18/09/2020,Research Grant Expenditure,Research Grants,Queen Mary University of London,98814101,37842.36,Research Grant Expenditure
BEIS,UKRI - AHRC,18/09/2020,Research Grant Expenditure,Networks & Workshops,Oxford Brookes University,98814102,5353.44,Research Grant Expenditure
BEIS,UKRI - AHRC,18/09/2020,Research Grant Expenditure,Research Grants,University of York,98814103,68263.38,Research Grant Expenditure
BEIS,UKRI - AHRC,18/09/2020,Research Grant Expenditure,Research Grants,University of Newcastle Upon Tyne,98814104,69702.78,Research Grant Expenditure
BEIS,UKRI - AHRC,18/09/2020,Research Grant Expenditure,Research Grants,Cardiff University,98814105,25195.40,Research Grant Expenditure
BEIS,UKRI - AHRC,18/09/2020,Research Grant Expenditure,Research Grants,Cardiff University,98814106,58387.45,Research Grant Expenditure
BEIS,UKRI - AHRC,18/09/2020,Research Grant Expenditure,Research Grants,University of Lincoln,98814107,12477.64,Research Grant Expenditure
BEIS,UKRI - AHRC,18/09/2020,Research Grant Expenditure,Networks & Workshops,Birmingham City University,98814108,8900.81,Research Grant Expenditure
BEIS,UKRI - AHRC,18/09/2020,Research Grant Expenditure,Networks & Workshops,"Royal Holloway, University of London",98814109,3049.19,Research Grant Expenditure
BEIS,UKRI - AHRC,18/09/2020,Research Grant Expenditure,Research Grants,University of Newcastle Upon Tyne,98814110,61754.43,Research Grant Expenditure
BEIS,UKRI - AHRC,18/09/2020,Research Grant Expenditure,Research Grants,University of Cambridge,98814111,55703.88,Research Grant Expenditure
BEIS,UKRI - AHRC,18/09/2020,Research Grant Expenditure,Research Grants,University of Oxford,98814112,45087.91,Research Grant Expenditure
BEIS,UKRI - AHRC,18/09/2020,Research Grant Expenditure,Research Grants,University of Glasgow,98814113,57249.20,Research Grant Expenditure
BEIS,UKRI - AHRC,18/09/2020,Research Grant Expenditure,Follow-on Fund,King's College London,98814114,0.01,Research Grant Expenditure
BEIS,UKRI - AHRC,18/09/2020,Research Grant Expenditure,Research Grants,University of Birmingham GRANT,98814115,20801.26,Research Grant Expenditure
BEIS,UKRI - AHRC,18/09/2020,Research Grant Expenditure,Research Grants,University of South Wales,98814116,31917.96,Research Grant Expenditure
BEIS,UKRI - AHRC,18/09/2020,Research Grant Expenditure,Research Grants,University of Leicester,98814117,76017.70,Research Grant Expenditure
BEIS,UKRI - AHRC,18/09/2020,Research Grant Expenditure,Research Grants,University of Oxford,98814118,52425.59,Research Grant Expenditure
BEIS,UKRI - AHRC,18/09/2020,Research Grant Expenditure,RCUK Global Challenges Research Fund (RCUK GCRF),University of Edinburgh,98814119,86053.17,Research Grant Expenditure
BEIS,UKRI - AHRC,18/09/2020,Research Grant Expenditure,RCUK Global Challenges Research Fund (RCUK GCRF),University of Sheffield,98814120,165.95,Research Grant Expenditure
BEIS,UKRI - AHRC,18/09/2020,Research Grant Expenditure,RCUK Global Challenges Research Fund (RCUK GCRF),University of Nottingham,98814121,233.91,Research Grant Expenditure
BEIS,UKRI - AHRC,18/09/2020,Research Grant Expenditure,RCUK Global Challenges Research Fund (RCUK GCRF),University College London,98814122,85937.04,Research Grant Expenditure
BEIS,UKRI - AHRC,18/09/2020,Research Grant Expenditure,Networks & Workshops,University of Aberdeen,98814123,6828.76,Research Grant Expenditure
BEIS,UKRI - AHRC,18/09/2020,Research Grant Expenditure,Commissioned Research,University of Nottingham,98814124,83042.11,Research Grant Expenditure
BEIS,UKRI - AHRC,18/09/2020,Research Grant Expenditure,RCUK Global Challenges Research Fund (RCUK GCRF),University of Birmingham GRANT,98814125,138483.42,Research Grant Expenditure
BEIS,UKRI - AHRC,18/09/2020,Research Grant Expenditure,RCUK Global Challenges Research Fund (RCUK GCRF),Aberystwyth University,98814126,115602.02,Research Grant Expenditure
BEIS,UKRI - AHRC,18/09/2020,Research Grant Expenditure,RCUK Global Challenges Research Fund (RCUK GCRF),University of Glasgow,98814127,134717.54,Research Grant Expenditure
BEIS,UKRI - AHRC,18/09/2020,Research Grant Expenditure,RCUK Global Challenges Research Fund (RCUK GCRF),University of Glasgow,98814127,134717.54,Research Grant Expenditure
BEIS,UKRI - AHRC,18/09/2020,Research Grant Expenditure,RCUK Global Challenges Research Fund (RCUK GCRF),Keele University,98814128,115567.96,Research Grant Expenditure
BEIS,UKRI - AHRC,18/09/2020,Research Grant Expenditure,RCUK Global Challenges Research Fund (RCUK GCRF),UNIVERSITY OF ULSTER,98814129,130423.69,Research Grant Expenditure
BEIS,UKRI - AHRC,18/09/2020,Research Grant Expenditure,RCUK Global Challenges Research Fund (RCUK GCRF),University of Birmingham GRANT,98814130,115318.03,Research Grant Expenditure
BEIS,UKRI - AHRC,18/09/2020,Research Grant Expenditure,Global Challenges Research Fund (GCRF),University of Essex,98814131,32483.78,Research Grant Expenditure
BEIS,UKRI - AHRC,18/09/2020,Research Grant Expenditure,RCUK Global Challenges Research Fund (RCUK GCRF),University of Lincoln,98814132,106712.16,Research Grant Expenditure
BEIS,UKRI - AHRC,18/09/2020,Research Grant Expenditure,Follow-on Fund,The Open University,98814133,19595.57,Research Grant Expenditure
BEIS,UKRI - AHRC,18/09/2020,Research Grant Expenditure,Follow-on Fund,The Open University,98814133,19595.57,Research Grant Expenditure
BEIS,UKRI - AHRC,18/09/2020,Research Grant Expenditure,Follow-on Fund,The Open University,98814133,19595.57,Research Grant Expenditure
BEIS,UKRI - AHRC,18/09/2020,Research Grant Expenditure,Global Challenges Research Fund (GCRF),University of Cambridge,98814134,21780.00,Research Grant Expenditure
BEIS,UKRI - AHRC,18/09/2020,Research Grant Expenditure,RCUK Global Challenges Research Fund (RCUK GCRF),University of Bath,98814135,113681.32,Research Grant Expenditure
BEIS,UKRI - AHRC,18/09/2020,Research Grant Expenditure,RCUK Global Challenges Research Fund (RCUK GCRF),The Open University,98814136,117301.90,Research Grant Expenditure
BEIS,UKRI - AHRC,18/09/2020,Research Grant Expenditure,RCUK Global Challenges Research Fund (RCUK GCRF),University of Exeter,98814137,116683.55,Research Grant Expenditure
BEIS,UKRI - AHRC,18/09/2020,Research Grant Expenditure,RCUK Global Challenges Research Fund (RCUK GCRF),International Institute For Environment And Development,98814138,233.53,Research Grant Expenditure
BEIS,UKRI - AHRC,18/09/2020,Research Grant Expenditure,Global Challenges Research Fund (GCRF),Bournemouth University,98814139,13452.08,Research Grant Expenditure
BEIS,UKRI - AHRC,18/09/2020,Research Grant Expenditure,Global Challenges Research Fund (GCRF),Cardiff University,98814140,25491.46,Research Grant Expenditure
BEIS,UKRI - AHRC,18/09/2020,Research Grant Expenditure,Networks & Workshops,University of Exeter,98814141,3961.55,Research Grant Expenditure
BEIS,UKRI - AHRC,18/09/2020,Research Grant Expenditure,Landscape Decisions (SPF),University of Central Lancashire,98814142,160.47,Research Grant Expenditure
BEIS,UKRI - AHRC,18/09/2020,Research Grant Expenditure,Landscape Decisions (SPF),University of Central Lancashire,98814142,160.47,Research Grant Expenditure
BEIS,UKRI - AHRC,18/09/2020,Research Grant Expenditure,Global Challenges Research Fund (GCRF),Lancaster University,98814143,27308.53,Research Grant Expenditure
BEIS,UKRI - AHRC,18/09/2020,Research Grant Expenditure,Global Challenges Research Fund (GCRF),Leeds Beckett University,98814144,31751.85,Research Grant Expenditure
BEIS,UKRI - AHRC,18/09/2020,Research Grant Expenditure,Global Challenges Research Fund (GCRF),Sheffield Hallam University,98814145,32448.85,Research Grant Expenditure
BEIS,UKRI - AHRC,18/09/2020,Research Grant Expenditure,Global Challenges Research Fund (GCRF),University of Sheffield,98814146,29489.42,Research Grant Expenditure
BEIS,UKRI - AHRC,18/09/2020,Research Grant Expenditure,Global Challenges Research Fund (GCRF),University of Sheffield,98814146,29489.42,Research Grant Expenditure
BEIS,UKRI - AHRC,18/09/2020,Research Grant Expenditure,Research Grants,University of Leicester,98814147,43058.65,Research Grant Expenditure
BEIS,UKRI - AHRC,18/09/2020,Research Grant Expenditure,Research Grants,Loughborough University,98814148,27206.27,Research Grant Expenditure
BEIS,UKRI - AHRC,18/09/2020,Research Grant Expenditure,Research Grants,Loughborough University,98814149,33436.18,Research Grant Expenditure
BEIS,UKRI - AHRC,18/09/2020,Research Grant Expenditure,Research Grants,University of Durham,98814150,62621.96,Research Grant Expenditure
BEIS,UKRI - AHRC,18/09/2020,Research Grant Expenditure,Research Grants,University of Stirling,98814151,63480.79,Research Grant Expenditure
BEIS,UKRI - AHRC,18/09/2020,Research Grant Expenditure,Research Grants,University of Sussex,98814152,65588.32,Research Grant Expenditure
BEIS,UKRI - AHRC,18/09/2020,Research Grant Expenditure,Towards a National Collection (SPF),Science Museum Group,98814153,20137.70,Research Grant Expenditure
BEIS,UKRI - AHRC,18/09/2020,Research Grant Expenditure,Towards a National Collection (SPF),The National Gallery,98814154,25208.80,Research Grant Expenditure
BEIS,UKRI - AHRC,18/09/2020,Research Grant Expenditure,Research Grants,Manchester Metropolitan University,98814155,62601.22,Research Grant Expenditure
BEIS,UKRI - AHRC,18/09/2020,Research Grant Expenditure,Research Grants,Manchester Metropolitan University,98814155,62601.22,Research Grant Expenditure
BEIS,UKRI - AHRC,18/09/2020,Research Grant Expenditure,Research Grants,University of Leeds,98814156,41610.53,Research Grant Expenditure
BEIS,UKRI - AHRC,18/09/2020,Research Grant Expenditure,Research Grants,The British Museum,98814157,50848.61,Research Grant Expenditure
BEIS,UKRI - AHRC,18/09/2020,Research Grant Expenditure,Research Grants,University of Newcastle Upon Tyne,98814158,61728.58,Research Grant Expenditure
BEIS,UKRI - AHRC,18/09/2020,Research Grant Expenditure,Follow-on Fund,University of Nottingham,98814159,20038.00,Research Grant Expenditure
BEIS,UKRI - AHRC,18/09/2020,Research Grant Expenditure,Research Grants,University of Southampton GRANT,98814160,38285.74,Research Grant Expenditure
BEIS,UKRI - AHRC,18/09/2020,Research Grant Expenditure,Research Grants,University of Sussex,98814161,12362.15,Research Grant Expenditure
BEIS,UKRI - AHRC,18/09/2020,Research Grant Expenditure,Research Grants,University of Birmingham GRANT,98814162,24221.26,Research Grant Expenditure
BEIS,UKRI - AHRC,18/09/2020,Research Grant Expenditure,Towards a National Collection (SPF),The British Library,98814163,20981.12,Research Grant Expenditure
BEIS,UKRI - AHRC,18/09/2020,Research Grant Expenditure,Research Grants,Liverpool John Moores University,98814164,24453.96,Research Grant Expenditure
BEIS,UKRI - AHRC,18/09/2020,Research Grant Expenditure,Towards a National Collection (SPF),Tate Galleries,98814165,26751.85,Research Grant Expenditure
BEIS,UKRI - AHRC,18/09/2020,Research Grant Expenditure,Towards a National Collection (SPF),The National Archives,98814166,21990.38,Research Grant Expenditure
BEIS,UKRI - AHRC,18/09/2020,Research Grant Expenditure,Networks & Workshops,University of Hull,98814167,4478.46,Research Grant Expenditure
BEIS,UKRI - AHRC,18/09/2020,Capital Grants & Equipment to HEIs,Modern Slavery and Human Rights (SPF),British Institute Of International And Comparative Law,98814168,1250.00,Capital Grants & Equipment to HEIs
BEIS,UKRI - AHRC,18/09/2020,Capital Grants & Equipment to HEIs,Modern Slavery and Human Rights (SPF),British Institute Of International And Comparative Law,98814168,1250.00,Capital Grants & Equipment to HEIs
BEIS,UKRI - AHRC,18/09/2020,Capital Grants & Equipment to HEIs,Modern Slavery and Human Rights (SPF),British Institute Of International And Comparative Law,98814168,1250.00,Capital Grants & Equipment to HEIs
BEIS,UKRI - AHRC,18/09/2020,Research Grant Expenditure,Modern Slavery and Human Rights (SPF),British Institute Of International And Comparative Law,98814168,58750.00,Research Grant Expenditure
BEIS,UKRI - AHRC,18/09/2020,Research Grant Expenditure,Modern Slavery and Human Rights (SPF),British Institute Of International And Comparative Law,98814168,327151.00,Research Grant Expenditure
BEIS,UKRI - AHRC,18/09/2020,Research Grant Expenditure,Modern Slavery and Human Rights (SPF),British Institute Of International And Comparative Law,98814168,273195.63,Research Grant Expenditure
BEIS,UKRI - AHRC,18/09/2020,Research Grant Expenditure,Creative Economy,Loughborough University,98814169,67488.82,Research Grant Expenditure
BEIS,UKRI - AHRC,18/09/2020,Research Grant Expenditure,Funds for International Collaboration (FIC 20 US),University of Nottingham,98814170,61861.75,Research Grant Expenditure
BEIS,UKRI - AHRC,18/09/2020,Research Grant Expenditure,Towards a National Collection (SPF),Victoria and Albert Museum,98814171,27001.95,Research Grant Expenditure
BEIS,UKRI - AHRC,18/09/2020,Research Grant Expenditure,Towards a National Collection (SPF),Historic Environment Scotland (GRANT),98814172,89586.60,Research Grant Expenditure
BEIS,UKRI - AHRC,18/09/2020,Research Grant Expenditure,Global Challenges Research Fund (GCRF),University of York,98814173,31822.90,Research Grant Expenditure
BEIS,UKRI - AHRC,18/09/2020,Research Grant Expenditure,Towards a National Collection (SPF),The British Library,98814174,22660.87,Research Grant Expenditure
BEIS,UKRI - AHRC,18/09/2020,Research Grant Expenditure,Networks & Workshops,Bath Spa University,98814175,4622.73,Research Grant Expenditure
BEIS,UKRI - AHRC,18/09/2020,Research Grant Expenditure,AHRC - DFG Collaborative Research Grant,Roehampton University (University of Roehampton),98814176,20995.01,Research Grant Expenditure
BEIS,UKRI - AHRC,18/09/2020,Research Grant Expenditure,AHRC - DFG Collaborative Research Grant,University of Bristol GRANT,98814177,85001.22,Research Grant Expenditure
BEIS,UKRI - AHRC,18/09/2020,Research Grant Expenditure,Towards a National Collection (SPF),The National Archives,98814178,32257.11,Research Grant Expenditure
BEIS,UKRI - AHRC,18/09/2020,Research Grant Expenditure,Funds for International Collaboration (FIC 20 US),University of Leicester,98814179,16811.21,Research Grant Expenditure
BEIS,UKRI - AHRC,18/09/2020,Research Grant Expenditure,Funds for International Collaboration (FIC 20 US),University of Brighton,98814180,13422.76,Research Grant Expenditure
BEIS,UKRI - AHRC,18/09/2020,Research Grant Expenditure,Follow-on Fund,University of Nottingham,98814181,5968.90,Research Grant Expenditure
BEIS,UKRI - AHRC,18/09/2020,Research Grant Expenditure,Follow-on Fund,University of Nottingham,98814181,5968.90,Research Grant Expenditure
BEIS,UKRI - AHRC,18/09/2020,Research Grant Expenditure,RCUK Global Challenges Research Fund (RCUK GCRF),University of Bristol GRANT,98814182,114626.54,Research Grant Expenditure
BEIS,UKRI - AHRC,18/09/2020,Research Grant Expenditure,Research Grants,University of Bristol GRANT,98814183,64998.01,Research Grant Expenditure
BEIS,UKRI - AHRC,18/09/2020,Research Grant Expenditure,Commissioned Research,University of Newcastle Upon Tyne,98814184,60439.86,Research Grant Expenditure
BEIS,UKRI - AHRC,18/09/2020,Research Grant Expenditure,Research Grants,University of Nottingham,98814185,43197.04,Research Grant Expenditure
BEIS,UKRI - AHRC,18/09/2020,Research Grant Expenditure,Follow-on Fund,University of Surrey,98814186,83907.64,Research Grant Expenditure
BEIS,UKRI - AHRC,18/09/2020,Research Grant Expenditure,Climate Resilience (SPF w1),University of Liverpool,98814187,40325.12,Research Grant Expenditure
BEIS,UKRI - AHRC,18/09/2020,Research Grant Expenditure,Global Challenges Research Fund (GCRF),University of the West of England,98814188,44374.17,Research Grant Expenditure
BEIS,UKRI - AHRC,18/09/2020,Research Grant Expenditure,Global Challenges Research Fund (GCRF),University of Newcastle Upon Tyne,98814189,34062.46,Research Grant Expenditure
BEIS,UKRI - AHRC,18/09/2020,Research Grant Expenditure,Newton Programme,University of Brighton,98814190,14105.68,Research Grant Expenditure
BEIS,UKRI - AHRC,18/09/2020,Research Grant Expenditure,Newton Programme,University of Bristol GRANT,98814191,11439.99,Research Grant Expenditure
BEIS,UKRI - AHRC,18/09/2020,Research Grant Expenditure,Climate Resilience (SPF w1),The University of Manchester,98814192,39630.05,Research Grant Expenditure
BEIS,UKRI - AHRC,18/09/2020,Research Grant Expenditure,DFID Collaborative Humanitarian Protection Research Programme (CHPRP),University of Durham,98814193,49904.09,Research Grant Expenditure
BEIS,UKRI - AHRC,18/09/2020,Research Grant Expenditure,DFID Collaborative Humanitarian Protection Research Programme (CHPRP),Institute of Development Studies,98814194,65049.55,Research Grant Expenditure
BEIS,UKRI - AHRC,18/09/2020,Research Grant Expenditure,Follow-on Fund,Northumbria University,98814195,19967.69,Research Grant Expenditure
BEIS,UKRI - AHRC,18/09/2020,Research Grant Expenditure,Follow-on Fund,Northumbria University,98814195,59903.06,Research Grant Expenditure
BEIS,UKRI - AHRC,18/09/2020,Research Grant Expenditure,JPI Cultural Heritage,University of Durham,98814196,10741.72,Research Grant Expenditure
BEIS,UKRI - AHRC,18/09/2020,Research Grant Expenditure,DFID Collaborative Humanitarian Protection Research Programme (CHPRP),London School of Economics and Political Science,98814197,56688.00,Research Grant Expenditure
BEIS,UKRI - AHRC,18/09/2020,Research Grant Expenditure,Follow-on Fund,University of Cambridge,98814198,29282.70,Research Grant Expenditure
BEIS,UKRI - AHRC,18/09/2020,Research Grant Expenditure,Climate Resilience (SPF w1),University of Hull,98814199,31679.16,Research Grant Expenditure
BEIS,UKRI - AHRC,18/09/2020,Research Grant Expenditure,Newton Programme,Royal College of Art,98814201,12071.01,Research Grant Expenditure
BEIS,UKRI - AHRC,18/09/2020,Research Grant Expenditure,Newton Programme,Royal College of Art,98814201,12071.01,Research Grant Expenditure
BEIS,UKRI - AHRC,18/09/2020,Research Grant Expenditure,Networks & Workshops,University of Leeds,98814203,6521.63,Research Grant Expenditure
BEIS,UKRI - AHRC,18/09/2020,Research Grant Expenditure,Networks & Workshops,Coventry University,98814204,3399.53,Research Grant Expenditure
BEIS,UKRI - AHRC,18/09/2020,Research Grant Expenditure,Global Challenges Research Fund (GCRF),University of Leeds,98814205,47402.49,Research Grant Expenditure
BEIS,UKRI - AHRC,18/09/2020,Research Grant Expenditure,Research Grants,University of York,98814207,20684.61,Research Grant Expenditure
BEIS,UKRI - AHRC,18/09/2020,Research Grant Expenditure,Networks & Workshops,Leeds Beckett University,98814208,3015.48,Research Grant Expenditure
BEIS,UKRI - AHRC,18/09/2020,Research Grant Expenditure,The Newton Fund Impact Scheme (NFIS),Coventry University,98814209,12434.65,Research Grant Expenditure
BEIS,UKRI - AHRC,18/09/2020,Research Grant Expenditure,COVID-19,University of West London,98814210,56140.75,Research Grant Expenditure
BEIS,UKRI - AHRC,18/09/2020,Research Grant Expenditure,COVID-19,Robert Gordon University,98814211,7651.48,Research Grant Expenditure
BEIS,UKRI - AHRC,18/09/2020,Research Grant Expenditure,Funds for International Collaboration (FIC 20 US),University of Oxford,98814212,5994.97,Research Grant Expenditure
BEIS,UKRI - AHRC,18/09/2020,Research Grant Expenditure,Funds for International Collaboration (FIC 20 US),University of Glasgow,98814213,6018.58,Research Grant Expenditure
BEIS,UKRI - AHRC,18/09/2020,Research Grant Expenditure,Funds for International Collaboration (FIC 20 US),Queen's University Belfast GRANT,98814214,8776.95,Research Grant Expenditure
BEIS,UKRI - AHRC,18/09/2020,Research Grant Expenditure,Funds for International Collaboration (FIC 20 US),University of Glasgow,98814215,4502.00,Research Grant Expenditure
BEIS,UKRI - AHRC,18/09/2020,Research Grant Expenditure,Funds for International Collaboration (FIC 20 US),University of Bradford,98814216,5992.10,Research Grant Expenditure
BEIS,UKRI - AHRC,18/09/2020,Research Grant Expenditure,COVID-19,University of Plymouth,98814217,22424.66,Research Grant Expenditure
BEIS,UKRI - AHRC,18/09/2020,Research Grant Expenditure,COVID-19,Keele University,98814218,29519.04,Research Grant Expenditure
BEIS,UKRI - AHRC,18/09/2020,Research Grant Expenditure,Global Challenges Research Fund (GCRF),Cardiff University,98814219,70515.60,Research Grant Expenditure
BEIS,UKRI - AHRC,18/09/2020,Research Grant Expenditure,COVID-19,University of Exeter,98814220,50021.62,Research Grant Expenditure
BEIS,UKRI - AHRC,18/09/2020,Research Grant Expenditure,Funds for International Collaboration (FIC 20 US),University of Oxford,98814221,6019.76,Research Grant Expenditure
BEIS,UKRI - AHRC,18/09/2020,Research Grant Expenditure,Funds for International Collaboration (FIC 20 US),University of London,98814222,6047.95,Research Grant Expenditure
BEIS,UKRI - AHRC,18/09/2020,Research Grant Expenditure,Funds for International Collaboration (FIC 20 US),Coventry University,98814223,12028.75,Research Grant Expenditure
BEIS,UKRI - AHRC,18/09/2020,Research Grant Expenditure,Funds for International Collaboration (FIC 20 US),Loughborough University,98814224,13825.26,Research Grant Expenditure
BEIS,UKRI - AHRC,18/09/2020,Research Grant Expenditure,COVID-19,University of Liverpool,98814225,64703.15,Research Grant Expenditure
BEIS,UKRI - AHRC,18/09/2020,Research Grant Expenditure,COVID-19,Sheffield Hallam University,98814226,45773.22,Research Grant Expenditure
BEIS,UKRI - AHRC,18/09/2020,Research Grant Expenditure,Funds for International Collaboration (FIC 20 US),Kingston University,98814228,5962.23,Research Grant Expenditure
BEIS,UKRI - AHRC,18/09/2020,Research Grant Expenditure,COVID-19,University College London,98814229,54259.62,Research Grant Expenditure
BEIS,UKRI - AHRC,18/09/2020,Research Grant Expenditure,COVID-19 (AHRC funded),University of Leeds,98814230,69354.38,Research Grant Expenditure
BEIS,UKRI - AHRC,18/09/2020,Research Grant Expenditure,Funds for International Collaboration (FIC 20 US),University of Cambridge,98814231,11902.32,Research Grant Expenditure
BEIS,UKRI - AHRC,18/09/2020,Research Grant Expenditure,COVID-19,The University of Manchester,98814232,153995.01,Research Grant Expenditure
BEIS,UKRI - AHRC,18/09/2020,Research Grant Expenditure,Funds for International Collaboration (FIC 20 US),National Trust,98814233,11999.68,Research Grant Expenditure
BEIS,UKRI - AHRC,18/09/2020,Research Grant Expenditure,COVID-19 (AHRC funded),University of Liverpool,98814234,30895.10,Research Grant Expenditure
BEIS,UKRI - AHRC,18/09/2020,Research Grant Expenditure,JPI Cultural Heritage,Bournemouth University GRANT,98814235,136788.83,Research Grant Expenditure
BEIS,UKRI - AHRC,18/09/2020,Fellowships,Research Fellowships,Queen Mary University of London,98814236,25062.65,Fellowships
BEIS,UKRI - AHRC,18/09/2020,Fellowships,Research Fellowships,Bournemouth University GRANT,98814237,26658.24,Fellowships
BEIS,UKRI - AHRC,18/09/2020,Fellowships,Research Fellowships,University of Exeter,98814238,24370.87,Fellowships
BEIS,UKRI - AHRC,18/09/2020,Fellowships,Research Fellowships,University of Brighton,98814239,10808.18,Fellowships
BEIS,UKRI - AHRC,18/09/2020,Fellowships,NPIF Research Talent (RCUK Innovation Fellowships),Northumbria University,98814240,23997.36,Fellowships
BEIS,UKRI - AHRC,18/09/2020,Fellowships,NPIF Research Talent (RCUK Innovation Fellowships),University of the West of England,98814241,23609.39,Fellowships
BEIS,UKRI - AHRC,18/09/2020,Fellowships,NPIF Research Talent (RCUK Innovation Fellowships),University of Brighton,98814242,28928.27,Fellowships
BEIS,UKRI - AHRC,18/09/2020,Fellowships,Research Fellowships,University of Durham,98814243,26871.10,Fellowships
BEIS,UKRI - AHRC,18/09/2020,Fellowships,Research Fellowships,University of St Andrews,98814244,25095.24,Fellowships
BEIS,UKRI - AHRC,18/09/2020,Fellowships,Research Fellowships,Queen Mary University of London,98814245,26287.38,Fellowships
BEIS,UKRI - AHRC,18/09/2020,Fellowships,NPIF Research Talent (RCUK Innovation Fellowships),Loughborough University,98814246,20699.53,Fellowships
BEIS,UKRI - AHRC,18/09/2020,Fellowships,NPIF Research Talent (RCUK Innovation Fellowships),University of Brighton,98814247,23319.84,Fellowships
BEIS,UKRI - AHRC,18/09/2020,Fellowships,NPIF Research Talent (RCUK Innovation Fellowships),Glasgow School of Art,98814248,25375.05,Fellowships
BEIS,UKRI - AHRC,18/09/2020,Fellowships,NPIF Research Talent (RCUK Innovation Fellowships),University of Sheffield,98814249,22806.11,Fellowships
BEIS,UKRI - AHRC,18/09/2020,Fellowships,NPIF Research Talent (RCUK Innovation Fellowships),University College London,98814250,25114.76,Fellowships
BEIS,UKRI - AHRC,18/09/2020,Fellowships,NPIF Research Talent (RCUK Innovation Fellowships),University of Southampton GRANT,98814251,23183.55,Fellowships
BEIS,UKRI - AHRC,18/09/2020,Fellowships,NPIF Research Talent (RCUK Innovation Fellowships),Birmingham City University,98814252,23053.78,Fellowships
BEIS,UKRI - AHRC,18/09/2020,Fellowships,NPIF Research Talent (RCUK Innovation Fellowships),University of Bristol GRANT,98814253,23982.21,Fellowships
BEIS,UKRI - AHRC,18/09/2020,Fellowships,NPIF Research Talent (RCUK Innovation Fellowships),University of Edinburgh,98814254,21109.97,Fellowships
BEIS,UKRI - AHRC,18/09/2020,Fellowships,Research Fellowships,Queen's University Belfast GRANT,98814255,28811.77,Fellowships
BEIS,UKRI - AHRC,18/09/2020,Fellowships,Research Fellowships,University of Leeds,98814256,35124.72,Fellowships
BEIS,UKRI - AHRC,18/09/2020,Fellowships,Commissioned Research,University of Sussex,98814257,17200.12,Fellowships
BEIS,UKRI - AHRC,18/09/2020,Fellowships,Research Fellowships,University of Surrey,98814258,33785.09,Fellowships
BEIS,UKRI - AHRC,18/09/2020,Fellowships,Research Fellowships,University of Leicester,98814259,23900.17,Fellowships
BEIS,UKRI - AHRC,18/09/2020,Fellowships,Research Fellowships,University of Leeds,98814260,26252.47,Fellowships
BEIS,UKRI - AHRC,18/09/2020,Fellowships,Research Fellowships,University of Leeds,98814261,27444.47,Fellowships
BEIS,UKRI - AHRC,18/09/2020,Fellowships,Research Fellowships,University of Leicester,98814262,28664.80,Fellowships
BEIS,UKRI - AHRC,18/09/2020,Fellowships,Research Fellowships,The Royal Central School of Speech and Drama,98814263,35065.59,Fellowships
BEIS,UKRI - AHRC,18/09/2020,Fellowships,Commissioned Research,University of Liverpool,98814264,26615.46,Fellowships
BEIS,UKRI - AHRC,18/09/2020,Fellowships,Research Fellowships,The University of Manchester,98814265,36398.12,Fellowships
BEIS,UKRI - AHRC,18/09/2020,Fellowships,Research Fellowships,University of Edinburgh,98814266,23037.41,Fellowships
BEIS,UKRI - AHRC,18/09/2020,Fellowships,Research Fellowships,University of Exeter,98814267,27459.29,Fellowships
BEIS,UKRI - AHRC,18/09/2020,Fellowships,Research Fellowships,University of Exeter,98814268,34235.65,Fellowships
BEIS,UKRI - AHRC,18/09/2020,Fellowships,Research Fellowships,Queen Mary University of London,98814269,25201.02,Fellowships
BEIS,UKRI - AHRC,18/09/2020,Fellowships,Research Fellowships,Bath Spa University,98814270,36388.72,Fellowships
BEIS,UKRI - AHRC,18/09/2020,Fellowships,Research Fellowships,Royal Conservatoire of Scotland,98814272,40309.77,Fellowships
BEIS,UKRI - AHRC,18/09/2020,Fellowships,Research Fellowships,University of Birmingham GRANT,98814273,23110.49,Fellowships
BEIS,UKRI - AHRC,18/09/2020,Fellowships,Research Fellowships,University of Leeds,98814274,49091.73,Fellowships
BEIS,UKRI - AHRC,18/09/2020,Fellowships,Research Fellowships,University of Dundee,98814275,34359.40,Fellowships
BEIS,UKRI - AHRC,18/09/2020,Fellowships,Research Fellowships,University of Nottingham,98814276,30524.26,Fellowships
BEIS,UKRI - AHRC,18/09/2020,Fellowships,Commissioned Research,University of St Andrews,98814277,25865.73,Fellowships
BEIS,UKRI - AHRC,18/09/2020,Fellowships,Research Fellowships,University of Nottingham,98814278,23538.83,Fellowships
BEIS,UKRI - AHRC,18/09/2020,Fellowships,Research Fellowships,University of Nottingham,98814278,23538.83,Fellowships
BEIS,UKRI - AHRC,18/09/2020,Fellowships,Research Fellowships,University of Newcastle Upon Tyne,98814279,23686.05,Fellowships
BEIS,UKRI - AHRC,18/09/2020,Fellowships,Research Fellowships,Edge Hill University College,98814280,20507.48,Fellowships
BEIS,UKRI - AHRC,18/09/2020,Fellowships,Research Fellowships,University of Leeds,98814281,37907.11,Fellowships
BEIS,UKRI - AHRC,18/09/2020,Fellowships,Research Fellowships,University of Central Lancashire,98814282,11543.35,Fellowships
BEIS,UKRI - AHRC,18/09/2020,Research Grant Expenditure,Research Grants,University of Edinburgh,98814488,-526.50,Research Grant Expenditure
BEIS,UKRI - AHRC,18/09/2020,Research Grant Expenditure,JPI Cultural Heritage,Bournemouth University GRANT,98814489,2604.09,Research Grant Expenditure
BEIS,UKRI - AHRC,18/09/2020,Research Grant Expenditure,Research Grants,University of Durham,98814490,49611.11,Research Grant Expenditure
BEIS,UKRI - AHRC,18/09/2020,Research Grant Expenditure,Connected Communities Programme,University of Bristol GRANT,98814491,56435.73,Research Grant Expenditure
BEIS,UKRI - AHRC,18/09/2020,Research Grant Expenditure,Research Grants,University of Oxford,98814492,56942.25,Research Grant Expenditure
BEIS,UKRI - AHRC,18/09/2020,Research Grant Expenditure,Research Grants,Guildhall School of Music & Drama,98814493,5035.29,Research Grant Expenditure
BEIS,UKRI - AHRC,18/09/2020,Research Grant Expenditure,Care for the Future,University of Exeter,98814494,7210.43,Research Grant Expenditure
BEIS,UKRI - AHRC,18/09/2020,Research Grant Expenditure,Research Grants,"SOAS, University of London",98814495,20140.16,Research Grant Expenditure
BEIS,UKRI - AHRC,18/09/2020,Research Grant Expenditure,Research Grants,University of Warwick,98814496,32873.25,Research Grant Expenditure
BEIS,UKRI - AHRC,18/09/2020,Research Grant Expenditure,Care for the Future,University of Birmingham GRANT,98814497,-2905.93,Research Grant Expenditure
BEIS,UKRI - AHRC,18/09/2020,Research Grant Expenditure,Connected Communities Programme,University of Birmingham GRANT,98814497,-2905.91,Research Grant Expenditure
BEIS,UKRI - AHRC,18/09/2020,Research Grant Expenditure,Research Grants,University of Leicester,98814501,38455.13,Research Grant Expenditure
BEIS,UKRI - AHRC,18/09/2020,Research Grant Expenditure,Anti-microbial Resistance (AMR),University College London,98814502,18041.19,Research Grant Expenditure
BEIS,UKRI - AHRC,18/09/2020,Research Grant Expenditure,Global Challenges Research Fund (GCRF),University of Liverpool,98814503,-6878.88,Research Grant Expenditure
BEIS,UKRI - AHRC,18/09/2020,Research Grant Expenditure,Networks & Workshops,King's College London,98814504,-3161.11,Research Grant Expenditure
BEIS,UKRI - AHRC,18/09/2020,Research Grant Expenditure,Global Challenges Research Fund (GCRF),University of Brighton,98814505,-59.30,Research Grant Expenditure
BEIS,UKRI - AHRC,18/09/2020,Research Grant Expenditure,Global Challenges Research Fund (GCRF),Queen Mary University of London,98814506,-0.04,Research Grant Expenditure
BEIS,UKRI - AHRC,18/09/2020,Research Grant Expenditure,Global Challenges Research Fund (GCRF),University of York,98814507,-0.07,Research Grant Expenditure
BEIS,UKRI - AHRC,18/09/2020,Research Grant Expenditure,Innovation Placements (NPIF),University of the West of England,98814508,-181.68,Research Grant Expenditure
BEIS,UKRI - AHRC,18/09/2020,Research Grant Expenditure,Global Challenges Research Fund (GCRF),University of Leeds,98814509,-8790.04,Research Grant Expenditure
BEIS,UKRI - AHRC,18/09/2020,Research Grant Expenditure,Global Challenges Research Fund (GCRF),Lancaster University,98814510,-16.03,Research Grant Expenditure
BEIS,UKRI - AHRC,18/09/2020,Research Grant Expenditure,Funds for International Collaboration (FIC 20 US),Goldsmiths College University of London,98814511,-646.19,Research Grant Expenditure
BEIS,UKRI - AHRC,18/09/2020,Research Grant Expenditure,Funds for International Collaboration (FIC 20 US),King's College London,98814512,-2461.08,Research Grant Expenditure
BEIS,UKRI - AHRC,18/09/2020,Research Grant Expenditure,Follow-on Fund,University of Stirling,98814513,19937.29,Research Grant Expenditure
BEIS,UKRI - AHRC,18/09/2020,Research Grant Expenditure,Networks & Workshops,Loughborough University,98814514,-10286.56,Research Grant Expenditure
BEIS,UKRI - AHRC,18/09/2020,Research Grant Expenditure,Follow-on Fund,University of Leeds,98814515,34498.94,Research Grant Expenditure
BEIS,UKRI - AHRC,18/09/2020,Research Grant Expenditure,Follow-on Fund,University of Warwick,98814517,-4064.77,Research Grant Expenditure
BEIS,UKRI - AHRC,18/09/2020,Fellowships,Research Fellowships,University of Edinburgh,98814518,-46.92,Fellowships
BEIS,UKRI - AHRC,18/09/2020,Fellowships,Research Fellowships,University of Bristol GRANT,98814519,21202.30,Fellowships
BEIS,UKRI - AHRC,18/09/2020,Fellowships,Research Fellowships,Northumbria University,98814520,16103.18,Fellowships
BEIS,UKRI - AHRC,18/09/2020,Fellowships,Research Fellowships,University of Essex,98814521,32445.66,Fellowships
BEIS,UKRI - AHRC,18/09/2020,Fellowships,Research Fellowships,University of Liverpool,98814522,24384.90,Fellowships
BEIS,UKRI - AHRC,21/09/2020,T&S UK - Other Charges,Health and Environmental Humanities,Unspecified,98791355,438.61,T&S UK - Other Charges
BEIS,UKRI - AHRC,21/09/2020,Research Grant Expenditure,DFID Collaborative Humanitarian Protection Research Programme (CHPRP),American University of Beirut,98814200,60449.66,Research Grant Expenditure
BEIS,UKRI - AHRC,21/09/2020,Research Grant Expenditure,DFID Collaborative Humanitarian Protection Research Programme (CHPRP),SIPRI,98814202,69726.53,Research Grant Expenditure
BEIS,UKRI - AHRC,21/09/2020,Research Grant Expenditure,Global Challenges Research Fund (GCRF),University of Lagos,98814206,71910.69,Research Grant Expenditure
BEIS,UKRI - AHRC,21/09/2020,Research Grant Expenditure,DFID Collaborative Humanitarian Protection Research Programme (CHPRP),Global Public Policy Institute,98814227,72929.18,Research Grant Expenditure
BEIS,UKRI - AHRC,21/09/2020,Fellowships,Research Fellowships,Historic Buildings and Monuments Commission for England T/A Historic England,98814271,27327.07,Fellowships
BEIS,UKRI - AHRC,21/09/2020,Unspecified,SMT,University of Exeter,98820418,8026.00,Secondments
BEIS,UKRI - AHRC,22/09/2020,Research Grant Expenditure,RCUK Global Challenges Research Fund (RCUK GCRF),UKRI - Economic & Social Research Council,98816675,372288.86,Research Grant Expenditure
BEIS,UKRI - AHRC,22/09/2020,Research Grant Expenditure,RCUK Global Challenges Research Fund (RCUK GCRF),UKRI - Economic & Social Research Council,98816681,183823.00,Research Grant Expenditure
BEIS,UKRI - AHRC,22/09/2020,Research Grant Expenditure,RCUK Global Challenges Research Fund (RCUK GCRF),UKRI - Economic & Social Research Council,98816685,90435.40,Research Grant Expenditure
BEIS,UKRI - AHRC,22/09/2020,Research Grant Expenditure,RCUK Global Challenges Research Fund (RCUK GCRF),UKRI - Economic & Social Research Council,98816713,39140.00,Research Grant Expenditure
BEIS,UKRI - AHRC,22/09/2020,Research Grant Expenditure,RCUK Global Challenges Research Fund (RCUK GCRF),UKRI - Economic & Social Research Council,98816714,22004.30,Research Grant Expenditure
BEIS,UKRI - AHRC,22/09/2020,Research Grant Expenditure,Cross Council Responsive Mode Awards,UKRI - Economic & Social Research Council,98816898,13290.43,Research Grant Expenditure
BEIS,UKRI - AHRC,22/09/2020,Research Grant Expenditure,Cross Council Responsive Mode Awards,UKRI - Economic & Social Research Council,98816903,22627.39,Research Grant Expenditure
BEIS,UKRI - AHRC,22/09/2020,Research Grant Expenditure,Commissioned Research,UKRI - Economic & Social Research Council,98816909,11563.06,Research Grant Expenditure
BEIS,UKRI - AHRC,22/09/2020,Research Grant Expenditure,Global Uncertainties Programme,UKRI - Economic & Social Research Council,98816942,2041.70,Research Grant Expenditure
BEIS,UKRI - AHRC,22/09/2020,Research Grant Expenditure,Cross Council Responsive Mode Awards,UKRI - Economic & Social Research Council,98816943,12703.72,Research Grant Expenditure
BEIS,UKRI - AHRC,22/09/2020,Research Grant Expenditure,RCUK Global Challenges Research Fund (RCUK GCRF),UKRI - Economic & Social Research Council,98816944,36991.05,Research Grant Expenditure
BEIS,UKRI - AHRC,22/09/2020,Research Grant Expenditure,RCUK Global Challenges Research Fund (RCUK GCRF),UKRI - Economic & Social Research Council,98816957,45760.00,Research Grant Expenditure
BEIS,UKRI - AHRC,22/09/2020,Research Grant Expenditure,RCUK Global Challenges Research Fund (RCUK GCRF),UKRI - Economic & Social Research Council,98816959,22018.95,Research Grant Expenditure
BEIS,UKRI - AHRC,22/09/2020,Research Grant Expenditure,Urban Living,UKRI - Economic & Social Research Council,98818286,2818.99,Research Grant Expenditure
BEIS,UKRI - AHRC,22/09/2020,Research Grant Expenditure,Commissioned Research,UKRI - Economic & Social Research Council,98818294,6203.48,Research Grant Expenditure
BEIS,UKRI - AHRC,22/09/2020,Research Grant Expenditure,Commissioned Research,UKRI - Economic & Social Research Council,98818296,6943.45,Research Grant Expenditure
BEIS,UKRI - AHRC,22/09/2020,Research Grant Expenditure,Urban Living,UKRI - Economic & Social Research Council,98818299,3390.34,Research Grant Expenditure
BEIS,UKRI - AHRC,22/09/2020,Research Grant Expenditure,Urban Living,UKRI - Economic & Social Research Council,98818312,3804.75,Research Grant Expenditure
BEIS,UKRI - AHRC,22/09/2020,Research Grant Expenditure,Global Challenges Research Fund (GCRF),UKRI - Economic & Social Research Council,98818314,14046.82,Research Grant Expenditure
BEIS,UKRI - AHRC,22/09/2020,Research Grant Expenditure,Urban Living,UKRI - Economic & Social Research Council,98818319,5107.97,Research Grant Expenditure
BEIS,UKRI - AHRC,22/09/2020,Research Grant Expenditure,Urban Living,UKRI - Economic & Social Research Council,98818321,4598.68,Research Grant Expenditure
BEIS,UKRI - AHRC,22/09/2020,Research Grant Expenditure,Cross Council Responsive Mode Awards,UKRI - Economic & Social Research Council,98818323,16018.74,Research Grant Expenditure
BEIS,UKRI - AHRC,22/09/2020,Research Grant Expenditure,Global Challenges Research Fund (GCRF),UKRI - Economic & Social Research Council,98818324,35324.85,Research Grant Expenditure
BEIS,UKRI - AHRC,22/09/2020,Research Grant Expenditure,Commissioned Research,UKRI - Economic & Social Research Council,98818327,23923.73,Research Grant Expenditure
BEIS,UKRI - AHRC,22/09/2020,Research Grant Expenditure,RCUK Global Challenges Research Fund (RCUK GCRF),UKRI - Economic & Social Research Council,98818332,46947.50,Research Grant Expenditure
BEIS,UKRI - AHRC,22/09/2020,Research Grant Expenditure,Digital Transformations,UKRI - Economic & Social Research Council,98818333,6372.66,Research Grant Expenditure
BEIS,UKRI - AHRC,22/09/2020,Research Grant Expenditure,Global Challenges Research Fund (GCRF),UKRI - Economic & Social Research Council,98818335,17372.19,Research Grant Expenditure
BEIS,UKRI - AHRC,22/09/2020,Research Grant Expenditure,Urban Living,UKRI - Economic & Social Research Council,98818336,5128.31,Research Grant Expenditure
BEIS,UKRI - AHRC,22/09/2020,Research Grant Expenditure,Urban Living,UKRI - Economic & Social Research Council,98818337,3985.68,Research Grant Expenditure
BEIS,UKRI - AHRC,22/09/2020,Research Grant Expenditure,Commissioned Research,UKRI - Economic & Social Research Council,98818348,6782.02,Research Grant Expenditure
BEIS,UKRI - AHRC,22/09/2020,Research Grant Expenditure,Commissioned Research,UKRI - Economic & Social Research Council,98818356,7453.83,Research Grant Expenditure
BEIS,UKRI - AHRC,22/09/2020,Research Grant Expenditure,Commissioned Research,UKRI - Economic & Social Research Council,98818375,6796.50,Research Grant Expenditure
BEIS,UKRI - AHRC,22/09/2020,Research Grant Expenditure,Digital Economy,UKRI - Engineering & Physical Sciences Research Council,98818419,31316.03,Research Grant Expenditure
BEIS,UKRI - AHRC,22/09/2020,Research Grant Expenditure,RCUK Global Challenges Research Fund (RCUK GCRF),UKRI - Economic & Social Research Council,98820112,19048.80,Research Grant Expenditure
BEIS,UKRI - AHRC,22/09/2020,Research Grant Expenditure,RCUK Global Challenges Research Fund (RCUK GCRF),UKRI - Economic & Social Research Council,98820115,47664.10,Research Grant Expenditure
BEIS,UKRI - AHRC,22/09/2020,Research Grant Expenditure,Global Challenges Research Fund (GCRF),UKRI - Economic & Social Research Council,98820166,16694.03,Research Grant Expenditure
BEIS,UKRI - AHRC,22/09/2020,Research Grant Expenditure,Commissioned Research,UKRI - Economic & Social Research Council,98820168,9032.24,Research Grant Expenditure
BEIS,UKRI - AHRC,22/09/2020,Research Grant Expenditure,Commissioned Research,UKRI - Economic & Social Research Council,98820172,7230.09,Research Grant Expenditure
BEIS,UKRI - AHRC,22/09/2020,Fees (Including College Members),New Programme Development,Unspecified,98820674,170.00,Fees (Including College Members)
BEIS,UKRI - AHRC,22/09/2020,Research Grant Expenditure,Global Challenges Research Fund (GCRF),UKRI - Economic & Social Research Council,98821233,6421.67,Research Grant Expenditure
BEIS,UKRI - AHRC,22/09/2020,Fellowships,Public Policy,UKRI - Economic & Social Research Council,98821250,15943.84,Fellowships
BEIS,UKRI - AHRC,22/09/2020,Research Grant Expenditure,Cross Council Responsive Mode Awards,UKRI - Economic & Social Research Council,98821252,14254.28,Research Grant Expenditure
BEIS,UKRI - AHRC,24/09/2020,T&S UK - Other Charges,International Development and Area Studies,Unspecified,98823351,147.99,T&S UK - Other Charges
BEIS,UKRI - AHRC,25/09/2020,Voluntary Deductions,Balance Sheet,Swindon Office Sports and Social Club,98802566,32.00,Voluntary Deductions
BEIS,UKRI - AHRC,25/09/2020,Fees (Including College Members),Executive Office,Unspecified,98822611,1000.00,Fees (Including College Members)
BEIS,UKRI - AHRC,25/09/2020,Fees (Including College Members),Executive Office,Unspecified,98822612,1000.00,Fees (Including College Members)
BEIS,UKRI - AHRC,25/09/2020,Fees (Including College Members),Executive Office,Unspecified,98822613,1000.00,Fees (Including College Members)
BEIS,UKRI - AHRC,25/09/2020,Fees (Including College Members),Executive Office,Unspecified,98822614,1000.00,Fees (Including College Members)
BEIS,UKRI - AHRC,25/09/2020,Fees (Including College Members),Executive Office,Unspecified,98822615,1000.00,Fees (Including College Members)
BEIS,UKRI - AHRC,25/09/2020,Fees (Including College Members),Executive Office,Unspecified,98822616,1000.00,Fees (Including College Members)
BEIS,UKRI - AHRC,25/09/2020,Fees (Including College Members),Executive Office,Unspecified,98822617,1000.00,Fees (Including College Members)
BEIS,UKRI - AHRC,25/09/2020,Fees (Including College Members),Executive Office,Unspecified,98822618,1000.00,Fees (Including College Members)
BEIS,UKRI - AHRC,25/09/2020,Fees (Including College Members),Executive Office,Unspecified,98822619,1000.00,Fees (Including College Members)
BEIS,UKRI - AHRC,28/09/2020,T&S UK - Other Charges,International Development and Area Studies,Unspecified,98824186,7.99,T&S UK - Other Charges
BEIS,UKRI - AHRC,29/09/2020,T&S UK - Other Charges,Public Policy Research,Unspecified,98814924,79.99,T&S UK - Other Charges
BEIS,UKRI - AHRC,29/09/2020,Recruitment Costs,Corporate Services,Agenda Resource Management Ltd,98822733,153.91,Recruitment Costs
BEIS,UKRI - AHRC,29/09/2020,Recruitment Costs,Corporate Services,Agenda Resource Management Ltd,98822734,79.76,Recruitment Costs
BEIS,UKRI - AHRC,29/09/2020,Recruitment Costs,Corporate Services,Agenda Resource Management Ltd,98822734,155.47,Recruitment Costs
BEIS,UKRI - AHRC,29/09/2020,Other Programme Costs,Infrastruture Roadmap,The National Archives,98823025,41308.80,Other Programme Costs
BEIS,UKRI - AHRC,29/09/2020,Conferences & Seminars,Executive Office,Science Museum Group (SCMG Enterprises Ltd),98823072,57.80,Conferences & Seminars
BEIS,UKRI - AHRC,29/09/2020,Research Grant Expenditure,RCUK Global Challenges Research Fund (RCUK GCRF),UKRI - Medical Research Council,98823433,16622.44,Research Grant Expenditure
BEIS,UKRI - BBSRC,01/09/2020,Research Institutes - Capital Grants: Minor Works,Pirbright,The Pirbright Institute,98802932,18630.00,Research Institutes - Capital Grants: Minor Works
BEIS,UKRI - BBSRC,01/09/2020,Fees (Including College Members),Innovation and Skills Group CDSU,Unspecified,98802944,340.00,Fees (Including College Members)
BEIS,UKRI - BBSRC,02/09/2020,Recruitment Costs,PDG - Director,Agenda Resource Management Ltd,98802959,105.86,Recruitment Costs
BEIS,UKRI - BBSRC,02/09/2020,Recruitment Costs,PDG - Director,Agenda Resource Management Ltd,98802959,155.77,Recruitment Costs
BEIS,UKRI - BBSRC,02/09/2020,Conferences & Seminars,Science Group,One Health Platform Management,98804226,705.86,Conferences & Seminars
BEIS,UKRI - BBSRC,03/09/2020,Health & Safety (inc. Medicals & Opticians),PDG - Director,Swindon Occupational Medical Services Ltd,98805266,875.00,Health & Safety (inc. Medicals & Opticians)
BEIS,UKRI - BBSRC,03/09/2020,Staff Training,PDG - Director,Corinium Human Resource Management Ltd,98805285,300.00,Staff Training
BEIS,UKRI - BBSRC,04/09/2020,Research Grant Expenditure,FG - Accounts & Business Planning,London School of Hygiene & Tropical Medicine,98802943,8265.52,Research Grant Expenditure
BEIS,UKRI - BBSRC,04/09/2020,Fees (Including College Members),Innovation and Skills Group CDSU,Unspecified,98805593,170.00,Fees (Including College Members)
BEIS,UKRI - BBSRC,04/09/2020,Fees (Including College Members),Innovation and Skills Group CDSU,Unspecified,98805594,340.00,Fees (Including College Members)
BEIS,UKRI - BBSRC,04/09/2020,T&S UK - Other Charges,Science Group,Unspecified,98807639,25.36,T&S UK - Other Charges
BEIS,UKRI - BBSRC,07/09/2020,Compensation Payments,FG - Accounts & Business Planning,Unspecified,98802477,-1648.44,Compensation Payments
BEIS,UKRI - BBSRC,07/09/2020,Compensation Payments,FG - Accounts & Business Planning,JSS Pensions Administration,98802478,1648.44,Compensation Payments
BEIS,UKRI - BBSRC,07/09/2020,Staff Training,PDG - Director,New College Swindon,98805888,90.00,Staff Training
BEIS,UKRI - BBSRC,07/09/2020,Other Programme Costs,Innovation and Skills Group CDSU,NNFCC Ltd,98806051,6739.20,Other Programme Costs
BEIS,UKRI - BBSRC,07/09/2020,Recruitment Costs,PDG - Director,Agenda Resource Management Ltd,98807537,153.91,Recruitment Costs
BEIS,UKRI - BBSRC,07/09/2020,T&S UK - Other Charges,Innovation and Skills Group CDSU,Unspecified,98808806,175.50,T&S UK - Other Charges
BEIS,UKRI - BBSRC,08/09/2020,Other Programme Costs,Innovation and Skills Group CDSU,KNOWLEDGE TRANSFER NETWORK LTD,98811035,1983.30,Other Programme Costs
BEIS,UKRI - BBSRC,08/09/2020,Fees (Including College Members),Innovation and Skills Group CDSU,Unspecified,98811060,170.00,Fees (Including College Members)
BEIS,UKRI - BBSRC,08/09/2020,Fees (Including College Members),Innovation and Skills Group CDSU,Unspecified,98811061,170.00,Fees (Including College Members)
BEIS,UKRI - BBSRC,08/09/2020,Fees (Including College Members),Innovation and Skills Group CDSU,Unspecified,98811062,170.00,Fees (Including College Members)
BEIS,UKRI - BBSRC,08/09/2020,Fees (Including College Members),Innovation and Skills Group CDSU,Unspecified,98811063,170.00,Fees (Including College Members)
BEIS,UKRI - BBSRC,08/09/2020,Fees (Including College Members),Innovation and Skills Group CDSU,Unspecified,98811064,230.00,Fees (Including College Members)
BEIS,UKRI - BBSRC,08/09/2020,Fees (Including College Members),Innovation and Skills Group CDSU,Unspecified,98811065,170.00,Fees (Including College Members)
BEIS,UKRI - BBSRC,08/09/2020,Fees (Including College Members),Innovation and Skills Group CDSU,Unspecified,98811066,340.00,Fees (Including College Members)
BEIS,UKRI - BBSRC,08/09/2020,Fees (Including College Members),Innovation and Skills Group CDSU,Unspecified,98811067,680.00,Fees (Including College Members)
BEIS,UKRI - BBSRC,08/09/2020,Fees (Including College Members),Innovation and Skills Group CDSU,Unspecified,98811068,340.00,Fees (Including College Members)
BEIS,UKRI - BBSRC,09/09/2020,Unspecified,CE - CPS,Unspecified,98802251,12102.60,Legal & Professional Services
BEIS,UKRI - BBSRC,09/09/2020,T&S UK - Other Charges,CE - CPS,Unspecified,98807640,184.97,T&S UK - Other Charges
BEIS,UKRI - BBSRC,09/09/2020,Research Institutes - Capital Grants: Minor Works,JIC,John Innes Centre,98811411,10748.49,Research Institutes - Capital Grants: Minor Works
BEIS,UKRI - BBSRC,09/09/2020,T&S Overseas - Public Transport,RISD - UKRO,Corporate Travel Management (North) Ltd,98813745,308.00,T&S Overseas - Public Transport
BEIS,UKRI - BBSRC,09/09/2020,T&S Overseas - Public Transport,RISD - UKRO,Corporate Travel Management (North) Ltd,98813745,4.50,T&S Overseas - Public Transport
BEIS,UKRI - BBSRC,09/09/2020,T&S UK - Accommodation,FG - Estates,Corporate Travel Management (North) Ltd,98813745,112.50,T&S UK - Accommodation
BEIS,UKRI - BBSRC,09/09/2020,T&S UK - Accommodation,FG - Estates,Corporate Travel Management (North) Ltd,98813745,0.80,T&S UK - Accommodation
BEIS,UKRI - BBSRC,09/09/2020,T&S UK - Accommodation,FG - Estates,Corporate Travel Management (North) Ltd,98813745,0.16,T&S UK - Accommodation
BEIS,UKRI - BBSRC,10/09/2020,Research Institutes - Capital Grants: Major Works,Pirbright,The Pirbright Institute,98814565,124623.59,Research Institutes - Capital Grants: Major Works
BEIS,UKRI - BBSRC,11/09/2020,Unspecified,FG - Estates,Womble Bond Dickinson LLP,98811689,381.10,Legal & Professional Services
BEIS,UKRI - BBSRC,11/09/2020,Unspecified,FG - Estates,Womble Bond Dickinson LLP,98811697,3165.40,Legal & Professional Services
BEIS,UKRI - BBSRC,11/09/2020,Fees (Including College Members),Innovation and Skills Group CDSU,Unspecified,98815622,340.00,Fees (Including College Members)
BEIS,UKRI - BBSRC,11/09/2020,Fees (Including College Members),Innovation and Skills Group CDSU,Unspecified,98815623,170.00,Fees (Including College Members)
BEIS,UKRI - BBSRC,11/09/2020,Fees (Including College Members),Innovation and Skills Group CDSU,Unspecified,98815624,340.00,Fees (Including College Members)
BEIS,UKRI - BBSRC,11/09/2020,Fees (Including College Members),Innovation and Skills Group CDSU,Unspecified,98815625,170.00,Fees (Including College Members)
BEIS,UKRI - BBSRC,11/09/2020,Fees (Including College Members),Innovation and Skills Group CDSU,Unspecified,98815626,170.00,Fees (Including College Members)
BEIS,UKRI - BBSRC,11/09/2020,Fees (Including College Members),Innovation and Skills Group CDSU,Unspecified,98815627,170.00,Fees (Including College Members)
BEIS,UKRI - BBSRC,11/09/2020,Fees (Including College Members),Innovation and Skills Group CDSU,Unspecified,98815628,170.00,Fees (Including College Members)
BEIS,UKRI - BBSRC,14/09/2020,Research Institutes - Capital Grants: Major Works,Pirbright,The Pirbright Institute,98802454,9953.12,Research Institutes - Capital Grants: Major Works
BEIS,UKRI - BBSRC,14/09/2020,Unspecified,Balance Sheet,HM Revenue & Customs,98803312,66582.60,PAYE Payable Salaries
BEIS,UKRI - BBSRC,14/09/2020,Unspecified,Balance Sheet,HM Revenue & Customs,98803313,4264.00,Student Loans
BEIS,UKRI - BBSRC,14/09/2020,Unspecified,Balance Sheet,HM Revenue & Customs,98803314,90592.13,NI Payable Salaries
BEIS,UKRI - BBSRC,14/09/2020,Unspecified,FG - Accounts & Business Planning,HM Revenue & Customs,98803315,2336.00,Apprenticeship Levy
BEIS,UKRI - BBSRC,14/09/2020,Unspecified,Balance Sheet,HM Revenue & Customs,98805250,1867.51,PAYE Payable Salaries
BEIS,UKRI - BBSRC,14/09/2020,Unspecified,Balance Sheet,HM Revenue & Customs,98805251,13.98,NI Payable Salaries
BEIS,UKRI - BBSRC,14/09/2020,Unspecified,FG - Accounts & Business Planning,HM Revenue & Customs,98805252,30.00,Apprenticeship Levy
BEIS,UKRI - BBSRC,14/09/2020,Unspecified,FG - Estates,Womble Bond Dickinson LLP,98815039,1175.70,Legal & Professional Services
BEIS,UKRI - BBSRC,14/09/2020,Unspecified,FG - Estates,Womble Bond Dickinson LLP,98815039,13027.58,Legal & Professional Services
BEIS,UKRI - BBSRC,14/09/2020,Research Grant Expenditure,SPF W1 EMBL EBI,EMBL (European Molecular Biology Laboratory),98815061,5608.30,Research Grant Expenditure
BEIS,UKRI - BBSRC,15/09/2020,Union Deductions,Balance Sheet,PCS Union,98803316,73.90,Union Deductions
BEIS,UKRI - BBSRC,15/09/2020,Unspecified,Balance Sheet,Unspecified,98803318,22183.62,Ees Pension Deductions - JSS
BEIS,UKRI - BBSRC,15/09/2020,Unspecified,Balance Sheet,Unspecified,98803319,95099.65,Ers Pension Deductions - JSS
BEIS,UKRI - BBSRC,15/09/2020,Unspecified,Balance Sheet,Scottish Widows Life Assurance,98803320,10.00,Other Pension Deductions
BEIS,UKRI - BBSRC,15/09/2020,Unspecified,Balance Sheet,Cabinet Office RM Shared Services,98803321,16.24,Ers Pension Deductions - JSS
BEIS,UKRI - BBSRC,15/09/2020,Unspecified,Balance Sheet,Cabinet Office RM Shared Services,98803322,6151.33,Ees Pension Deductions - MyCSP
BEIS,UKRI - BBSRC,15/09/2020,Unspecified,Balance Sheet,Cabinet Office RM Shared Services,98803323,30926.39,Ers Pension Deductions - MyCSP
BEIS,UKRI - BBSRC,15/09/2020,Voluntary Deductions,Balance Sheet,St Elizabeth’s Centre,98805253,570.83,Voluntary Deductions
BEIS,UKRI - BBSRC,15/09/2020,Nursery Deductions,Balance Sheet,UKRI - Engineering & Physical Sciences Research Council,98805703,1628.00,Nursery Deductions
BEIS,UKRI - BBSRC,15/09/2020,International Awards - Non Capital,Innovation and Skills Group,UKRI - Natural Environment Research Council,98811366,79594.48,International Awards - Non Capital
BEIS,UKRI - BBSRC,15/09/2020,International Awards - Non Capital,Innovation and Skills Group,UKRI - Natural Environment Research Council,98813865,173908.43,International Awards - Non Capital
BEIS,UKRI - BBSRC,15/09/2020,Other Training Awards,Future Leaders: Fellows,UKRI - Engineering & Physical Sciences Research Council,98815874,23719.97,Other Training Awards
BEIS,UKRI - BBSRC,15/09/2020,Fellowships,Innovation and Skills Group,UKRI - Engineering & Physical Sciences Research Council,98815879,7790.97,Fellowships
BEIS,UKRI - BBSRC,15/09/2020,Fellowships,Innovation and Skills Group,UKRI - Engineering & Physical Sciences Research Council,98815880,16238.38,Fellowships
BEIS,UKRI - BBSRC,15/09/2020,Fellowships,Innovation and Skills Group,UKRI - Engineering & Physical Sciences Research Council,98815881,7054.77,Fellowships
BEIS,UKRI - BBSRC,15/09/2020,Fellowships,Innovation and Skills Group,UKRI - Engineering & Physical Sciences Research Council,98815883,30487.95,Fellowships
BEIS,UKRI - BBSRC,15/09/2020,Fellowships,Innovation and Skills Group,UKRI - Engineering & Physical Sciences Research Council,98815889,18638.88,Fellowships
BEIS,UKRI - BBSRC,15/09/2020,Recruitment Costs,PDG - Director,Onefix Recruitment Ltd,98816259,150.00,Recruitment Costs
BEIS,UKRI - BBSRC,15/09/2020,Research Grant Expenditure,Innovation and Skills Group,UKRI - Engineering & Physical Sciences Research Council,98816363,41685.70,Research Grant Expenditure
BEIS,UKRI - BBSRC,15/09/2020,Research Grant Expenditure,Science Group,UKRI - Engineering & Physical Sciences Research Council,98816370,6905.84,Research Grant Expenditure
BEIS,UKRI - BBSRC,15/09/2020,Research Grant Expenditure,Science Group,UKRI - Engineering & Physical Sciences Research Council,98816379,1340.91,Research Grant Expenditure
BEIS,UKRI - BBSRC,15/09/2020,Research Grant Expenditure,Science Group,UKRI - Engineering & Physical Sciences Research Council,98816384,3559.61,Research Grant Expenditure
BEIS,UKRI - BBSRC,15/09/2020,Research Grant Expenditure,Science Group,UKRI - Engineering & Physical Sciences Research Council,98816397,15864.95,Research Grant Expenditure
BEIS,UKRI - BBSRC,15/09/2020,Research Grant Expenditure,Science Group,UKRI - Engineering & Physical Sciences Research Council,98816408,11873.51,Research Grant Expenditure
BEIS,UKRI - BBSRC,15/09/2020,Research Grant Expenditure,Research: Responsive,UKRI - Engineering & Physical Sciences Research Council,98816418,130105.64,Research Grant Expenditure
BEIS,UKRI - BBSRC,15/09/2020,Research Grant Expenditure,Research: Responsive,UKRI - Engineering & Physical Sciences Research Council,98816419,70288.02,Research Grant Expenditure
BEIS,UKRI - BBSRC,15/09/2020,Fees (Including College Members),Innovation and Skills Group CDSU,Unspecified,98818015,230.00,Fees (Including College Members)
BEIS,UKRI - BBSRC,15/09/2020,Fees (Including College Members),Innovation and Skills Group CDSU,Unspecified,98818016,170.00,Fees (Including College Members)
BEIS,UKRI - BBSRC,15/09/2020,Fees (Including College Members),Innovation and Skills Group CDSU,Unspecified,98818017,230.00,Fees (Including College Members)
BEIS,UKRI - BBSRC,15/09/2020,Fees (Including College Members),Innovation and Skills Group CDSU,Unspecified,98818019,170.00,Fees (Including College Members)
BEIS,UKRI - BBSRC,15/09/2020,Fees (Including College Members),Innovation and Skills Group CDSU,Unspecified,98818020,170.00,Fees (Including College Members)
BEIS,UKRI - BBSRC,15/09/2020,Fees (Including College Members),Innovation and Skills Group CDSU,Unspecified,98818021,170.00,Fees (Including College Members)
BEIS,UKRI - BBSRC,15/09/2020,Non-staff travel and subsistance,Innovation and Skills Group CDSU,Unspecified,98818022,288.00,Non-staff travel and subsistance
BEIS,UKRI - BBSRC,15/09/2020,Fees (Including College Members),Innovation and Skills Group CDSU,Unspecified,98818023,170.00,Fees (Including College Members)
BEIS,UKRI - BBSRC,15/09/2020,Research Grant Expenditure,Impact & Knowledge Exchange,UKRI - Engineering & Physical Sciences Research Council,98818033,51990.32,Research Grant Expenditure
BEIS,UKRI - BBSRC,15/09/2020,Research Grant Expenditure,Science Group,UKRI - Engineering & Physical Sciences Research Council,98818089,8601.57,Research Grant Expenditure
BEIS,UKRI - BBSRC,15/09/2020,Research Grant Expenditure,Innovation and Skills Group,UKRI - Engineering & Physical Sciences Research Council,98818092,42389.92,Research Grant Expenditure
BEIS,UKRI - BBSRC,15/09/2020,Research Grant Expenditure,Science Group,UKRI - Engineering & Physical Sciences Research Council,98818093,9537.51,Research Grant Expenditure
BEIS,UKRI - BBSRC,15/09/2020,Research Grant Expenditure,Innovation and Skills Group,UKRI - Engineering & Physical Sciences Research Council,98818097,74216.60,Research Grant Expenditure
BEIS,UKRI - BBSRC,16/09/2020,Research Institutes - Capital Grants: Major Works,Pirbright,The Pirbright Institute,98816686,23728.00,Research Institutes - Capital Grants: Major Works
BEIS,UKRI - BBSRC,17/09/2020,Recruitment Costs,PDG - Director,Onefix Recruitment Ltd,98816750,666.00,Recruitment Costs
BEIS,UKRI - BBSRC,17/09/2020,Recruitment Costs,PDG - Director,Onefix Recruitment Ltd,98816759,1458.00,Recruitment Costs
BEIS,UKRI - BBSRC,17/09/2020,Research Grant Expenditure,SPF W1 EMBL EBI,EMBL (European Molecular Biology Laboratory),98816978,11458.20,Research Grant Expenditure
BEIS,UKRI - BBSRC,18/09/2020,Dep't of Environ Food & Rural Affairs (DEFRA),Pirbright,The Pirbright Institute,98816844,42275.00,Dep't of Environ Food & Rural Affairs (DEFRA)
BEIS,UKRI - BBSRC,18/09/2020,Dep't of Environ Food & Rural Affairs (DEFRA),Pirbright,The Pirbright Institute,98816846,6701.00,Dep't of Environ Food & Rural Affairs (DEFRA)
BEIS,UKRI - BBSRC,18/09/2020,Dep't of Environ Food & Rural Affairs (DEFRA),Pirbright,The Pirbright Institute,98816979,338372.00,Dep't of Environ Food & Rural Affairs (DEFRA)
BEIS,UKRI - BBSRC,18/09/2020,Dep't of Environ Food & Rural Affairs (DEFRA),Pirbright,The Pirbright Institute,98816980,317203.00,Dep't of Environ Food & Rural Affairs (DEFRA)
BEIS,UKRI - BBSRC,18/09/2020,Research Institutes - Capital Grants: Major Works,Estates - Projects,EMBL (European Molecular Biology Laboratory),98820233,11266.55,Research Institutes - Capital Grants: Major Works
BEIS,UKRI - BBSRC,22/09/2020,Compensation Payments,FG - Accounts & Business Planning,JSS Pensions Administration,98814289,1267.18,Compensation Payments
BEIS,UKRI - BBSRC,22/09/2020,International Awards - Non Capital,Innovation and Skills Group,UKRI - Economic & Social Research Council,98816950,56378.40,International Awards - Non Capital
BEIS,UKRI - BBSRC,22/09/2020,International Awards - Non Capital,Innovation and Skills Group,UKRI - Economic & Social Research Council,98818331,124184.06,International Awards - Non Capital
BEIS,UKRI - BBSRC,22/09/2020,Research Grant Expenditure,Science Group,UKRI - Engineering & Physical Sciences Research Council,98818420,7994.44,Research Grant Expenditure
BEIS,UKRI - BBSRC,22/09/2020,Research Grant Expenditure,Science Group,UKRI - Engineering & Physical Sciences Research Council,98819518,9517.59,Research Grant Expenditure
BEIS,UKRI - BBSRC,22/09/2020,Research Grant Expenditure,Research: Strategic,UKRI - Engineering & Physical Sciences Research Council,98819523,23985.09,Research Grant Expenditure
BEIS,UKRI - BBSRC,22/09/2020,Research Grant Expenditure,Research: Strategic,UKRI - Engineering & Physical Sciences Research Council,98819525,10840.48,Research Grant Expenditure
BEIS,UKRI - BBSRC,22/09/2020,Research Grant Expenditure,Research: Strategic,UKRI - Engineering & Physical Sciences Research Council,98819527,7994.44,Research Grant Expenditure
BEIS,UKRI - BBSRC,22/09/2020,Research Grant Expenditure,Research: Strategic,UKRI - Engineering & Physical Sciences Research Council,98819529,2856.50,Research Grant Expenditure
BEIS,UKRI - BBSRC,22/09/2020,Recruitment Costs,PDG - Director,Agenda Resource Management Ltd,98820536,153.91,Recruitment Costs
BEIS,UKRI - BBSRC,22/09/2020,T&S UK - Other Charges,Science Group,Unspecified,98820814,184.97,T&S UK - Other Charges
BEIS,UKRI - BBSRC,22/09/2020,Fees (Including College Members),Innovation and Skills Group CDSU,Unspecified,98821804,340.00,Fees (Including College Members)
BEIS,UKRI - BBSRC,22/09/2020,Fees (Including College Members),Innovation and Skills Group CDSU,Unspecified,98821805,170.00,Fees (Including College Members)
BEIS,UKRI - BBSRC,22/09/2020,Fees (Including College Members),Innovation and Skills Group CDSU,Unspecified,98821806,340.00,Fees (Including College Members)
BEIS,UKRI - BBSRC,22/09/2020,Fees (Including College Members),Innovation and Skills Group CDSU,Unspecified,98821807,340.00,Fees (Including College Members)
BEIS,UKRI - BBSRC,22/09/2020,Fees (Including College Members),Innovation and Skills Group CDSU,Unspecified,98821808,460.00,Fees (Including College Members)
BEIS,UKRI - BBSRC,22/09/2020,Fees (Including College Members),Innovation and Skills Group CDSU,Unspecified,98821809,170.00,Fees (Including College Members)
BEIS,UKRI - BBSRC,23/09/2020,Research Institutes - Competitive Strategic Grant,TGAC,Earlham Institute,98805260,167372.13,Research Institutes - Competitive Strategic Grant
BEIS,UKRI - BBSRC,23/09/2020,Research Institutes - Competitive Strategic Grant,TGAC,Earlham Institute,98805260,78195.44,Research Institutes - Competitive Strategic Grant
BEIS,UKRI - BBSRC,23/09/2020,Research Institutes - Competitive Strategic Grant,TGAC,Earlham Institute,98805260,41249.97,Research Institutes - Competitive Strategic Grant
BEIS,UKRI - BBSRC,23/09/2020,Research Institutes - Competitive Strategic Grant,TGAC,Earlham Institute,98805260,33333.31,Research Institutes - Competitive Strategic Grant
BEIS,UKRI - BBSRC,23/09/2020,Research Institutes - Competitive Strategic Grant,TGAC,Earlham Institute,98805260,117765.49,Research Institutes - Competitive Strategic Grant
BEIS,UKRI - BBSRC,23/09/2020,Research Institutes - Competitive Strategic Grant,TGAC,Earlham Institute,98805260,2916.66,Research Institutes - Competitive Strategic Grant
BEIS,UKRI - BBSRC,23/09/2020,Institute Grant Expenditure,IFR,Quadram Institute Bioscience,98805275,79400.00,Institute Grant Expenditure
BEIS,UKRI - BBSRC,23/09/2020,Institute Grant Expenditure,JIC,John Innes Centre,98805290,94200.00,Institute Grant Expenditure
BEIS,UKRI - BBSRC,23/09/2020,Research Institutes - Competitive Strategic Grant,IFR,Quadram Institute Bioscience,98805291,23130.89,Research Institutes - Competitive Strategic Grant
BEIS,UKRI - BBSRC,23/09/2020,Research Institutes - Competitive Strategic Grant,IFR,Quadram Institute Bioscience,98805291,344143.33,Research Institutes - Competitive Strategic Grant
BEIS,UKRI - BBSRC,23/09/2020,Research Institutes - Competitive Strategic Grant,IFR,Quadram Institute Bioscience,98805291,46083.29,Research Institutes - Competitive Strategic Grant
BEIS,UKRI - BBSRC,23/09/2020,Research Institutes - Competitive Strategic Grant,IFR,Quadram Institute Bioscience,98805291,265775.16,Research Institutes - Competitive Strategic Grant
BEIS,UKRI - BBSRC,23/09/2020,Research Institutes - Competitive Strategic Grant,IFR,Quadram Institute Bioscience,98805291,5833.33,Research Institutes - Competitive Strategic Grant
BEIS,UKRI - BBSRC,23/09/2020,Institute Grant Expenditure,IFR,Quadram Institute Bioscience,98805295,80221.50,Institute Grant Expenditure
BEIS,UKRI - BBSRC,23/09/2020,Institute Grant Expenditure,IFR,Quadram Institute Bioscience,98805298,83540.00,Institute Grant Expenditure
BEIS,UKRI - BBSRC,23/09/2020,Research Institutes - Capital Grants: Major Works,IFR,Quadram Institute Bioscience,98805300,121433.25,Research Institutes - Capital Grants: Major Works
BEIS,UKRI - BBSRC,23/09/2020,Research Institutes - Competitive Strategic Grant,JIC,John Innes Centre,98805305,21499.99,Research Institutes - Competitive Strategic Grant
BEIS,UKRI - BBSRC,23/09/2020,Research Institutes - Competitive Strategic Grant,JIC,John Innes Centre,98805305,499916.52,Research Institutes - Competitive Strategic Grant
BEIS,UKRI - BBSRC,23/09/2020,Research Institutes - Competitive Strategic Grant,JIC,John Innes Centre,98805305,65333.31,Research Institutes - Competitive Strategic Grant
BEIS,UKRI - BBSRC,23/09/2020,Research Institutes - Competitive Strategic Grant,JIC,John Innes Centre,98805305,513249.85,Research Institutes - Competitive Strategic Grant
BEIS,UKRI - BBSRC,23/09/2020,Research Institutes - Competitive Strategic Grant,JIC,John Innes Centre,98805305,7083.33,Research Institutes - Competitive Strategic Grant
BEIS,UKRI - BBSRC,23/09/2020,Institute Grant Expenditure,JIC,John Innes Centre,98805312,25760.00,Institute Grant Expenditure
BEIS,UKRI - BBSRC,23/09/2020,Institute Grant Expenditure,JIC,John Innes Centre,98805319,198600.00,Institute Grant Expenditure
BEIS,UKRI - BBSRC,23/09/2020,Institute Grant Expenditure,JIC,John Innes Centre,98805326,69760.00,Institute Grant Expenditure
BEIS,UKRI - BBSRC,23/09/2020,Research Institutes - Competitive Strategic Grant,Babraham Institute,Babraham Institute,98805558,352459.91,Research Institutes - Competitive Strategic Grant
BEIS,UKRI - BBSRC,23/09/2020,Research Institutes - Competitive Strategic Grant,Babraham Institute,Babraham Institute,98805558,48750.01,Research Institutes - Competitive Strategic Grant
BEIS,UKRI - BBSRC,23/09/2020,Research Institutes - Competitive Strategic Grant,Babraham Institute,Babraham Institute,98805558,395666.75,Research Institutes - Competitive Strategic Grant
BEIS,UKRI - BBSRC,23/09/2020,Research Institutes - Competitive Strategic Grant,Babraham Institute,Babraham Institute,98805558,5833.33,Research Institutes - Competitive Strategic Grant
BEIS,UKRI - BBSRC,23/09/2020,Research Institutes - Competitive Strategic Grant,Pirbright,The Pirbright Institute,98811030,816143.92,Research Institutes - Competitive Strategic Grant
BEIS,UKRI - BBSRC,23/09/2020,Research Institutes - Competitive Strategic Grant,Pirbright,The Pirbright Institute,98811030,233969.59,Research Institutes - Competitive Strategic Grant
BEIS,UKRI - BBSRC,23/09/2020,Research Institutes - Competitive Strategic Grant,Pirbright,The Pirbright Institute,98811030,33329.00,Research Institutes - Competitive Strategic Grant
BEIS,UKRI - BBSRC,23/09/2020,Research Institutes - Competitive Strategic Grant,Pirbright,The Pirbright Institute,98811030,199807.36,Research Institutes - Competitive Strategic Grant
BEIS,UKRI - BBSRC,23/09/2020,Research Institutes - Competitive Strategic Grant,Pirbright,The Pirbright Institute,98811030,4166.13,Research Institutes - Competitive Strategic Grant
BEIS,UKRI - BBSRC,23/09/2020,Institute Grant Expenditure,Rothamsted Research,Rothamsted Research Ltd,98811071,49250.00,Institute Grant Expenditure
BEIS,UKRI - BBSRC,23/09/2020,Research Institutes - Competitive Strategic Grant,Rothamsted Research,Rothamsted Research Ltd,98811200,111253.33,Research Institutes - Competitive Strategic Grant
BEIS,UKRI - BBSRC,23/09/2020,Research Institutes - Competitive Strategic Grant,Rothamsted Research,Rothamsted Research Ltd,98811200,418416.67,Research Institutes - Competitive Strategic Grant
BEIS,UKRI - BBSRC,23/09/2020,Research Institutes - Competitive Strategic Grant,Rothamsted Research,Rothamsted Research Ltd,98811200,64666.67,Research Institutes - Competitive Strategic Grant
BEIS,UKRI - BBSRC,23/09/2020,Research Institutes - Competitive Strategic Grant,Rothamsted Research,Rothamsted Research Ltd,98811200,197000.00,Research Institutes - Competitive Strategic Grant
BEIS,UKRI - BBSRC,23/09/2020,Research Institutes - Competitive Strategic Grant,Rothamsted Research,Rothamsted Research Ltd,98811200,7083.33,Research Institutes - Competitive Strategic Grant
BEIS,UKRI - BBSRC,23/09/2020,Fellowships,FG - Accounts & Business Planning,The University of Manchester,98811310,25370.91,Fellowships
BEIS,UKRI - BBSRC,23/09/2020,Fellowships,FG - Accounts & Business Planning,University of Bristol GRANT,98811311,31908.57,Fellowships
BEIS,UKRI - BBSRC,23/09/2020,Fellowships,FG - Accounts & Business Planning,University of Birmingham GRANT,98811312,25269.16,Fellowships
BEIS,UKRI - BBSRC,23/09/2020,Fellowships,FG - Accounts & Business Planning,The University of Manchester,98811313,48146.54,Fellowships
BEIS,UKRI - BBSRC,23/09/2020,Fellowships,FG - Accounts & Business Planning,University of Oxford,98811314,44251.25,Fellowships
BEIS,UKRI - BBSRC,23/09/2020,Fellowships,FG - Accounts & Business Planning,University of Oxford,98811315,52700.51,Fellowships
BEIS,UKRI - BBSRC,23/09/2020,Fellowships,FG - Accounts & Business Planning,The University of Manchester,98811316,50211.17,Fellowships
BEIS,UKRI - BBSRC,23/09/2020,Fellowships,FG - Accounts & Business Planning,University of Exeter,98811317,44029.86,Fellowships
BEIS,UKRI - BBSRC,23/09/2020,Fellowships,FG - Accounts & Business Planning,University of Leeds,98811318,51826.63,Fellowships
BEIS,UKRI - BBSRC,23/09/2020,Fellowships,FG - Accounts & Business Planning,Royal Veterinary College,98811319,7682.00,Fellowships
BEIS,UKRI - BBSRC,23/09/2020,Fellowships,FG - Accounts & Business Planning,Royal Veterinary College,98811319,7682.02,Fellowships
BEIS,UKRI - BBSRC,23/09/2020,Fellowships,FG - Accounts & Business Planning,Royal Veterinary College,98811319,7682.00,Fellowships
BEIS,UKRI - BBSRC,23/09/2020,Fellowships,FG - Accounts & Business Planning,Royal Veterinary College,98811319,7682.00,Fellowships
BEIS,UKRI - BBSRC,23/09/2020,Fellowships,FG - Accounts & Business Planning,Royal Veterinary College,98811319,7682.02,Fellowships
BEIS,UKRI - BBSRC,23/09/2020,Fellowships,FG - Accounts & Business Planning,University College London,98811320,40212.98,Fellowships
BEIS,UKRI - BBSRC,23/09/2020,Fellowships,FG - Accounts & Business Planning,John Innes Centre,98811321,55811.11,Fellowships
BEIS,UKRI - BBSRC,23/09/2020,Fellowships,FG - Accounts & Business Planning,University of Cambridge,98811322,40085.98,Fellowships
BEIS,UKRI - BBSRC,23/09/2020,Fellowships,FG - Accounts & Business Planning,University of Exeter,98811323,25608.61,Fellowships
BEIS,UKRI - BBSRC,23/09/2020,Fellowships,FG - Accounts & Business Planning,University of Liverpool,98811324,23627.48,Fellowships
BEIS,UKRI - BBSRC,23/09/2020,Fellowships,FG - Accounts & Business Planning,John Innes Centre,98811325,25612.45,Fellowships
BEIS,UKRI - BBSRC,23/09/2020,Fellowships,FG - Accounts & Business Planning,University of East Anglia,98811326,25525.00,Fellowships
BEIS,UKRI - BBSRC,23/09/2020,Fellowships,FG - Accounts & Business Planning,University of Oxford,98811327,25406.52,Fellowships
BEIS,UKRI - BBSRC,23/09/2020,Fellowships,FG - Accounts & Business Planning,University of Warwick,98811328,25552.76,Fellowships
BEIS,UKRI - BBSRC,23/09/2020,Fellowships,FG - Accounts & Business Planning,University of Cambridge,98811329,25483.70,Fellowships
BEIS,UKRI - BBSRC,23/09/2020,Fellowships,FG - Accounts & Business Planning,University of Glasgow,98811330,25260.51,Fellowships
BEIS,UKRI - BBSRC,23/09/2020,Fellowships,FG - Accounts & Business Planning,Imperial College London,98811331,42545.10,Fellowships
BEIS,UKRI - BBSRC,23/09/2020,Fellowships,FG - Accounts & Business Planning,Imperial College London,98811332,54470.71,Fellowships
BEIS,UKRI - BBSRC,23/09/2020,Fellowships,FG - Accounts & Business Planning,University of Cambridge,98811333,50739.23,Fellowships
BEIS,UKRI - BBSRC,23/09/2020,Fellowships,FG - Accounts & Business Planning,University of Cambridge,98811334,52802.69,Fellowships
BEIS,UKRI - BBSRC,23/09/2020,Fellowships,FG - Accounts & Business Planning,University of Edinburgh,98811335,23132.57,Fellowships
BEIS,UKRI - BBSRC,23/09/2020,Fellowships,FG - Accounts & Business Planning,University of Newcastle Upon Tyne,98811336,49884.46,Fellowships
BEIS,UKRI - BBSRC,23/09/2020,Fellowships,FG - Accounts & Business Planning,University of St Andrews,98811337,24186.32,Fellowships
BEIS,UKRI - BBSRC,23/09/2020,Fellowships,FG - Accounts & Business Planning,University of Edinburgh,98811338,25309.14,Fellowships
BEIS,UKRI - BBSRC,23/09/2020,Fellowships,FG - Accounts & Business Planning,John Innes Centre,98811339,25078.73,Fellowships
BEIS,UKRI - BBSRC,23/09/2020,Fellowships,FG - Accounts & Business Planning,University of Oxford,98811340,24977.02,Fellowships
BEIS,UKRI - BBSRC,23/09/2020,Fellowships,FG - Accounts & Business Planning,University of Nottingham,98811341,25196.17,Fellowships
BEIS,UKRI - BBSRC,23/09/2020,Fellowships,FG - Accounts & Business Planning,The University of Manchester,98811342,25406.65,Fellowships
BEIS,UKRI - BBSRC,23/09/2020,Fellowships,FG - Accounts & Business Planning,The University of Manchester,98811343,25384.39,Fellowships
BEIS,UKRI - BBSRC,23/09/2020,Fellowships,FG - Accounts & Business Planning,University College London,98811344,24975.13,Fellowships
BEIS,UKRI - BBSRC,23/09/2020,Fellowships,FG - Accounts & Business Planning,University of Birmingham GRANT,98811345,45324.99,Fellowships
BEIS,UKRI - BBSRC,23/09/2020,Capital Grants & Equipment to HEIs,FG - Accounts & Business Planning,University of Liverpool,98811346,4246.90,Capital Grants & Equipment to HEIs
BEIS,UKRI - BBSRC,23/09/2020,Fellowships,FG - Accounts & Business Planning,University of Liverpool,98811346,45884.06,Fellowships
BEIS,UKRI - BBSRC,23/09/2020,Fellowships,FG - Accounts & Business Planning,University College London,98811347,43981.51,Fellowships
BEIS,UKRI - BBSRC,23/09/2020,Fellowships,FG - Accounts & Business Planning,University College London,98811348,25402.91,Fellowships
BEIS,UKRI - BBSRC,23/09/2020,Fellowships,FG - Accounts & Business Planning,The University of Manchester,98811349,25401.56,Fellowships
BEIS,UKRI - BBSRC,23/09/2020,Fellowships,FG - Accounts & Business Planning,Bangor University,98811350,26831.91,Fellowships
BEIS,UKRI - BBSRC,23/09/2020,Fellowships,FG - Accounts & Business Planning,Babraham Institute,98811351,25187.26,Fellowships
BEIS,UKRI - BBSRC,23/09/2020,Fellowships,FG - Accounts & Business Planning,University of Sheffield,98811352,25160.42,Fellowships
BEIS,UKRI - BBSRC,23/09/2020,Fellowships,FG - Accounts & Business Planning,University of Durham,98811353,25194.73,Fellowships
BEIS,UKRI - BBSRC,23/09/2020,Fellowships,FG - Accounts & Business Planning,Cardiff University,98811354,25201.38,Fellowships
BEIS,UKRI - BBSRC,23/09/2020,Fellowships,FG - Accounts & Business Planning,University of Sheffield,98811355,25201.50,Fellowships
BEIS,UKRI - BBSRC,23/09/2020,Fellowships,FG - Accounts & Business Planning,University of Oxford,98811356,25202.50,Fellowships
BEIS,UKRI - BBSRC,23/09/2020,Fellowships,FG - Accounts & Business Planning,University of Cambridge,98811357,44603.95,Fellowships
BEIS,UKRI - BBSRC,23/09/2020,Fellowships,FG - Accounts & Business Planning,Institute of Cancer Research,98811358,25190.65,Fellowships
BEIS,UKRI - BBSRC,23/09/2020,Fellowships,FG - Accounts & Business Planning,University of Exeter,98811359,45280.03,Fellowships
BEIS,UKRI - BBSRC,23/09/2020,Fellowships,FG - Accounts & Business Planning,University of Exeter,98811359,45280.03,Fellowships
BEIS,UKRI - BBSRC,23/09/2020,Research Grant Expenditure,FG - Accounts & Business Planning,University of Bristol GRANT,98811981,411830.66,Research Grant Expenditure
BEIS,UKRI - BBSRC,23/09/2020,Research Grant Expenditure,FG - Accounts & Business Planning,University of Nottingham,98812001,509614.14,Research Grant Expenditure
BEIS,UKRI - BBSRC,23/09/2020,Research Grant Expenditure,FG - Accounts & Business Planning,University of Cambridge,98812004,308696.28,Research Grant Expenditure
BEIS,UKRI - BBSRC,23/09/2020,Research Grant Expenditure,FG - Accounts & Business Planning,University of Cambridge,98812007,66994.86,Research Grant Expenditure
BEIS,UKRI - BBSRC,23/09/2020,Research Grant Expenditure,FG - Accounts & Business Planning,University of Sheffield,98812013,93135.24,Research Grant Expenditure
BEIS,UKRI - BBSRC,23/09/2020,Research Grant Expenditure,FG - Accounts & Business Planning,University of Kent,98812019,52576.29,Research Grant Expenditure
BEIS,UKRI - BBSRC,23/09/2020,Research Grant Expenditure,FG - Accounts & Business Planning,The Pirbright Institute,98812025,15215.48,Research Grant Expenditure
BEIS,UKRI - BBSRC,23/09/2020,Research Grant Expenditure,FG - Accounts & Business Planning,University of Edinburgh,98812030,319405.19,Research Grant Expenditure
BEIS,UKRI - BBSRC,23/09/2020,Research Grant Expenditure,FG - Accounts & Business Planning,University of Warwick,98812035,317939.67,Research Grant Expenditure
BEIS,UKRI - BBSRC,23/09/2020,Research Grant Expenditure,FG - Accounts & Business Planning,The University of Manchester,98812038,283699.75,Research Grant Expenditure
BEIS,UKRI - BBSRC,23/09/2020,Research Grant Expenditure,FG - Accounts & Business Planning,University of Edinburgh,98812040,28203.97,Research Grant Expenditure
BEIS,UKRI - BBSRC,23/09/2020,Research Grant Expenditure,FG - Accounts & Business Planning,University of York,98812046,61359.12,Research Grant Expenditure
BEIS,UKRI - BBSRC,23/09/2020,Research Grant Expenditure,FG - Accounts & Business Planning,University of York,98812052,39068.52,Research Grant Expenditure
BEIS,UKRI - BBSRC,23/09/2020,Research Grant Expenditure,FG - Accounts & Business Planning,John Innes Centre,98812057,46916.87,Research Grant Expenditure
BEIS,UKRI - BBSRC,23/09/2020,Research Grant Expenditure,FG - Accounts & Business Planning,Quadram Institute Bioscience,98812062,39788.79,Research Grant Expenditure
BEIS,UKRI - BBSRC,23/09/2020,Research Grant Expenditure,FG - Accounts & Business Planning,London School of Hygiene & Tropical Medicine,98812068,96303.51,Research Grant Expenditure
BEIS,UKRI - BBSRC,23/09/2020,Research Grant Expenditure,FG - Accounts & Business Planning,University of Bristol GRANT,98812073,146677.57,Research Grant Expenditure
BEIS,UKRI - BBSRC,23/09/2020,Research Grant Expenditure,FG - Accounts & Business Planning,University of Bristol GRANT,98812078,2655.98,Research Grant Expenditure
BEIS,UKRI - BBSRC,23/09/2020,Research Grant Expenditure,FG - Accounts & Business Planning,University of Reading,98812082,4293.58,Research Grant Expenditure
BEIS,UKRI - BBSRC,23/09/2020,Research Grant Expenditure,FG - Accounts & Business Planning,Royal Veterinary College,98812088,50557.99,Research Grant Expenditure
BEIS,UKRI - BBSRC,23/09/2020,Research Grant Expenditure,FG - Accounts & Business Planning,Rothamsted Research Ltd,98812092,8481.12,Research Grant Expenditure
BEIS,UKRI - BBSRC,23/09/2020,Research Grant Expenditure,FG - Accounts & Business Planning,University of Nottingham,98812097,6493.37,Research Grant Expenditure
BEIS,UKRI - BBSRC,23/09/2020,Research Grant Expenditure,FG - Accounts & Business Planning,University of Reading,98812101,42601.94,Research Grant Expenditure
BEIS,UKRI - BBSRC,23/09/2020,Research Grant Expenditure,FG - Accounts & Business Planning,Rothamsted Research Ltd,98812106,28446.57,Research Grant Expenditure
BEIS,UKRI - BBSRC,23/09/2020,Research Grant Expenditure,FG - Accounts & Business Planning,University of Sheffield,98812110,31940.21,Research Grant Expenditure
BEIS,UKRI - BBSRC,23/09/2020,Research Grant Expenditure,FG - Accounts & Business Planning,University of York,98812115,56515.59,Research Grant Expenditure
BEIS,UKRI - BBSRC,23/09/2020,Research Grant Expenditure,FG - Accounts & Business Planning,University of Cambridge,98812119,10708.15,Research Grant Expenditure
BEIS,UKRI - BBSRC,23/09/2020,Research Grant Expenditure,FG - Accounts & Business Planning,University of Nottingham,98812124,44272.07,Research Grant Expenditure
BEIS,UKRI - BBSRC,23/09/2020,Research Grant Expenditure,FG - Accounts & Business Planning,University of Southampton GRANT,98812128,9542.28,Research Grant Expenditure
BEIS,UKRI - BBSRC,23/09/2020,Research Grant Expenditure,FG - Accounts & Business Planning,University of Leicester,98812133,30845.97,Research Grant Expenditure
BEIS,UKRI - BBSRC,23/09/2020,Research Grant Expenditure,FG - Accounts & Business Planning,Lancaster University,98812137,29577.46,Research Grant Expenditure
BEIS,UKRI - BBSRC,23/09/2020,Research Grant Expenditure,FG - Accounts & Business Planning,University of Leeds,98812142,11974.20,Research Grant Expenditure
BEIS,UKRI - BBSRC,23/09/2020,Research Grant Expenditure,FG - Accounts & Business Planning,University of Leeds,98812146,14681.44,Research Grant Expenditure
BEIS,UKRI - BBSRC,23/09/2020,Research Grant Expenditure,FG - Accounts & Business Planning,University of Bristol GRANT,98812150,36255.62,Research Grant Expenditure
BEIS,UKRI - BBSRC,23/09/2020,Research Grant Expenditure,FG - Accounts & Business Planning,University of Nottingham,98812155,18450.46,Research Grant Expenditure
BEIS,UKRI - BBSRC,23/09/2020,Research Grant Expenditure,FG - Accounts & Business Planning,Babraham Institute,98812159,11602.72,Research Grant Expenditure
BEIS,UKRI - BBSRC,23/09/2020,Research Grant Expenditure,FG - Accounts & Business Planning,The University of Manchester,98812163,50909.58,Research Grant Expenditure
BEIS,UKRI - BBSRC,23/09/2020,Research Grant Expenditure,FG - Accounts & Business Planning,University College London,98812168,68512.88,Research Grant Expenditure
BEIS,UKRI - BBSRC,23/09/2020,Research Grant Expenditure,FG - Accounts & Business Planning,University of Nottingham,98812172,80661.54,Research Grant Expenditure
BEIS,UKRI - BBSRC,23/09/2020,Research Grant Expenditure,FG - Accounts & Business Planning,University of Nottingham,98812177,26292.27,Research Grant Expenditure
BEIS,UKRI - BBSRC,23/09/2020,Research Grant Expenditure,FG - Accounts & Business Planning,John Innes Centre,98812182,71173.24,Research Grant Expenditure
BEIS,UKRI - BBSRC,23/09/2020,Research Grant Expenditure,FG - Accounts & Business Planning,University of Dundee,98812186,63061.99,Research Grant Expenditure
BEIS,UKRI - BBSRC,23/09/2020,Research Grant Expenditure,FG - Accounts & Business Planning,University of Cambridge,98812191,27107.05,Research Grant Expenditure
BEIS,UKRI - BBSRC,23/09/2020,Research Grant Expenditure,FG - Accounts & Business Planning,University of Nottingham,98812196,17691.22,Research Grant Expenditure
BEIS,UKRI - BBSRC,23/09/2020,Research Grant Expenditure,FG - Accounts & Business Planning,Quadram Institute Bioscience,98812200,584.72,Research Grant Expenditure
BEIS,UKRI - BBSRC,23/09/2020,Research Grant Expenditure,FG - Accounts & Business Planning,University of York,98812203,25092.02,Research Grant Expenditure
BEIS,UKRI - BBSRC,23/09/2020,Research Grant Expenditure,FG - Accounts & Business Planning,University of Liverpool,98812208,20521.43,Research Grant Expenditure
BEIS,UKRI - BBSRC,23/09/2020,Research Grant Expenditure,FG - Accounts & Business Planning,University of Edinburgh,98812211,31600.15,Research Grant Expenditure
BEIS,UKRI - BBSRC,23/09/2020,Research Grant Expenditure,FG - Accounts & Business Planning,University of Leeds,98812216,80918.58,Research Grant Expenditure
BEIS,UKRI - BBSRC,23/09/2020,Research Grant Expenditure,FG - Accounts & Business Planning,University of Glasgow,98812220,38134.91,Research Grant Expenditure
BEIS,UKRI - BBSRC,23/09/2020,Research Grant Expenditure,FG - Accounts & Business Planning,University of Leicester,98812224,24602.76,Research Grant Expenditure
BEIS,UKRI - BBSRC,23/09/2020,Research Grant Expenditure,FG - Accounts & Business Planning,The Marine Biological Association of the United Kingdom,98812228,5031.55,Research Grant Expenditure
BEIS,UKRI - BBSRC,23/09/2020,Research Grant Expenditure,FG - Accounts & Business Planning,University of Glasgow,98812233,40471.46,Research Grant Expenditure
BEIS,UKRI - BBSRC,23/09/2020,Research Grant Expenditure,FG - Accounts & Business Planning,University of Cambridge,98812237,14994.31,Research Grant Expenditure
BEIS,UKRI - BBSRC,23/09/2020,Research Grant Expenditure,FG - Accounts & Business Planning,King's College London,98812241,9466.99,Research Grant Expenditure
BEIS,UKRI - BBSRC,23/09/2020,Research Grant Expenditure,FG - Accounts & Business Planning,University College London,98812246,16451.96,Research Grant Expenditure
BEIS,UKRI - BBSRC,23/09/2020,Research Grant Expenditure,FG - Accounts & Business Planning,University of Edinburgh,98812251,17930.75,Research Grant Expenditure
BEIS,UKRI - BBSRC,23/09/2020,Research Grant Expenditure,FG - Accounts & Business Planning,University of Newcastle Upon Tyne,98812255,14790.87,Research Grant Expenditure
BEIS,UKRI - BBSRC,23/09/2020,Research Grant Expenditure,FG - Accounts & Business Planning,University of Warwick,98812259,13657.36,Research Grant Expenditure
BEIS,UKRI - BBSRC,23/09/2020,Research Grant Expenditure,FG - Accounts & Business Planning,University of Glasgow,98812264,24691.99,Research Grant Expenditure
BEIS,UKRI - BBSRC,23/09/2020,Research Grant Expenditure,FG - Accounts & Business Planning,National Institute For Agricultural Botany (NIAB),98812268,26732.80,Research Grant Expenditure
BEIS,UKRI - BBSRC,23/09/2020,Research Grant Expenditure,FG - Accounts & Business Planning,"Royal Holloway, University of London",98812272,15601.50,Research Grant Expenditure
BEIS,UKRI - BBSRC,23/09/2020,Research Grant Expenditure,FG - Accounts & Business Planning,University of Nottingham,98812276,14937.14,Research Grant Expenditure
BEIS,UKRI - BBSRC,23/09/2020,Research Grant Expenditure,FG - Accounts & Business Planning,University of Dundee,98812281,94694.63,Research Grant Expenditure
BEIS,UKRI - BBSRC,23/09/2020,Research Grant Expenditure,FG - Accounts & Business Planning,John Innes Centre,98812285,179764.22,Research Grant Expenditure
BEIS,UKRI - BBSRC,23/09/2020,Research Grant Expenditure,FG - Accounts & Business Planning,University of Cambridge,98812289,142408.58,Research Grant Expenditure
BEIS,UKRI - BBSRC,23/09/2020,Research Grant Expenditure,FG - Accounts & Business Planning,University of Oxford,98812294,33923.93,Research Grant Expenditure
BEIS,UKRI - BBSRC,23/09/2020,Research Grant Expenditure,FG - Accounts & Business Planning,Quadram Institute Bioscience,98812298,40853.57,Research Grant Expenditure
BEIS,UKRI - BBSRC,23/09/2020,Research Grant Expenditure,FG - Accounts & Business Planning,University of Edinburgh,98812302,28320.01,Research Grant Expenditure
BEIS,UKRI - BBSRC,23/09/2020,Research Grant Expenditure,FG - Accounts & Business Planning,SRUC,98812306,18637.05,Research Grant Expenditure
BEIS,UKRI - BBSRC,23/09/2020,Research Grant Expenditure,FG - Accounts & Business Planning,King's College London,98812309,18120.83,Research Grant Expenditure
BEIS,UKRI - BBSRC,23/09/2020,Research Grant Expenditure,FG - Accounts & Business Planning,University of Bristol GRANT,98812313,23381.75,Research Grant Expenditure
BEIS,UKRI - BBSRC,23/09/2020,Research Grant Expenditure,FG - Accounts & Business Planning,University of Bath,98812317,19954.26,Research Grant Expenditure
BEIS,UKRI - BBSRC,23/09/2020,Research Grant Expenditure,FG - Accounts & Business Planning,University of Sheffield,98812321,27077.52,Research Grant Expenditure
BEIS,UKRI - BBSRC,23/09/2020,Research Grant Expenditure,FG - Accounts & Business Planning,University of Sheffield,98812321,27077.52,Research Grant Expenditure
BEIS,UKRI - BBSRC,23/09/2020,Research Grant Expenditure,FG - Accounts & Business Planning,Imperial College London,98812327,46804.77,Research Grant Expenditure
BEIS,UKRI - BBSRC,23/09/2020,Research Grant Expenditure,FG - Accounts & Business Planning,University of Leeds,98812329,20711.49,Research Grant Expenditure
BEIS,UKRI - BBSRC,23/09/2020,Research Grant Expenditure,FG - Accounts & Business Planning,Birkbeck College,98812330,28959.98,Research Grant Expenditure
BEIS,UKRI - BBSRC,23/09/2020,Research Grant Expenditure,FG - Accounts & Business Planning,Cardiff University,98812331,27062.49,Research Grant Expenditure
BEIS,UKRI - BBSRC,23/09/2020,Research Grant Expenditure,FG - Accounts & Business Planning,National Institute For Agricultural Botany (NIAB),98812332,19511.56,Research Grant Expenditure
BEIS,UKRI - BBSRC,23/09/2020,Research Grant Expenditure,FG - Accounts & Business Planning,Earlham Institute,98812333,15437.89,Research Grant Expenditure
BEIS,UKRI - BBSRC,23/09/2020,Research Grant Expenditure,FG - Accounts & Business Planning,National Institute For Agricultural Botany (NIAB),98812334,31862.60,Research Grant Expenditure
BEIS,UKRI - BBSRC,23/09/2020,Research Grant Expenditure,FG - Accounts & Business Planning,Quadram Institute Bioscience,98812335,15306.14,Research Grant Expenditure
BEIS,UKRI - BBSRC,23/09/2020,Research Grant Expenditure,FG - Accounts & Business Planning,The University of Manchester,98812336,19913.84,Research Grant Expenditure
BEIS,UKRI - BBSRC,23/09/2020,Research Grant Expenditure,FG - Accounts & Business Planning,University of Leicester,98812337,25254.04,Research Grant Expenditure
BEIS,UKRI - BBSRC,23/09/2020,Research Grant Expenditure,FG - Accounts & Business Planning,University of Southampton GRANT,98812338,22504.16,Research Grant Expenditure
BEIS,UKRI - BBSRC,23/09/2020,Research Grant Expenditure,FG - Accounts & Business Planning,University College London,98812339,24894.32,Research Grant Expenditure
BEIS,UKRI - BBSRC,23/09/2020,Research Grant Expenditure,FG - Accounts & Business Planning,University of Warwick,98812340,98518.95,Research Grant Expenditure
BEIS,UKRI - BBSRC,23/09/2020,Research Grant Expenditure,FG - Accounts & Business Planning,National Institute For Agricultural Botany (NIAB),98812341,36488.96,Research Grant Expenditure
BEIS,UKRI - BBSRC,23/09/2020,Research Grant Expenditure,FG - Accounts & Business Planning,University of Bath,98812342,94651.72,Research Grant Expenditure
BEIS,UKRI - BBSRC,23/09/2020,Research Grant Expenditure,FG - Accounts & Business Planning,University of Nottingham,98812343,70483.98,Research Grant Expenditure
BEIS,UKRI - BBSRC,23/09/2020,Research Grant Expenditure,FG - Accounts & Business Planning,Birkbeck College,98812344,36800.41,Research Grant Expenditure
BEIS,UKRI - BBSRC,23/09/2020,Research Grant Expenditure,FG - Accounts & Business Planning,Queen Mary University of London,98812345,21277.10,Research Grant Expenditure
BEIS,UKRI - BBSRC,23/09/2020,Research Grant Expenditure,FG - Accounts & Business Planning,University of Liverpool,98812346,40505.83,Research Grant Expenditure
BEIS,UKRI - BBSRC,23/09/2020,Research Grant Expenditure,FG - Accounts & Business Planning,Wellcome Trust Sanger Institute,98812347,18186.05,Research Grant Expenditure
BEIS,UKRI - BBSRC,23/09/2020,Research Grant Expenditure,FG - Accounts & Business Planning,University of Glasgow,98812348,63010.40,Research Grant Expenditure
BEIS,UKRI - BBSRC,23/09/2020,Research Grant Expenditure,FG - Accounts & Business Planning,The University of Manchester,98812349,27237.00,Research Grant Expenditure
BEIS,UKRI - BBSRC,23/09/2020,Research Grant Expenditure,FG - Accounts & Business Planning,European Bioinformatics Institute,98812350,37364.36,Research Grant Expenditure
BEIS,UKRI - BBSRC,23/09/2020,Research Grant Expenditure,FG - Accounts & Business Planning,University College London,98812351,44232.65,Research Grant Expenditure
BEIS,UKRI - BBSRC,23/09/2020,Research Grant Expenditure,FG - Accounts & Business Planning,European Bioinformatics Institute,98812352,26850.02,Research Grant Expenditure
BEIS,UKRI - BBSRC,23/09/2020,Research Grant Expenditure,FG - Accounts & Business Planning,University of Edinburgh,98812353,3079.90,Research Grant Expenditure
BEIS,UKRI - BBSRC,23/09/2020,Research Grant Expenditure,FG - Accounts & Business Planning,University of Exeter,98812354,2717.54,Research Grant Expenditure
BEIS,UKRI - BBSRC,23/09/2020,Research Grant Expenditure,FG - Accounts & Business Planning,King's College London,98812355,1269.41,Research Grant Expenditure
BEIS,UKRI - BBSRC,23/09/2020,Research Grant Expenditure,FG - Accounts & Business Planning,University of Liverpool,98812356,2381.88,Research Grant Expenditure
BEIS,UKRI - BBSRC,23/09/2020,Research Grant Expenditure,FG - Accounts & Business Planning,University of Oxford,98812357,2581.99,Research Grant Expenditure
BEIS,UKRI - BBSRC,23/09/2020,Research Grant Expenditure,FG - Accounts & Business Planning,Rothamsted Research Ltd,98812358,1931.01,Research Grant Expenditure
BEIS,UKRI - BBSRC,23/09/2020,Research Grant Expenditure,FG - Accounts & Business Planning,University of Kent,98812359,1936.49,Research Grant Expenditure
BEIS,UKRI - BBSRC,23/09/2020,Research Grant Expenditure,FG - Accounts & Business Planning,European Bioinformatics Institute,98812360,1917.93,Research Grant Expenditure
BEIS,UKRI - BBSRC,23/09/2020,Research Grant Expenditure,FG - Accounts & Business Planning,University of Dundee,98812361,1936.49,Research Grant Expenditure
BEIS,UKRI - BBSRC,23/09/2020,Research Grant Expenditure,FG - Accounts & Business Planning,The Pirbright Institute,98812362,3169.54,Research Grant Expenditure
BEIS,UKRI - BBSRC,23/09/2020,Research Grant Expenditure,FG - Accounts & Business Planning,University of Warwick,98812363,2607.66,Research Grant Expenditure
BEIS,UKRI - BBSRC,23/09/2020,Research Grant Expenditure,FG - Accounts & Business Planning,University of Exeter,98812364,1936.49,Research Grant Expenditure
BEIS,UKRI - BBSRC,23/09/2020,Research Grant Expenditure,FG - Accounts & Business Planning,University of Aberdeen,98812365,1936.49,Research Grant Expenditure
BEIS,UKRI - BBSRC,23/09/2020,Research Grant Expenditure,FG - Accounts & Business Planning,The University of Manchester,98812366,2517.44,Research Grant Expenditure
BEIS,UKRI - BBSRC,23/09/2020,Research Grant Expenditure,FG - Accounts & Business Planning,University of Stirling,98812367,24996.06,Research Grant Expenditure
BEIS,UKRI - BBSRC,23/09/2020,Research Grant Expenditure,FG - Accounts & Business Planning,Swansea University,98812368,13648.78,Research Grant Expenditure
BEIS,UKRI - BBSRC,23/09/2020,Research Grant Expenditure,FG - Accounts & Business Planning,University of Sussex,98812369,21586.77,Research Grant Expenditure
BEIS,UKRI - BBSRC,23/09/2020,Research Grant Expenditure,FG - Accounts & Business Planning,University of Newcastle Upon Tyne,98812370,27603.37,Research Grant Expenditure
BEIS,UKRI - BBSRC,23/09/2020,Research Grant Expenditure,FG - Accounts & Business Planning,University College London,98812371,32512.75,Research Grant Expenditure
BEIS,UKRI - BBSRC,23/09/2020,Research Grant Expenditure,FG - Accounts & Business Planning,University of Surrey,98812372,20892.75,Research Grant Expenditure
BEIS,UKRI - BBSRC,23/09/2020,Research Grant Expenditure,FG - Accounts & Business Planning,Cardiff University,98812373,61634.44,Research Grant Expenditure
BEIS,UKRI - BBSRC,23/09/2020,Research Grant Expenditure,FG - Accounts & Business Planning,The University of Manchester,98812375,17093.17,Research Grant Expenditure
BEIS,UKRI - BBSRC,23/09/2020,Research Grant Expenditure,FG - Accounts & Business Planning,The University of Manchester,98812376,32909.53,Research Grant Expenditure
BEIS,UKRI - BBSRC,23/09/2020,Research Grant Expenditure,FG - Accounts & Business Planning,University of Nottingham,98812377,36417.25,Research Grant Expenditure
BEIS,UKRI - BBSRC,23/09/2020,Research Grant Expenditure,FG - Accounts & Business Planning,University of Cambridge,98812378,44374.60,Research Grant Expenditure
BEIS,UKRI - BBSRC,23/09/2020,Research Grant Expenditure,FG - Accounts & Business Planning,The Pirbright Institute,98812379,44644.52,Research Grant Expenditure
BEIS,UKRI - BBSRC,23/09/2020,Research Grant Expenditure,FG - Accounts & Business Planning,The University of Manchester,98812380,23393.10,Research Grant Expenditure
BEIS,UKRI - BBSRC,23/09/2020,Research Grant Expenditure,FG - Accounts & Business Planning,University of Bristol GRANT,98812381,59350.57,Research Grant Expenditure
BEIS,UKRI - BBSRC,23/09/2020,Research Grant Expenditure,FG - Accounts & Business Planning,King's College London,98812382,27073.84,Research Grant Expenditure
BEIS,UKRI - BBSRC,23/09/2020,Research Grant Expenditure,FG - Accounts & Business Planning,University of Newcastle Upon Tyne,98812383,34473.35,Research Grant Expenditure
BEIS,UKRI - BBSRC,23/09/2020,Research Grant Expenditure,FG - Accounts & Business Planning,University of Glasgow,98812384,22495.40,Research Grant Expenditure
BEIS,UKRI - BBSRC,23/09/2020,Research Grant Expenditure,FG - Accounts & Business Planning,Bangor University,98812385,1985.47,Research Grant Expenditure
BEIS,UKRI - BBSRC,23/09/2020,Research Grant Expenditure,FG - Accounts & Business Planning,University of Leicester,98812386,41081.51,Research Grant Expenditure
BEIS,UKRI - BBSRC,23/09/2020,Research Grant Expenditure,FG - Accounts & Business Planning,University of Cambridge,98812387,41818.53,Research Grant Expenditure
BEIS,UKRI - BBSRC,23/09/2020,Research Grant Expenditure,FG - Accounts & Business Planning,University of Edinburgh,98812388,53839.35,Research Grant Expenditure
BEIS,UKRI - BBSRC,23/09/2020,Research Grant Expenditure,FG - Accounts & Business Planning,University of Oxford,98812389,2660.72,Research Grant Expenditure
BEIS,UKRI - BBSRC,23/09/2020,Research Grant Expenditure,FG - Accounts & Business Planning,University of Sussex,98812390,36483.47,Research Grant Expenditure
BEIS,UKRI - BBSRC,23/09/2020,Research Grant Expenditure,FG - Accounts & Business Planning,University of East Anglia,98812391,32540.82,Research Grant Expenditure
BEIS,UKRI - BBSRC,23/09/2020,Research Grant Expenditure,FG - Accounts & Business Planning,University of Cambridge,98812392,37531.36,Research Grant Expenditure
BEIS,UKRI - BBSRC,23/09/2020,Research Grant Expenditure,FG - Accounts & Business Planning,King's College London,98812393,28551.84,Research Grant Expenditure
BEIS,UKRI - BBSRC,23/09/2020,Research Grant Expenditure,FG - Accounts & Business Planning,University of Newcastle Upon Tyne,98812394,16029.86,Research Grant Expenditure
BEIS,UKRI - BBSRC,23/09/2020,Research Grant Expenditure,FG - Accounts & Business Planning,University of Sheffield,98812395,36348.37,Research Grant Expenditure
BEIS,UKRI - BBSRC,23/09/2020,Research Grant Expenditure,FG - Accounts & Business Planning,University of Sheffield,98812396,24153.25,Research Grant Expenditure
BEIS,UKRI - BBSRC,23/09/2020,Research Grant Expenditure,FG - Accounts & Business Planning,The University of Manchester,98812397,41637.49,Research Grant Expenditure
BEIS,UKRI - BBSRC,23/09/2020,Research Grant Expenditure,FG - Accounts & Business Planning,University of Cambridge,98812398,54680.46,Research Grant Expenditure
BEIS,UKRI - BBSRC,23/09/2020,Research Grant Expenditure,FG - Accounts & Business Planning,The University of Manchester,98812399,32413.25,Research Grant Expenditure
BEIS,UKRI - BBSRC,23/09/2020,Research Grant Expenditure,FG - Accounts & Business Planning,University of Durham,98812400,10260.64,Research Grant Expenditure
BEIS,UKRI - BBSRC,23/09/2020,Research Grant Expenditure,FG - Accounts & Business Planning,John Innes Centre,98812401,14600.42,Research Grant Expenditure
BEIS,UKRI - BBSRC,23/09/2020,Research Grant Expenditure,FG - Accounts & Business Planning,Aberystwyth University,98812402,22504.60,Research Grant Expenditure
BEIS,UKRI - BBSRC,23/09/2020,Research Grant Expenditure,FG - Accounts & Business Planning,King's College London,98812403,3130.79,Research Grant Expenditure
BEIS,UKRI - BBSRC,23/09/2020,Research Grant Expenditure,FG - Accounts & Business Planning,The University of Manchester,98812404,5143.19,Research Grant Expenditure
BEIS,UKRI - BBSRC,23/09/2020,Research Grant Expenditure,FG - Accounts & Business Planning,University of Exeter,98812405,32085.42,Research Grant Expenditure
BEIS,UKRI - BBSRC,23/09/2020,Research Grant Expenditure,FG - Accounts & Business Planning,University of Oxford,98812406,43525.86,Research Grant Expenditure
BEIS,UKRI - BBSRC,23/09/2020,Research Grant Expenditure,FG - Accounts & Business Planning,University of Southampton GRANT,98812407,27595.52,Research Grant Expenditure
BEIS,UKRI - BBSRC,23/09/2020,Research Grant Expenditure,FG - Accounts & Business Planning,University of East Anglia,98812408,21783.21,Research Grant Expenditure
BEIS,UKRI - BBSRC,23/09/2020,Research Grant Expenditure,FG - Accounts & Business Planning,University College London,98812410,40888.72,Research Grant Expenditure
BEIS,UKRI - BBSRC,23/09/2020,Research Grant Expenditure,FG - Accounts & Business Planning,University of Edinburgh,98812411,14902.72,Research Grant Expenditure
BEIS,UKRI - BBSRC,23/09/2020,Research Grant Expenditure,FG - Accounts & Business Planning,University of Edinburgh,98812412,43546.83,Research Grant Expenditure
BEIS,UKRI - BBSRC,23/09/2020,Research Grant Expenditure,FG - Accounts & Business Planning,King's College London,98812413,48090.87,Research Grant Expenditure
BEIS,UKRI - BBSRC,23/09/2020,Research Grant Expenditure,FG - Accounts & Business Planning,University of Oxford,98812414,48513.31,Research Grant Expenditure
BEIS,UKRI - BBSRC,23/09/2020,Research Grant Expenditure,FG - Accounts & Business Planning,University of Oxford,98812415,37280.77,Research Grant Expenditure
BEIS,UKRI - BBSRC,23/09/2020,Research Grant Expenditure,FG - Accounts & Business Planning,Imperial College London,98812416,14192.01,Research Grant Expenditure
BEIS,UKRI - BBSRC,23/09/2020,Research Grant Expenditure,FG - Accounts & Business Planning,The University of Manchester,98812417,38421.40,Research Grant Expenditure
BEIS,UKRI - BBSRC,23/09/2020,Research Grant Expenditure,FG - Accounts & Business Planning,University of Essex,98812418,3746.57,Research Grant Expenditure
BEIS,UKRI - BBSRC,23/09/2020,Research Grant Expenditure,FG - Accounts & Business Planning,University of York,98812419,47896.57,Research Grant Expenditure
BEIS,UKRI - BBSRC,23/09/2020,Research Grant Expenditure,FG - Accounts & Business Planning,Birkbeck College,98812420,34871.01,Research Grant Expenditure
BEIS,UKRI - BBSRC,23/09/2020,Research Grant Expenditure,FG - Accounts & Business Planning,University of Cambridge,98812421,31141.06,Research Grant Expenditure
BEIS,UKRI - BBSRC,23/09/2020,Research Grant Expenditure,FG - Accounts & Business Planning,University of Bristol GRANT,98812422,22646.45,Research Grant Expenditure
BEIS,UKRI - BBSRC,23/09/2020,Research Grant Expenditure,FG - Accounts & Business Planning,University of Glasgow,98812423,50255.99,Research Grant Expenditure
BEIS,UKRI - BBSRC,23/09/2020,Research Grant Expenditure,FG - Accounts & Business Planning,Cardiff University,98812424,31149.87,Research Grant Expenditure
BEIS,UKRI - BBSRC,23/09/2020,Research Grant Expenditure,FG - Accounts & Business Planning,University of Cambridge,98812425,37047.70,Research Grant Expenditure
BEIS,UKRI - BBSRC,23/09/2020,Research Grant Expenditure,FG - Accounts & Business Planning,The University of Manchester,98812426,39892.33,Research Grant Expenditure
BEIS,UKRI - BBSRC,23/09/2020,Research Grant Expenditure,FG - Accounts & Business Planning,University of Kent,98812427,27837.74,Research Grant Expenditure
BEIS,UKRI - BBSRC,23/09/2020,Research Grant Expenditure,FG - Accounts & Business Planning,King's College London,98812428,29653.04,Research Grant Expenditure
BEIS,UKRI - BBSRC,23/09/2020,Research Grant Expenditure,FG - Accounts & Business Planning,University of Leicester,98812429,24457.21,Research Grant Expenditure
BEIS,UKRI - BBSRC,23/09/2020,Research Grant Expenditure,FG - Accounts & Business Planning,Imperial College London,98812430,3646.94,Research Grant Expenditure
BEIS,UKRI - BBSRC,23/09/2020,Research Grant Expenditure,FG - Accounts & Business Planning,Queen Mary University of London,98812431,36874.25,Research Grant Expenditure
BEIS,UKRI - BBSRC,23/09/2020,Research Grant Expenditure,FG - Accounts & Business Planning,Queen Mary University of London,98812432,2061.29,Research Grant Expenditure
BEIS,UKRI - BBSRC,23/09/2020,Research Grant Expenditure,FG - Accounts & Business Planning,Queen Mary University of London,98812433,27949.99,Research Grant Expenditure
BEIS,UKRI - BBSRC,23/09/2020,Research Grant Expenditure,FG - Accounts & Business Planning,University of Liverpool,98812434,35469.94,Research Grant Expenditure
BEIS,UKRI - BBSRC,23/09/2020,Research Grant Expenditure,FG - Accounts & Business Planning,University of Cambridge,98812435,29779.34,Research Grant Expenditure
BEIS,UKRI - BBSRC,23/09/2020,Research Grant Expenditure,FG - Accounts & Business Planning,University of Newcastle Upon Tyne,98812436,28884.48,Research Grant Expenditure
BEIS,UKRI - BBSRC,23/09/2020,Research Grant Expenditure,FG - Accounts & Business Planning,University of Warwick,98812437,9031.29,Research Grant Expenditure
BEIS,UKRI - BBSRC,23/09/2020,Research Grant Expenditure,FG - Accounts & Business Planning,University of East Anglia,98812438,33485.21,Research Grant Expenditure
BEIS,UKRI - BBSRC,23/09/2020,Research Grant Expenditure,FG - Accounts & Business Planning,University of Aberdeen,98812439,32241.55,Research Grant Expenditure
BEIS,UKRI - BBSRC,23/09/2020,Research Grant Expenditure,FG - Accounts & Business Planning,University of Sheffield,98812440,32467.01,Research Grant Expenditure
BEIS,UKRI - BBSRC,23/09/2020,Research Grant Expenditure,FG - Accounts & Business Planning,University of York,98812441,40490.84,Research Grant Expenditure
BEIS,UKRI - BBSRC,23/09/2020,Research Grant Expenditure,FG - Accounts & Business Planning,Imperial College London,98812442,23077.79,Research Grant Expenditure
BEIS,UKRI - BBSRC,23/09/2020,Research Grant Expenditure,FG - Accounts & Business Planning,University of Glasgow,98812443,38360.30,Research Grant Expenditure
BEIS,UKRI - BBSRC,23/09/2020,Research Grant Expenditure,FG - Accounts & Business Planning,University of Leeds,98812444,40937.91,Research Grant Expenditure
BEIS,UKRI - BBSRC,23/09/2020,Research Grant Expenditure,FG - Accounts & Business Planning,Imperial College London,98812445,39289.33,Research Grant Expenditure
BEIS,UKRI - BBSRC,23/09/2020,Research Grant Expenditure,FG - Accounts & Business Planning,University of Bristol GRANT,98812446,35064.11,Research Grant Expenditure
BEIS,UKRI - BBSRC,23/09/2020,Research Grant Expenditure,FG - Accounts & Business Planning,University of Durham,98812447,32280.93,Research Grant Expenditure
BEIS,UKRI - BBSRC,23/09/2020,Research Grant Expenditure,FG - Accounts & Business Planning,Cranfield University,98812448,41968.52,Research Grant Expenditure
BEIS,UKRI - BBSRC,23/09/2020,Research Grant Expenditure,FG - Accounts & Business Planning,University of Leeds,98812449,35193.96,Research Grant Expenditure
BEIS,UKRI - BBSRC,23/09/2020,Research Grant Expenditure,FG - Accounts & Business Planning,University of Leeds,98812450,36279.48,Research Grant Expenditure
BEIS,UKRI - BBSRC,23/09/2020,Research Grant Expenditure,FG - Accounts & Business Planning,John Innes Centre,98812451,42848.74,Research Grant Expenditure
BEIS,UKRI - BBSRC,23/09/2020,Research Grant Expenditure,FG - Accounts & Business Planning,Queen Mary University of London,98812452,18485.77,Research Grant Expenditure
BEIS,UKRI - BBSRC,23/09/2020,Research Grant Expenditure,FG - Accounts & Business Planning,Brunel University London,98812453,38011.76,Research Grant Expenditure
BEIS,UKRI - BBSRC,23/09/2020,Research Grant Expenditure,FG - Accounts & Business Planning,Imperial College London,98812454,34748.51,Research Grant Expenditure
BEIS,UKRI - BBSRC,23/09/2020,Research Grant Expenditure,FG - Accounts & Business Planning,London School of Hygiene & Tropical Medicine,98812455,37966.87,Research Grant Expenditure
BEIS,UKRI - BBSRC,23/09/2020,Research Grant Expenditure,FG - Accounts & Business Planning,The Pirbright Institute,98812456,42516.30,Research Grant Expenditure
BEIS,UKRI - BBSRC,23/09/2020,Research Grant Expenditure,FG - Accounts & Business Planning,St George's University of London,98812457,33302.86,Research Grant Expenditure
BEIS,UKRI - BBSRC,23/09/2020,Research Grant Expenditure,FG - Accounts & Business Planning,Cardiff University,98812458,129170.12,Research Grant Expenditure
BEIS,UKRI - BBSRC,23/09/2020,Research Grant Expenditure,FG - Accounts & Business Planning,The Pirbright Institute,98812459,34479.26,Research Grant Expenditure
BEIS,UKRI - BBSRC,23/09/2020,Research Grant Expenditure,FG - Accounts & Business Planning,University of Liverpool,98812460,56717.00,Research Grant Expenditure
BEIS,UKRI - BBSRC,23/09/2020,Research Grant Expenditure,FG - Accounts & Business Planning,University of Leicester,98812461,45261.40,Research Grant Expenditure
BEIS,UKRI - BBSRC,23/09/2020,Research Grant Expenditure,FG - Accounts & Business Planning,University of Edinburgh,98812462,67761.76,Research Grant Expenditure
BEIS,UKRI - BBSRC,23/09/2020,Research Grant Expenditure,FG - Accounts & Business Planning,Bangor University,98812463,23972.93,Research Grant Expenditure
BEIS,UKRI - BBSRC,23/09/2020,Research Grant Expenditure,FG - Accounts & Business Planning,King's College London,98812464,39512.13,Research Grant Expenditure
BEIS,UKRI - BBSRC,23/09/2020,Research Grant Expenditure,FG - Accounts & Business Planning,University of Newcastle Upon Tyne,98812465,27443.67,Research Grant Expenditure
BEIS,UKRI - BBSRC,23/09/2020,Research Grant Expenditure,FG - Accounts & Business Planning,University of St Andrews,98812466,28629.67,Research Grant Expenditure
BEIS,UKRI - BBSRC,23/09/2020,Research Grant Expenditure,FG - Accounts & Business Planning,University College London,98812467,43055.04,Research Grant Expenditure
BEIS,UKRI - BBSRC,23/09/2020,Research Grant Expenditure,FG - Accounts & Business Planning,University of Edinburgh,98812468,24422.07,Research Grant Expenditure
BEIS,UKRI - BBSRC,23/09/2020,Research Grant Expenditure,FG - Accounts & Business Planning,Royal Veterinary College,98812469,29051.41,Research Grant Expenditure
BEIS,UKRI - BBSRC,23/09/2020,Research Grant Expenditure,FG - Accounts & Business Planning,University of Sussex,98812470,29938.58,Research Grant Expenditure
BEIS,UKRI - BBSRC,23/09/2020,Research Grant Expenditure,FG - Accounts & Business Planning,University of Birmingham,98812471,40302.03,Research Grant Expenditure
BEIS,UKRI - BBSRC,23/09/2020,Research Grant Expenditure,FG - Accounts & Business Planning,University of Kent,98812472,253375.00,Research Grant Expenditure
BEIS,UKRI - BBSRC,23/09/2020,Research Grant Expenditure,FG - Accounts & Business Planning,University of Liverpool,98812473,37226.75,Research Grant Expenditure
BEIS,UKRI - BBSRC,23/09/2020,Research Grant Expenditure,FG - Accounts & Business Planning,University of Edinburgh,98812474,27094.90,Research Grant Expenditure
BEIS,UKRI - BBSRC,23/09/2020,Research Grant Expenditure,FG - Accounts & Business Planning,SRUC,98812475,18849.84,Research Grant Expenditure
BEIS,UKRI - BBSRC,23/09/2020,Research Grant Expenditure,FG - Accounts & Business Planning,University of Newcastle Upon Tyne,98812476,42250.05,Research Grant Expenditure
BEIS,UKRI - BBSRC,23/09/2020,Research Grant Expenditure,FG - Accounts & Business Planning,University of Leeds,98812477,31513.56,Research Grant Expenditure
BEIS,UKRI - BBSRC,23/09/2020,Research Grant Expenditure,FG - Accounts & Business Planning,University of Leeds,98812478,47280.38,Research Grant Expenditure
BEIS,UKRI - BBSRC,23/09/2020,Research Grant Expenditure,FG - Accounts & Business Planning,Lancaster University,98812479,81969.94,Research Grant Expenditure
BEIS,UKRI - BBSRC,23/09/2020,Research Grant Expenditure,FG - Accounts & Business Planning,European Bioinformatics Institute,98812480,239255.00,Research Grant Expenditure
BEIS,UKRI - BBSRC,23/09/2020,Research Grant Expenditure,FG - Accounts & Business Planning,University of Leicester,98812481,49663.99,Research Grant Expenditure
BEIS,UKRI - BBSRC,23/09/2020,Research Grant Expenditure,FG - Accounts & Business Planning,University of Nottingham,98812482,2702.00,Research Grant Expenditure
BEIS,UKRI - BBSRC,23/09/2020,Research Grant Expenditure,FG - Accounts & Business Planning,The Scottish Association for Marine Science (SAMS Group),98812483,373175.65,Research Grant Expenditure
BEIS,UKRI - BBSRC,23/09/2020,Capital Grants & Equipment to HEIs,FG - Accounts & Business Planning,University of Bristol GRANT,98812484,3621.44,Capital Grants & Equipment to HEIs
BEIS,UKRI - BBSRC,23/09/2020,Research Grant Expenditure,FG - Accounts & Business Planning,University of Bristol GRANT,98812484,56722.78,Research Grant Expenditure
BEIS,UKRI - BBSRC,23/09/2020,Research Grant Expenditure,FG - Accounts & Business Planning,University College London,98812485,33527.77,Research Grant Expenditure
BEIS,UKRI - BBSRC,23/09/2020,Research Grant Expenditure,FG - Accounts & Business Planning,University of Cambridge,98812486,455512.00,Research Grant Expenditure
BEIS,UKRI - BBSRC,23/09/2020,Research Grant Expenditure,FG - Accounts & Business Planning,University of Leeds,98812487,509226.00,Research Grant Expenditure
BEIS,UKRI - BBSRC,23/09/2020,Research Grant Expenditure,FG - Accounts & Business Planning,University of Liverpool,98812488,509530.00,Research Grant Expenditure
BEIS,UKRI - BBSRC,23/09/2020,Research Grant Expenditure,FG - Accounts & Business Planning,University of Dundee,98812489,38964.96,Research Grant Expenditure
BEIS,UKRI - BBSRC,23/09/2020,Research Grant Expenditure,FG - Accounts & Business Planning,Swansea University,98812490,29824.63,Research Grant Expenditure
BEIS,UKRI - BBSRC,23/09/2020,Research Grant Expenditure,FG - Accounts & Business Planning,University of Birmingham GRANT,98812491,34387.67,Research Grant Expenditure
BEIS,UKRI - BBSRC,23/09/2020,Research Grant Expenditure,FG - Accounts & Business Planning,University of York,98812492,36030.63,Research Grant Expenditure
BEIS,UKRI - BBSRC,23/09/2020,Research Grant Expenditure,FG - Accounts & Business Planning,University of Glasgow,98812493,53605.75,Research Grant Expenditure
BEIS,UKRI - BBSRC,23/09/2020,Research Grant Expenditure,FG - Accounts & Business Planning,University of Reading,98812494,39697.29,Research Grant Expenditure
BEIS,UKRI - BBSRC,23/09/2020,Research Grant Expenditure,FG - Accounts & Business Planning,John Innes Centre,98812495,26107.50,Research Grant Expenditure
BEIS,UKRI - BBSRC,23/09/2020,Research Grant Expenditure,FG - Accounts & Business Planning,The University of Manchester,98812496,43151.86,Research Grant Expenditure
BEIS,UKRI - BBSRC,23/09/2020,Research Grant Expenditure,FG - Accounts & Business Planning,National Institute For Agricultural Botany (NIAB),98812497,10395.05,Research Grant Expenditure
BEIS,UKRI - BBSRC,23/09/2020,Research Grant Expenditure,FG - Accounts & Business Planning,Cardiff University,98812498,31016.43,Research Grant Expenditure
BEIS,UKRI - BBSRC,23/09/2020,Research Grant Expenditure,FG - Accounts & Business Planning,University of Strathclyde,98812499,30709.05,Research Grant Expenditure
BEIS,UKRI - BBSRC,23/09/2020,Research Grant Expenditure,FG - Accounts & Business Planning,Imperial College London,98812500,34372.54,Research Grant Expenditure
BEIS,UKRI - BBSRC,23/09/2020,Research Grant Expenditure,FG - Accounts & Business Planning,Imperial College London,98812501,51984.24,Research Grant Expenditure
BEIS,UKRI - BBSRC,23/09/2020,Research Grant Expenditure,FG - Accounts & Business Planning,University of Oxford,98812502,36186.98,Research Grant Expenditure
BEIS,UKRI - BBSRC,23/09/2020,Research Grant Expenditure,FG - Accounts & Business Planning,University of Oxford,98812503,45122.02,Research Grant Expenditure
BEIS,UKRI - BBSRC,23/09/2020,Research Grant Expenditure,FG - Accounts & Business Planning,National Institute For Agricultural Botany (NIAB),98812504,42879.46,Research Grant Expenditure
BEIS,UKRI - BBSRC,23/09/2020,Research Grant Expenditure,FG - Accounts & Business Planning,John Innes Centre,98812505,83807.30,Research Grant Expenditure
BEIS,UKRI - BBSRC,23/09/2020,Research Grant Expenditure,FG - Accounts & Business Planning,University of Bristol GRANT,98812506,31566.58,Research Grant Expenditure
BEIS,UKRI - BBSRC,23/09/2020,Research Grant Expenditure,FG - Accounts & Business Planning,University of Exeter,98812507,31712.79,Research Grant Expenditure
BEIS,UKRI - BBSRC,23/09/2020,Research Grant Expenditure,FG - Accounts & Business Planning,University of Glasgow,98812508,41184.84,Research Grant Expenditure
BEIS,UKRI - BBSRC,23/09/2020,Research Grant Expenditure,FG - Accounts & Business Planning,Imperial College London,98812509,32230.69,Research Grant Expenditure
BEIS,UKRI - BBSRC,23/09/2020,Research Grant Expenditure,FG - Accounts & Business Planning,University of Surrey,98812510,19850.43,Research Grant Expenditure
BEIS,UKRI - BBSRC,23/09/2020,Research Grant Expenditure,FG - Accounts & Business Planning,University of Bristol GRANT,98812511,58960.40,Research Grant Expenditure
BEIS,UKRI - BBSRC,23/09/2020,Research Grant Expenditure,FG - Accounts & Business Planning,University of Bristol GRANT,98812512,25547.08,Research Grant Expenditure
BEIS,UKRI - BBSRC,23/09/2020,Research Grant Expenditure,FG - Accounts & Business Planning,Queen's University Belfast GRANT,98812513,25840.92,Research Grant Expenditure
BEIS,UKRI - BBSRC,23/09/2020,Research Grant Expenditure,FG - Accounts & Business Planning,University of Oxford,98812514,54710.89,Research Grant Expenditure
BEIS,UKRI - BBSRC,23/09/2020,Research Grant Expenditure,FG - Accounts & Business Planning,University of York,98812515,43697.73,Research Grant Expenditure
BEIS,UKRI - BBSRC,23/09/2020,Research Grant Expenditure,FG - Accounts & Business Planning,University of Leeds,98812516,69205.78,Research Grant Expenditure
BEIS,UKRI - BBSRC,23/09/2020,Research Grant Expenditure,FG - Accounts & Business Planning,University of Bristol GRANT,98812517,60850.17,Research Grant Expenditure
BEIS,UKRI - BBSRC,23/09/2020,Research Grant Expenditure,FG - Accounts & Business Planning,University of Bristol GRANT,98812518,41960.03,Research Grant Expenditure
BEIS,UKRI - BBSRC,23/09/2020,Research Grant Expenditure,FG - Accounts & Business Planning,University of St Andrews,98812519,33856.05,Research Grant Expenditure
BEIS,UKRI - BBSRC,23/09/2020,Research Grant Expenditure,FG - Accounts & Business Planning,University of Liverpool,98812520,34555.10,Research Grant Expenditure
BEIS,UKRI - BBSRC,23/09/2020,Research Grant Expenditure,FG - Accounts & Business Planning,London School of Hygiene & Tropical Medicine,98812521,31457.68,Research Grant Expenditure
BEIS,UKRI - BBSRC,23/09/2020,Research Grant Expenditure,FG - Accounts & Business Planning,The University of Manchester,98812522,41982.53,Research Grant Expenditure
BEIS,UKRI - BBSRC,23/09/2020,Research Grant Expenditure,FG - Accounts & Business Planning,University of Birmingham GRANT,98812523,27265.04,Research Grant Expenditure
BEIS,UKRI - BBSRC,23/09/2020,Research Grant Expenditure,FG - Accounts & Business Planning,University of Glasgow,98812524,39714.99,Research Grant Expenditure
BEIS,UKRI - BBSRC,23/09/2020,Research Grant Expenditure,FG - Accounts & Business Planning,University of Oxford,98812525,26047.96,Research Grant Expenditure
BEIS,UKRI - BBSRC,23/09/2020,Research Grant Expenditure,FG - Accounts & Business Planning,Queen Mary University of London,98812526,39492.46,Research Grant Expenditure
BEIS,UKRI - BBSRC,23/09/2020,Research Grant Expenditure,FG - Accounts & Business Planning,University of Reading,98812527,32701.15,Research Grant Expenditure
BEIS,UKRI - BBSRC,23/09/2020,Research Grant Expenditure,FG - Accounts & Business Planning,Queen Mary University of London,98812528,32189.22,Research Grant Expenditure
BEIS,UKRI - BBSRC,23/09/2020,Research Grant Expenditure,FG - Accounts & Business Planning,University of Warwick,98812529,60699.61,Research Grant Expenditure
BEIS,UKRI - BBSRC,23/09/2020,Research Grant Expenditure,FG - Accounts & Business Planning,The University of Manchester,98812530,62282.29,Research Grant Expenditure
BEIS,UKRI - BBSRC,23/09/2020,Research Grant Expenditure,FG - Accounts & Business Planning,The University of Manchester,98812531,60900.71,Research Grant Expenditure
BEIS,UKRI - BBSRC,23/09/2020,Research Grant Expenditure,FG - Accounts & Business Planning,Queen's University Belfast GRANT,98812532,29111.32,Research Grant Expenditure
BEIS,UKRI - BBSRC,23/09/2020,Research Grant Expenditure,FG - Accounts & Business Planning,University of Warwick,98812533,67668.69,Research Grant Expenditure
BEIS,UKRI - BBSRC,23/09/2020,Research Grant Expenditure,FG - Accounts & Business Planning,University College London,98812534,36324.07,Research Grant Expenditure
BEIS,UKRI - BBSRC,23/09/2020,Research Grant Expenditure,FG - Accounts & Business Planning,University of Cambridge,98812535,32166.47,Research Grant Expenditure
BEIS,UKRI - BBSRC,23/09/2020,Research Grant Expenditure,FG - Accounts & Business Planning,The University of Manchester,98812536,35139.78,Research Grant Expenditure
BEIS,UKRI - BBSRC,23/09/2020,Research Grant Expenditure,FG - Accounts & Business Planning,University of St Andrews,98812537,51936.14,Research Grant Expenditure
BEIS,UKRI - BBSRC,23/09/2020,Research Grant Expenditure,FG - Accounts & Business Planning,University of Edinburgh,98812538,43248.75,Research Grant Expenditure
BEIS,UKRI - BBSRC,23/09/2020,Research Grant Expenditure,FG - Accounts & Business Planning,National Institute For Agricultural Botany (NIAB),98812539,51250.01,Research Grant Expenditure
BEIS,UKRI - BBSRC,23/09/2020,Research Grant Expenditure,FG - Accounts & Business Planning,University College London,98812540,38981.33,Research Grant Expenditure
BEIS,UKRI - BBSRC,23/09/2020,Research Grant Expenditure,FG - Accounts & Business Planning,London School of Hygiene & Tropical Medicine,98812541,38361.14,Research Grant Expenditure
BEIS,UKRI - BBSRC,23/09/2020,Research Grant Expenditure,FG - Accounts & Business Planning,Cardiff University,98812542,81102.27,Research Grant Expenditure
BEIS,UKRI - BBSRC,23/09/2020,Research Grant Expenditure,FG - Accounts & Business Planning,European Bioinformatics Institute,98812543,20354.59,Research Grant Expenditure
BEIS,UKRI - BBSRC,23/09/2020,Research Grant Expenditure,FG - Accounts & Business Planning,University of Dundee,98812544,44839.75,Research Grant Expenditure
BEIS,UKRI - BBSRC,23/09/2020,Research Grant Expenditure,FG - Accounts & Business Planning,University of Liverpool,98812545,32992.55,Research Grant Expenditure
BEIS,UKRI - BBSRC,23/09/2020,Research Grant Expenditure,FG - Accounts & Business Planning,University of Dundee,98812546,40434.88,Research Grant Expenditure
BEIS,UKRI - BBSRC,23/09/2020,Research Grant Expenditure,FG - Accounts & Business Planning,University of Portsmouth,98812547,34434.53,Research Grant Expenditure
BEIS,UKRI - BBSRC,23/09/2020,Research Grant Expenditure,FG - Accounts & Business Planning,National Institute For Agricultural Botany (NIAB),98812548,38965.17,Research Grant Expenditure
BEIS,UKRI - BBSRC,23/09/2020,Research Grant Expenditure,FG - Accounts & Business Planning,University of Liverpool,98812549,47668.15,Research Grant Expenditure
BEIS,UKRI - BBSRC,23/09/2020,Research Grant Expenditure,FG - Accounts & Business Planning,European Bioinformatics Institute,98812550,74305.63,Research Grant Expenditure
BEIS,UKRI - BBSRC,23/09/2020,Research Grant Expenditure,FG - Accounts & Business Planning,University of Warwick,98812551,18981.86,Research Grant Expenditure
BEIS,UKRI - BBSRC,23/09/2020,Research Grant Expenditure,FG - Accounts & Business Planning,University of Edinburgh,98812552,6146.98,Research Grant Expenditure
BEIS,UKRI - BBSRC,23/09/2020,Research Grant Expenditure,FG - Accounts & Business Planning,University of Newcastle Upon Tyne,98812553,6783.33,Research Grant Expenditure
BEIS,UKRI - BBSRC,23/09/2020,Research Grant Expenditure,FG - Accounts & Business Planning,University of York,98812554,38131.37,Research Grant Expenditure
BEIS,UKRI - BBSRC,23/09/2020,Research Grant Expenditure,FG - Accounts & Business Planning,King's College London,98812555,30069.33,Research Grant Expenditure
BEIS,UKRI - BBSRC,23/09/2020,Research Grant Expenditure,FG - Accounts & Business Planning,University College London,98812556,23874.43,Research Grant Expenditure
BEIS,UKRI - BBSRC,23/09/2020,Research Grant Expenditure,FG - Accounts & Business Planning,King's College London,98812557,35256.64,Research Grant Expenditure
BEIS,UKRI - BBSRC,23/09/2020,Research Grant Expenditure,FG - Accounts & Business Planning,University of Leicester,98812558,58544.39,Research Grant Expenditure
BEIS,UKRI - BBSRC,23/09/2020,Research Grant Expenditure,FG - Accounts & Business Planning,University of Cambridge,98812559,42617.24,Research Grant Expenditure
BEIS,UKRI - BBSRC,23/09/2020,Research Grant Expenditure,FG - Accounts & Business Planning,Queen Mary University of London,98812560,64964.08,Research Grant Expenditure
BEIS,UKRI - BBSRC,23/09/2020,Research Grant Expenditure,FG - Accounts & Business Planning,University of Glasgow,98812561,82617.90,Research Grant Expenditure
BEIS,UKRI - BBSRC,23/09/2020,Research Grant Expenditure,FG - Accounts & Business Planning,University of Sheffield,98812562,32555.72,Research Grant Expenditure
BEIS,UKRI - BBSRC,23/09/2020,Research Grant Expenditure,FG - Accounts & Business Planning,King's College London,98812563,33516.02,Research Grant Expenditure
BEIS,UKRI - BBSRC,23/09/2020,Research Grant Expenditure,FG - Accounts & Business Planning,University of Cambridge,98812564,36710.89,Research Grant Expenditure
BEIS,UKRI - BBSRC,23/09/2020,Research Grant Expenditure,FG - Accounts & Business Planning,University of Nottingham,98812565,41606.71,Research Grant Expenditure
BEIS,UKRI - BBSRC,23/09/2020,Research Grant Expenditure,FG - Accounts & Business Planning,Cardiff University,98812566,26438.85,Research Grant Expenditure
BEIS,UKRI - BBSRC,23/09/2020,Research Grant Expenditure,FG - Accounts & Business Planning,University of Bristol GRANT,98812567,23161.41,Research Grant Expenditure
BEIS,UKRI - BBSRC,23/09/2020,Research Grant Expenditure,FG - Accounts & Business Planning,University of Nottingham,98812568,40461.88,Research Grant Expenditure
BEIS,UKRI - BBSRC,23/09/2020,Research Grant Expenditure,FG - Accounts & Business Planning,University of Cambridge,98812569,51672.65,Research Grant Expenditure
BEIS,UKRI - BBSRC,23/09/2020,Research Grant Expenditure,FG - Accounts & Business Planning,University College London,98812570,29485.24,Research Grant Expenditure
BEIS,UKRI - BBSRC,23/09/2020,Research Grant Expenditure,FG - Accounts & Business Planning,University College London,98812571,65458.94,Research Grant Expenditure
BEIS,UKRI - BBSRC,23/09/2020,Research Grant Expenditure,FG - Accounts & Business Planning,University of Liverpool,98812572,55673.28,Research Grant Expenditure
BEIS,UKRI - BBSRC,23/09/2020,Research Grant Expenditure,FG - Accounts & Business Planning,University of Cambridge,98812573,42552.86,Research Grant Expenditure
BEIS,UKRI - BBSRC,23/09/2020,Research Grant Expenditure,FG - Accounts & Business Planning,King's College London,98812574,27420.26,Research Grant Expenditure
BEIS,UKRI - BBSRC,23/09/2020,Research Grant Expenditure,FG - Accounts & Business Planning,King's College London,98812575,27787.64,Research Grant Expenditure
BEIS,UKRI - BBSRC,23/09/2020,Research Grant Expenditure,FG - Accounts & Business Planning,University of Strathclyde,98812576,30469.58,Research Grant Expenditure
BEIS,UKRI - BBSRC,23/09/2020,Research Grant Expenditure,FG - Accounts & Business Planning,The Francis Crick Institute,98812577,3953.53,Research Grant Expenditure
BEIS,UKRI - BBSRC,23/09/2020,Research Grant Expenditure,FG - Accounts & Business Planning,University of Kent,98812578,27047.41,Research Grant Expenditure
BEIS,UKRI - BBSRC,23/09/2020,Research Grant Expenditure,FG - Accounts & Business Planning,The University of Manchester,98812579,44528.20,Research Grant Expenditure
BEIS,UKRI - BBSRC,23/09/2020,Research Grant Expenditure,FG - Accounts & Business Planning,Moredun Research Institute,98812580,106093.41,Research Grant Expenditure
BEIS,UKRI - BBSRC,23/09/2020,Research Grant Expenditure,FG - Accounts & Business Planning,University of Birmingham GRANT,98812581,30201.23,Research Grant Expenditure
BEIS,UKRI - BBSRC,23/09/2020,Research Grant Expenditure,FG - Accounts & Business Planning,University of Cambridge,98812582,130933.71,Research Grant Expenditure
BEIS,UKRI - BBSRC,23/09/2020,Research Grant Expenditure,FG - Accounts & Business Planning,University of Cambridge,98812583,30739.28,Research Grant Expenditure
BEIS,UKRI - BBSRC,23/09/2020,Research Grant Expenditure,FG - Accounts & Business Planning,King's College London,98812584,10648.50,Research Grant Expenditure
BEIS,UKRI - BBSRC,23/09/2020,Research Grant Expenditure,FG - Accounts & Business Planning,University of Glasgow,98812585,20787.78,Research Grant Expenditure
BEIS,UKRI - BBSRC,23/09/2020,Research Grant Expenditure,FG - Accounts & Business Planning,Heriot Watt University,98812586,46924.30,Research Grant Expenditure
BEIS,UKRI - BBSRC,23/09/2020,Research Grant Expenditure,FG - Accounts & Business Planning,University of Edinburgh,98812587,27050.55,Research Grant Expenditure
BEIS,UKRI - BBSRC,23/09/2020,Research Grant Expenditure,FG - Accounts & Business Planning,Imperial College London,98812588,16285.74,Research Grant Expenditure
BEIS,UKRI - BBSRC,23/09/2020,Research Grant Expenditure,FG - Accounts & Business Planning,The Pirbright Institute,98812589,37598.08,Research Grant Expenditure
BEIS,UKRI - BBSRC,23/09/2020,Research Grant Expenditure,FG - Accounts & Business Planning,University College London,98812590,45328.16,Research Grant Expenditure
BEIS,UKRI - BBSRC,23/09/2020,Research Grant Expenditure,FG - Accounts & Business Planning,University of Edinburgh,98812591,8882.39,Research Grant Expenditure
BEIS,UKRI - BBSRC,23/09/2020,Research Grant Expenditure,FG - Accounts & Business Planning,University of Edinburgh,98812592,38050.84,Research Grant Expenditure
BEIS,UKRI - BBSRC,23/09/2020,Research Grant Expenditure,FG - Accounts & Business Planning,University of Birmingham,98812593,41964.38,Research Grant Expenditure
BEIS,UKRI - BBSRC,23/09/2020,Research Grant Expenditure,FG - Accounts & Business Planning,The Pirbright Institute,98812594,50847.08,Research Grant Expenditure
BEIS,UKRI - BBSRC,23/09/2020,Research Grant Expenditure,FG - Accounts & Business Planning,University of Aberdeen,98812595,20225.91,Research Grant Expenditure
BEIS,UKRI - BBSRC,23/09/2020,Research Grant Expenditure,FG - Accounts & Business Planning,Imperial College London,98812596,57815.04,Research Grant Expenditure
BEIS,UKRI - BBSRC,23/09/2020,Research Grant Expenditure,FG - Accounts & Business Planning,University of Liverpool,98812597,36223.71,Research Grant Expenditure
BEIS,UKRI - BBSRC,23/09/2020,Research Grant Expenditure,FG - Accounts & Business Planning,University of Aberdeen,98812598,33965.85,Research Grant Expenditure
BEIS,UKRI - BBSRC,23/09/2020,Research Grant Expenditure,FG - Accounts & Business Planning,University College London,98812599,25100.71,Research Grant Expenditure
BEIS,UKRI - BBSRC,23/09/2020,Research Grant Expenditure,FG - Accounts & Business Planning,University of East Anglia,98812600,10470.55,Research Grant Expenditure
BEIS,UKRI - BBSRC,23/09/2020,Research Grant Expenditure,FG - Accounts & Business Planning,University of Bristol GRANT,98812601,37994.52,Research Grant Expenditure
BEIS,UKRI - BBSRC,23/09/2020,Research Grant Expenditure,FG - Accounts & Business Planning,National Institute For Agricultural Botany (NIAB),98812602,1831.29,Research Grant Expenditure
BEIS,UKRI - BBSRC,23/09/2020,Research Grant Expenditure,FG - Accounts & Business Planning,University of Leeds,98812603,4264.47,Research Grant Expenditure
BEIS,UKRI - BBSRC,23/09/2020,Research Grant Expenditure,FG - Accounts & Business Planning,Babraham Institute,98812604,3022.26,Research Grant Expenditure
BEIS,UKRI - BBSRC,23/09/2020,Research Grant Expenditure,FG - Accounts & Business Planning,Earlham Institute,98812605,2556.21,Research Grant Expenditure
BEIS,UKRI - BBSRC,23/09/2020,Research Grant Expenditure,FG - Accounts & Business Planning,University of Warwick,98812606,3188.75,Research Grant Expenditure
BEIS,UKRI - BBSRC,23/09/2020,Research Grant Expenditure,FG - Accounts & Business Planning,The Pirbright Institute,98812607,42686.11,Research Grant Expenditure
BEIS,UKRI - BBSRC,23/09/2020,Research Grant Expenditure,FG - Accounts & Business Planning,University of Nottingham,98812608,22222.26,Research Grant Expenditure
BEIS,UKRI - BBSRC,23/09/2020,Research Grant Expenditure,FG - Accounts & Business Planning,Imperial College London,98812609,9987.57,Research Grant Expenditure
BEIS,UKRI - BBSRC,23/09/2020,Research Grant Expenditure,FG - Accounts & Business Planning,University of Nottingham,98812610,33231.91,Research Grant Expenditure
BEIS,UKRI - BBSRC,23/09/2020,Research Grant Expenditure,FG - Accounts & Business Planning,Aston University,98812611,50153.84,Research Grant Expenditure
BEIS,UKRI - BBSRC,23/09/2020,Research Grant Expenditure,FG - Accounts & Business Planning,University of Exeter,98812612,34611.68,Research Grant Expenditure
BEIS,UKRI - BBSRC,23/09/2020,Research Grant Expenditure,FG - Accounts & Business Planning,University College London,98812613,39230.63,Research Grant Expenditure
BEIS,UKRI - BBSRC,23/09/2020,Research Grant Expenditure,FG - Accounts & Business Planning,Earlham Institute,98812614,33209.17,Research Grant Expenditure
BEIS,UKRI - BBSRC,23/09/2020,Research Grant Expenditure,FG - Accounts & Business Planning,University of Cambridge,98812615,31386.83,Research Grant Expenditure
BEIS,UKRI - BBSRC,23/09/2020,Research Grant Expenditure,FG - Accounts & Business Planning,University College London,98812616,36726.81,Research Grant Expenditure
BEIS,UKRI - BBSRC,23/09/2020,Research Grant Expenditure,FG - Accounts & Business Planning,University of Stirling,98812617,17741.00,Research Grant Expenditure
BEIS,UKRI - BBSRC,23/09/2020,Research Grant Expenditure,FG - Accounts & Business Planning,University of Exeter,98812618,16391.70,Research Grant Expenditure
BEIS,UKRI - BBSRC,23/09/2020,Research Grant Expenditure,FG - Accounts & Business Planning,University of Exeter,98812619,21227.63,Research Grant Expenditure
BEIS,UKRI - BBSRC,23/09/2020,Research Grant Expenditure,FG - Accounts & Business Planning,The Scottish Association for Marine Science (SAMS Group),98812620,49698.76,Research Grant Expenditure
BEIS,UKRI - BBSRC,23/09/2020,Research Grant Expenditure,FG - Accounts & Business Planning,University of Edinburgh,98812621,28217.58,Research Grant Expenditure
BEIS,UKRI - BBSRC,23/09/2020,Research Grant Expenditure,FG - Accounts & Business Planning,University of Edinburgh,98812622,23422.88,Research Grant Expenditure
BEIS,UKRI - BBSRC,23/09/2020,Research Grant Expenditure,FG - Accounts & Business Planning,University of Stirling,98812623,9661.12,Research Grant Expenditure
BEIS,UKRI - BBSRC,23/09/2020,Research Grant Expenditure,FG - Accounts & Business Planning,University of Stirling,98812624,30978.91,Research Grant Expenditure
BEIS,UKRI - BBSRC,23/09/2020,Research Grant Expenditure,FG - Accounts & Business Planning,University of Aberdeen,98812625,19302.57,Research Grant Expenditure
BEIS,UKRI - BBSRC,23/09/2020,Research Grant Expenditure,FG - Accounts & Business Planning,University of Exeter,98812626,25385.96,Research Grant Expenditure
BEIS,UKRI - BBSRC,23/09/2020,Research Grant Expenditure,FG - Accounts & Business Planning,Imperial College London,98812627,25000.00,Research Grant Expenditure
BEIS,UKRI - BBSRC,23/09/2020,Research Grant Expenditure,FG - Accounts & Business Planning,Quadram Institute Bioscience,98812628,25000.00,Research Grant Expenditure
BEIS,UKRI - BBSRC,23/09/2020,Research Grant Expenditure,FG - Accounts & Business Planning,The Pirbright Institute,98812629,25000.00,Research Grant Expenditure
BEIS,UKRI - BBSRC,23/09/2020,Research Grant Expenditure,FG - Accounts & Business Planning,The University of Manchester,98812630,25000.00,Research Grant Expenditure
BEIS,UKRI - BBSRC,23/09/2020,Research Grant Expenditure,FG - Accounts & Business Planning,University of Birmingham GRANT,98812631,25000.00,Research Grant Expenditure
BEIS,UKRI - BBSRC,23/09/2020,Research Grant Expenditure,FG - Accounts & Business Planning,University of Cambridge,98812632,25000.00,Research Grant Expenditure
BEIS,UKRI - BBSRC,23/09/2020,Research Grant Expenditure,FG - Accounts & Business Planning,University of Oxford,98812633,25000.00,Research Grant Expenditure
BEIS,UKRI - BBSRC,23/09/2020,Research Grant Expenditure,FG - Accounts & Business Planning,University of Warwick,98812634,25000.00,Research Grant Expenditure
BEIS,UKRI - BBSRC,23/09/2020,Research Grant Expenditure,FG - Accounts & Business Planning,University of Sheffield,98812635,25000.00,Research Grant Expenditure
BEIS,UKRI - BBSRC,23/09/2020,Research Grant Expenditure,FG - Accounts & Business Planning,University of York,98812636,25000.00,Research Grant Expenditure
BEIS,UKRI - BBSRC,23/09/2020,Research Grant Expenditure,FG - Accounts & Business Planning,University of Oxford,98812637,40075.53,Research Grant Expenditure
BEIS,UKRI - BBSRC,23/09/2020,Research Grant Expenditure,FG - Accounts & Business Planning,The University of Manchester,98812638,44028.54,Research Grant Expenditure
BEIS,UKRI - BBSRC,23/09/2020,Capital Grants & Equipment to HEIs,FG - Accounts & Business Planning,University of Newcastle Upon Tyne,98812639,7892.65,Capital Grants & Equipment to HEIs
BEIS,UKRI - BBSRC,23/09/2020,Research Grant Expenditure,FG - Accounts & Business Planning,University of Newcastle Upon Tyne,98812639,31652.04,Research Grant Expenditure
BEIS,UKRI - BBSRC,23/09/2020,Research Grant Expenditure,FG - Accounts & Business Planning,University of Bristol GRANT,98812640,40720.87,Research Grant Expenditure
BEIS,UKRI - BBSRC,23/09/2020,Research Grant Expenditure,FG - Accounts & Business Planning,University of Leeds,98812641,46536.41,Research Grant Expenditure
BEIS,UKRI - BBSRC,23/09/2020,Research Grant Expenditure,FG - Accounts & Business Planning,Imperial College London,98812642,32742.49,Research Grant Expenditure
BEIS,UKRI - BBSRC,23/09/2020,Research Grant Expenditure,FG - Accounts & Business Planning,Imperial College London,98812643,34826.89,Research Grant Expenditure
BEIS,UKRI - BBSRC,23/09/2020,Research Grant Expenditure,FG - Accounts & Business Planning,University of Birmingham GRANT,98812644,39590.79,Research Grant Expenditure
BEIS,UKRI - BBSRC,23/09/2020,Research Grant Expenditure,FG - Accounts & Business Planning,University of Glasgow,98812645,39505.11,Research Grant Expenditure
BEIS,UKRI - BBSRC,23/09/2020,Research Grant Expenditure,FG - Accounts & Business Planning,University of St Andrews,98812646,40400.54,Research Grant Expenditure
BEIS,UKRI - BBSRC,23/09/2020,Research Grant Expenditure,FG - Accounts & Business Planning,University of Birmingham GRANT,98812647,44220.59,Research Grant Expenditure
BEIS,UKRI - BBSRC,23/09/2020,Research Grant Expenditure,FG - Accounts & Business Planning,University of Aberdeen,98812648,37156.55,Research Grant Expenditure
BEIS,UKRI - BBSRC,23/09/2020,Research Grant Expenditure,FG - Accounts & Business Planning,Imperial College London,98812649,32456.99,Research Grant Expenditure
BEIS,UKRI - BBSRC,23/09/2020,Research Grant Expenditure,FG - Accounts & Business Planning,Aberystwyth University,98812650,39884.87,Research Grant Expenditure
BEIS,UKRI - BBSRC,23/09/2020,Research Grant Expenditure,FG - Accounts & Business Planning,University College London,98812651,38557.37,Research Grant Expenditure
BEIS,UKRI - BBSRC,23/09/2020,Research Grant Expenditure,FG - Accounts & Business Planning,Cardiff University,98812652,10733.08,Research Grant Expenditure
BEIS,UKRI - BBSRC,23/09/2020,Capital Grants & Equipment to HEIs,FG - Accounts & Business Planning,University of Sheffield,98812653,3436.77,Capital Grants & Equipment to HEIs
BEIS,UKRI - BBSRC,23/09/2020,Research Grant Expenditure,FG - Accounts & Business Planning,University of Sheffield,98812653,26361.66,Research Grant Expenditure
BEIS,UKRI - BBSRC,23/09/2020,Research Grant Expenditure,FG - Accounts & Business Planning,University of Leeds,98812654,40017.85,Research Grant Expenditure
BEIS,UKRI - BBSRC,23/09/2020,Research Grant Expenditure,FG - Accounts & Business Planning,University of Cambridge,98812655,33534.69,Research Grant Expenditure
BEIS,UKRI - BBSRC,23/09/2020,Research Grant Expenditure,FG - Accounts & Business Planning,University of Leicester,98812656,35847.47,Research Grant Expenditure
BEIS,UKRI - BBSRC,23/09/2020,Research Grant Expenditure,FG - Accounts & Business Planning,University of Birmingham GRANT,98812657,40763.50,Research Grant Expenditure
BEIS,UKRI - BBSRC,23/09/2020,Research Grant Expenditure,FG - Accounts & Business Planning,University of Bristol GRANT,98812658,42090.92,Research Grant Expenditure
BEIS,UKRI - BBSRC,23/09/2020,Research Grant Expenditure,FG - Accounts & Business Planning,University of Edinburgh,98812659,33083.91,Research Grant Expenditure
BEIS,UKRI - BBSRC,23/09/2020,Research Grant Expenditure,FG - Accounts & Business Planning,Babraham Institute,98812660,30407.81,Research Grant Expenditure
BEIS,UKRI - BBSRC,23/09/2020,Research Grant Expenditure,FG - Accounts & Business Planning,University of Sheffield,98812661,5293.97,Research Grant Expenditure
BEIS,UKRI - BBSRC,23/09/2020,Research Grant Expenditure,FG - Accounts & Business Planning,Aston University,98812662,2332.55,Research Grant Expenditure
BEIS,UKRI - BBSRC,23/09/2020,Research Grant Expenditure,FG - Accounts & Business Planning,The University of Manchester,98812663,62431.66,Research Grant Expenditure
BEIS,UKRI - BBSRC,23/09/2020,Research Grant Expenditure,FG - Accounts & Business Planning,Coventry University,98812664,31593.24,Research Grant Expenditure
BEIS,UKRI - BBSRC,23/09/2020,Research Grant Expenditure,FG - Accounts & Business Planning,University of Oxford,98812665,32013.54,Research Grant Expenditure
BEIS,UKRI - BBSRC,23/09/2020,Research Grant Expenditure,FG - Accounts & Business Planning,University of Newcastle Upon Tyne,98812666,34446.18,Research Grant Expenditure
BEIS,UKRI - BBSRC,23/09/2020,Research Grant Expenditure,FG - Accounts & Business Planning,University of Liverpool,98812667,34598.38,Research Grant Expenditure
BEIS,UKRI - BBSRC,23/09/2020,Research Grant Expenditure,FG - Accounts & Business Planning,University of Bath,98812668,46476.27,Research Grant Expenditure
BEIS,UKRI - BBSRC,23/09/2020,Research Grant Expenditure,FG - Accounts & Business Planning,University of Oxford,98812669,35303.85,Research Grant Expenditure
BEIS,UKRI - BBSRC,23/09/2020,Research Grant Expenditure,FG - Accounts & Business Planning,University of Bristol GRANT,98812670,28222.63,Research Grant Expenditure
BEIS,UKRI - BBSRC,23/09/2020,Research Grant Expenditure,FG - Accounts & Business Planning,University of East Anglia,98812671,39530.64,Research Grant Expenditure
BEIS,UKRI - BBSRC,23/09/2020,Research Grant Expenditure,FG - Accounts & Business Planning,University of Birmingham GRANT,98812672,3212.70,Research Grant Expenditure
BEIS,UKRI - BBSRC,23/09/2020,Research Grant Expenditure,FG - Accounts & Business Planning,Queen Mary University of London,98812673,29939.80,Research Grant Expenditure
BEIS,UKRI - BBSRC,23/09/2020,Research Grant Expenditure,FG - Accounts & Business Planning,University of Cambridge,98812674,36439.54,Research Grant Expenditure
BEIS,UKRI - BBSRC,23/09/2020,Research Grant Expenditure,FG - Accounts & Business Planning,University College London,98812675,44350.77,Research Grant Expenditure
BEIS,UKRI - BBSRC,23/09/2020,Research Grant Expenditure,FG - Accounts & Business Planning,University of Warwick,98812676,12121.47,Research Grant Expenditure
BEIS,UKRI - BBSRC,23/09/2020,Research Grant Expenditure,FG - Accounts & Business Planning,Imperial College London,98812677,36249.80,Research Grant Expenditure
BEIS,UKRI - BBSRC,23/09/2020,Research Grant Expenditure,FG - Accounts & Business Planning,University of Liverpool,98812678,40076.81,Research Grant Expenditure
BEIS,UKRI - BBSRC,23/09/2020,Research Grant Expenditure,FG - Accounts & Business Planning,University of Exeter,98812679,40138.95,Research Grant Expenditure
BEIS,UKRI - BBSRC,23/09/2020,Research Grant Expenditure,FG - Accounts & Business Planning,University College London,98812680,35781.15,Research Grant Expenditure
BEIS,UKRI - BBSRC,23/09/2020,Research Grant Expenditure,FG - Accounts & Business Planning,University College London,98812681,37227.22,Research Grant Expenditure
BEIS,UKRI - BBSRC,23/09/2020,Research Grant Expenditure,FG - Accounts & Business Planning,University of Cambridge,98812682,34813.06,Research Grant Expenditure
BEIS,UKRI - BBSRC,23/09/2020,Research Grant Expenditure,FG - Accounts & Business Planning,Queen Mary University of London,98812683,39047.13,Research Grant Expenditure
BEIS,UKRI - BBSRC,23/09/2020,Research Grant Expenditure,FG - Accounts & Business Planning,University of Leicester,98812684,28190.70,Research Grant Expenditure
BEIS,UKRI - BBSRC,23/09/2020,Research Grant Expenditure,FG - Accounts & Business Planning,SRUC,98812685,12145.97,Research Grant Expenditure
BEIS,UKRI - BBSRC,23/09/2020,Research Grant Expenditure,FG - Accounts & Business Planning,University of Bath,98812686,27072.97,Research Grant Expenditure
BEIS,UKRI - BBSRC,23/09/2020,Research Grant Expenditure,FG - Accounts & Business Planning,University of Cambridge,98812687,32661.80,Research Grant Expenditure
BEIS,UKRI - BBSRC,23/09/2020,Research Grant Expenditure,FG - Accounts & Business Planning,Swansea University,98812688,30683.95,Research Grant Expenditure
BEIS,UKRI - BBSRC,23/09/2020,Research Grant Expenditure,FG - Accounts & Business Planning,University of Leeds,98812689,36921.92,Research Grant Expenditure
BEIS,UKRI - BBSRC,23/09/2020,Research Grant Expenditure,FG - Accounts & Business Planning,University of Kent,98812690,26947.87,Research Grant Expenditure
BEIS,UKRI - BBSRC,23/09/2020,Research Grant Expenditure,FG - Accounts & Business Planning,University of Newcastle Upon Tyne,98812691,15157.84,Research Grant Expenditure
BEIS,UKRI - BBSRC,23/09/2020,Research Grant Expenditure,FG - Accounts & Business Planning,University of Oxford,98812692,38331.53,Research Grant Expenditure
BEIS,UKRI - BBSRC,23/09/2020,Research Grant Expenditure,FG - Accounts & Business Planning,The University of Manchester,98812693,36677.02,Research Grant Expenditure
BEIS,UKRI - BBSRC,23/09/2020,Research Grant Expenditure,FG - Accounts & Business Planning,University of Oxford,98812694,39565.32,Research Grant Expenditure
BEIS,UKRI - BBSRC,23/09/2020,Research Grant Expenditure,FG - Accounts & Business Planning,John Innes Centre,98812695,42847.32,Research Grant Expenditure
BEIS,UKRI - BBSRC,23/09/2020,Research Grant Expenditure,FG - Accounts & Business Planning,University of Sheffield,98812696,39978.58,Research Grant Expenditure
BEIS,UKRI - BBSRC,23/09/2020,Research Grant Expenditure,FG - Accounts & Business Planning,University College London,98812697,37955.79,Research Grant Expenditure
BEIS,UKRI - BBSRC,23/09/2020,Research Grant Expenditure,FG - Accounts & Business Planning,King's College London,98812698,38400.01,Research Grant Expenditure
BEIS,UKRI - BBSRC,23/09/2020,Research Grant Expenditure,FG - Accounts & Business Planning,National Institute For Agricultural Botany (NIAB),98812699,15141.51,Research Grant Expenditure
BEIS,UKRI - BBSRC,23/09/2020,Research Grant Expenditure,FG - Accounts & Business Planning,University of Essex,98812700,14256.73,Research Grant Expenditure
BEIS,UKRI - BBSRC,23/09/2020,Research Grant Expenditure,FG - Accounts & Business Planning,University of Exeter,98812701,23989.21,Research Grant Expenditure
BEIS,UKRI - BBSRC,23/09/2020,Research Grant Expenditure,FG - Accounts & Business Planning,University of Edinburgh,98812702,9362.91,Research Grant Expenditure
BEIS,UKRI - BBSRC,23/09/2020,Research Grant Expenditure,FG - Accounts & Business Planning,University of Glasgow,98812703,25000.00,Research Grant Expenditure
BEIS,UKRI - BBSRC,23/09/2020,Research Grant Expenditure,FG - Accounts & Business Planning,University of Edinburgh,98812704,50000.00,Research Grant Expenditure
BEIS,UKRI - BBSRC,23/09/2020,Research Grant Expenditure,FG - Accounts & Business Planning,University of Nottingham,98812705,25000.00,Research Grant Expenditure
BEIS,UKRI - BBSRC,23/09/2020,Research Grant Expenditure,FG - Accounts & Business Planning,University of Liverpool,98812706,25000.00,Research Grant Expenditure
BEIS,UKRI - BBSRC,23/09/2020,Research Grant Expenditure,FG - Accounts & Business Planning,University of Hull,98812707,24030.29,Research Grant Expenditure
BEIS,UKRI - BBSRC,23/09/2020,Research Grant Expenditure,FG - Accounts & Business Planning,University of Leeds,98812708,8694.66,Research Grant Expenditure
BEIS,UKRI - BBSRC,23/09/2020,Research Grant Expenditure,FG - Accounts & Business Planning,University of Liverpool,98812709,24493.68,Research Grant Expenditure
BEIS,UKRI - BBSRC,23/09/2020,Research Grant Expenditure,FG - Accounts & Business Planning,Imperial College London,98812710,64506.77,Research Grant Expenditure
BEIS,UKRI - BBSRC,23/09/2020,Research Grant Expenditure,FG - Accounts & Business Planning,University of Bristol GRANT,98812711,68251.08,Research Grant Expenditure
BEIS,UKRI - BBSRC,23/09/2020,Research Grant Expenditure,FG - Accounts & Business Planning,National Institute For Agricultural Botany (NIAB),98812712,36918.96,Research Grant Expenditure
BEIS,UKRI - BBSRC,23/09/2020,Research Grant Expenditure,FG - Accounts & Business Planning,University of Leicester,98812713,45958.31,Research Grant Expenditure
BEIS,UKRI - BBSRC,23/09/2020,Research Grant Expenditure,FG - Accounts & Business Planning,University of Oxford,98812714,29337.26,Research Grant Expenditure
BEIS,UKRI - BBSRC,23/09/2020,Research Grant Expenditure,FG - Accounts & Business Planning,University of Stirling,98812715,59727.03,Research Grant Expenditure
BEIS,UKRI - BBSRC,23/09/2020,Research Grant Expenditure,FG - Accounts & Business Planning,University of East Anglia,98812716,40472.65,Research Grant Expenditure
BEIS,UKRI - BBSRC,23/09/2020,Research Grant Expenditure,FG - Accounts & Business Planning,University of Sussex,98812717,63597.68,Research Grant Expenditure
BEIS,UKRI - BBSRC,23/09/2020,Research Grant Expenditure,FG - Accounts & Business Planning,University of Newcastle Upon Tyne,98812718,36839.40,Research Grant Expenditure
BEIS,UKRI - BBSRC,23/09/2020,Research Grant Expenditure,FG - Accounts & Business Planning,University of Cambridge,98812719,54662.96,Research Grant Expenditure
BEIS,UKRI - BBSRC,23/09/2020,Research Grant Expenditure,FG - Accounts & Business Planning,University of Birmingham GRANT,98812720,40831.82,Research Grant Expenditure
BEIS,UKRI - BBSRC,23/09/2020,Research Grant Expenditure,FG - Accounts & Business Planning,University of Oxford,98812721,41531.91,Research Grant Expenditure
BEIS,UKRI - BBSRC,23/09/2020,Research Grant Expenditure,FG - Accounts & Business Planning,University of Nottingham,98812722,33654.32,Research Grant Expenditure
BEIS,UKRI - BBSRC,23/09/2020,Research Grant Expenditure,FG - Accounts & Business Planning,University College London,98812723,46400.01,Research Grant Expenditure
BEIS,UKRI - BBSRC,23/09/2020,Research Grant Expenditure,FG - Accounts & Business Planning,University of Oxford,98812724,50604.03,Research Grant Expenditure
BEIS,UKRI - BBSRC,23/09/2020,Research Grant Expenditure,FG - Accounts & Business Planning,University of East Anglia,98812725,37501.18,Research Grant Expenditure
BEIS,UKRI - BBSRC,23/09/2020,Research Grant Expenditure,FG - Accounts & Business Planning,University of Sheffield,98812726,40104.43,Research Grant Expenditure
BEIS,UKRI - BBSRC,23/09/2020,Research Grant Expenditure,FG - Accounts & Business Planning,University of Oxford,98812727,40626.46,Research Grant Expenditure
BEIS,UKRI - BBSRC,23/09/2020,Research Grant Expenditure,FG - Accounts & Business Planning,University of Birmingham GRANT,98812728,42783.00,Research Grant Expenditure
BEIS,UKRI - BBSRC,23/09/2020,Research Grant Expenditure,FG - Accounts & Business Planning,King's College London,98812729,48656.06,Research Grant Expenditure
BEIS,UKRI - BBSRC,23/09/2020,Research Grant Expenditure,FG - Accounts & Business Planning,University of Edinburgh,98812730,32701.75,Research Grant Expenditure
BEIS,UKRI - BBSRC,23/09/2020,Research Grant Expenditure,FG - Accounts & Business Planning,University of Sussex,98812731,59612.81,Research Grant Expenditure
BEIS,UKRI - BBSRC,23/09/2020,Research Grant Expenditure,FG - Accounts & Business Planning,University of Oxford,98812732,57442.51,Research Grant Expenditure
BEIS,UKRI - BBSRC,23/09/2020,Research Grant Expenditure,FG - Accounts & Business Planning,Goldsmiths College University of London,98812733,28510.79,Research Grant Expenditure
BEIS,UKRI - BBSRC,23/09/2020,Research Grant Expenditure,FG - Accounts & Business Planning,University of Warwick,98812734,29634.80,Research Grant Expenditure
BEIS,UKRI - BBSRC,23/09/2020,Research Grant Expenditure,FG - Accounts & Business Planning,Aberystwyth University,98812735,1920.93,Research Grant Expenditure
BEIS,UKRI - BBSRC,23/09/2020,Research Grant Expenditure,FG - Accounts & Business Planning,Rothamsted Research Ltd,98812736,25000.00,Research Grant Expenditure
BEIS,UKRI - BBSRC,23/09/2020,Research Grant Expenditure,FG - Accounts & Business Planning,University of Birmingham GRANT,98812737,38629.97,Research Grant Expenditure
BEIS,UKRI - BBSRC,23/09/2020,Research Grant Expenditure,FG - Accounts & Business Planning,University of Cambridge,98812738,21656.09,Research Grant Expenditure
BEIS,UKRI - BBSRC,23/09/2020,Research Grant Expenditure,FG - Accounts & Business Planning,University of Dundee,98812739,44371.58,Research Grant Expenditure
BEIS,UKRI - BBSRC,23/09/2020,Research Grant Expenditure,FG - Accounts & Business Planning,University of Glasgow,98812740,71322.99,Research Grant Expenditure
BEIS,UKRI - BBSRC,23/09/2020,Research Grant Expenditure,FG - Accounts & Business Planning,University of Cambridge,98812741,28764.59,Research Grant Expenditure
BEIS,UKRI - BBSRC,23/09/2020,Research Grant Expenditure,FG - Accounts & Business Planning,University of Cambridge,98812742,27001.42,Research Grant Expenditure
BEIS,UKRI - BBSRC,23/09/2020,Research Grant Expenditure,FG - Accounts & Business Planning,University of Newcastle Upon Tyne,98812743,28524.74,Research Grant Expenditure
BEIS,UKRI - BBSRC,23/09/2020,Research Grant Expenditure,FG - Accounts & Business Planning,University of East Anglia,98812744,41455.42,Research Grant Expenditure
BEIS,UKRI - BBSRC,23/09/2020,Research Grant Expenditure,FG - Accounts & Business Planning,University of Nottingham,98812745,45146.41,Research Grant Expenditure
BEIS,UKRI - BBSRC,23/09/2020,Research Grant Expenditure,FG - Accounts & Business Planning,University of Durham,98812746,33050.98,Research Grant Expenditure
BEIS,UKRI - BBSRC,23/09/2020,Research Grant Expenditure,FG - Accounts & Business Planning,The University of Manchester,98812747,46526.21,Research Grant Expenditure
BEIS,UKRI - BBSRC,23/09/2020,Research Grant Expenditure,FG - Accounts & Business Planning,King's College London,98812748,54118.22,Research Grant Expenditure
BEIS,UKRI - BBSRC,23/09/2020,Research Grant Expenditure,FG - Accounts & Business Planning,University of Edinburgh,98812749,35695.56,Research Grant Expenditure
BEIS,UKRI - BBSRC,23/09/2020,Research Grant Expenditure,FG - Accounts & Business Planning,Queen Mary University of London,98812750,40877.86,Research Grant Expenditure
BEIS,UKRI - BBSRC,23/09/2020,Research Grant Expenditure,FG - Accounts & Business Planning,Imperial College London,98812751,37818.56,Research Grant Expenditure
BEIS,UKRI - BBSRC,23/09/2020,Research Grant Expenditure,FG - Accounts & Business Planning,University of Sussex,98812752,35746.26,Research Grant Expenditure
BEIS,UKRI - BBSRC,23/09/2020,Research Grant Expenditure,FG - Accounts & Business Planning,King's College London,98812753,57325.50,Research Grant Expenditure
BEIS,UKRI - BBSRC,23/09/2020,Research Grant Expenditure,FG - Accounts & Business Planning,University of Cambridge,98812754,6595.25,Research Grant Expenditure
BEIS,UKRI - BBSRC,23/09/2020,Research Grant Expenditure,FG - Accounts & Business Planning,The Pirbright Institute,98812755,62665.88,Research Grant Expenditure
BEIS,UKRI - BBSRC,23/09/2020,Research Grant Expenditure,FG - Accounts & Business Planning,University of Edinburgh,98812756,49110.10,Research Grant Expenditure
BEIS,UKRI - BBSRC,23/09/2020,Research Grant Expenditure,FG - Accounts & Business Planning,Cardiff University,98812757,39193.15,Research Grant Expenditure
BEIS,UKRI - BBSRC,23/09/2020,Research Grant Expenditure,FG - Accounts & Business Planning,University of Dundee,98812758,62549.19,Research Grant Expenditure
BEIS,UKRI - BBSRC,23/09/2020,Research Grant Expenditure,FG - Accounts & Business Planning,John Innes Centre,98812759,43830.64,Research Grant Expenditure
BEIS,UKRI - BBSRC,23/09/2020,Research Grant Expenditure,FG - Accounts & Business Planning,University College London,98812760,75480.55,Research Grant Expenditure
BEIS,UKRI - BBSRC,23/09/2020,Research Grant Expenditure,FG - Accounts & Business Planning,The Francis Crick Institute,98812761,32879.76,Research Grant Expenditure
BEIS,UKRI - BBSRC,23/09/2020,Research Grant Expenditure,FG - Accounts & Business Planning,University of Nottingham,98812762,38289.78,Research Grant Expenditure
BEIS,UKRI - BBSRC,23/09/2020,Research Grant Expenditure,FG - Accounts & Business Planning,University of Bristol GRANT,98812763,39889.64,Research Grant Expenditure
BEIS,UKRI - BBSRC,23/09/2020,Research Grant Expenditure,FG - Accounts & Business Planning,University of Cambridge,98812764,30620.79,Research Grant Expenditure
BEIS,UKRI - BBSRC,23/09/2020,Research Grant Expenditure,FG - Accounts & Business Planning,University of Glasgow,98812765,48744.92,Research Grant Expenditure
BEIS,UKRI - BBSRC,23/09/2020,Research Grant Expenditure,FG - Accounts & Business Planning,Imperial College London,98812766,44193.90,Research Grant Expenditure
BEIS,UKRI - BBSRC,23/09/2020,Research Grant Expenditure,FG - Accounts & Business Planning,University of East Anglia,98812767,40004.39,Research Grant Expenditure
BEIS,UKRI - BBSRC,23/09/2020,Research Grant Expenditure,FG - Accounts & Business Planning,Cardiff University,98812768,34706.61,Research Grant Expenditure
BEIS,UKRI - BBSRC,23/09/2020,Research Grant Expenditure,FG - Accounts & Business Planning,University of Kent,98812769,31668.26,Research Grant Expenditure
BEIS,UKRI - BBSRC,23/09/2020,Research Grant Expenditure,FG - Accounts & Business Planning,University of Warwick,98812770,42289.34,Research Grant Expenditure
BEIS,UKRI - BBSRC,23/09/2020,Research Grant Expenditure,FG - Accounts & Business Planning,University of Warwick,98812771,21974.63,Research Grant Expenditure
BEIS,UKRI - BBSRC,23/09/2020,Research Grant Expenditure,FG - Accounts & Business Planning,University of Bristol GRANT,98812772,50765.66,Research Grant Expenditure
BEIS,UKRI - BBSRC,23/09/2020,Research Grant Expenditure,FG - Accounts & Business Planning,University of Nottingham,98812773,34838.30,Research Grant Expenditure
BEIS,UKRI - BBSRC,23/09/2020,Research Grant Expenditure,FG - Accounts & Business Planning,King's College London,98812774,28618.25,Research Grant Expenditure
